date,department/service,beneficiary,amount,summary of purpose,category,transaction number,SAP vendor number
01.06.2023,ASSET MANAGEMENT,ARMINA LTD,549.78,DISREPAIR,BUILDING R&M,2103668932,3000002121
01.06.2023,ASSET MANAGEMENT,ARMINA LTD,"1,417.73",DISREPAIR,BUILDING R&M,2103668933,3000002121
01.06.2023,ASSET MANAGEMENT,ARMINA LTD,"1,456.60",DISREPAIR,BUILDING R&M,2103668931,3000002121
01.06.2023,ASSET MANAGEMENT,T BROWN & SONS (HEATING) LTD,"16,700.35",ENG CONTRACTS (NORTH),HEATING -DISTRICT SERVICE (CONTRACT SUM),5902581614,1000040191
01.06.2023,C&A,UK LATIN COMMUNITY CIC,480.00,HOLIDAY ACTIVITIES & FOOD,EXTERNAL AGENCIES AND BODIES,5902581640,1000089463
01.06.2023,C&A,CAMELOT PRIMARY SCHOOL,"1,059.96",HOLIDAY ACTIVITIES & FOOD,EXTERNAL AGENCIES AND BODIES,5902581558,5001000014
01.06.2023,CENTRAL FUNCTIONS,MORGAN SINDALL PROPERTY SERVICES LTD,"9,194.84",GAINS/LOSSES I & E,PROFESSIONAL FEES,5902581775,1000089196
01.06.2023,CENTRAL FUNCTIONS,MORGAN SINDALL PROPERTY SERVICES LTD,"32,182.54",GAINS/LOSSES I & E,SECURITY SERVICES,5902581722,1000089196
01.06.2023,CHILDREN AND FAMILIES,REDACTED PERSONAL DATA,410.00,ADOPTION SUPP FUND 3,EXTERNAL AGENCIES AND BODIES,REDACTED,REDACTED
01.06.2023,COMMISSIONING & CENTRAL,ACCESS UK LTD,"5,700.00",C&AS SOFTWARE APPS,SOFTWARE,5902581606,1000088347
01.06.2023,COMMUNITIES,EQUALITEACH C.I.C.,800.00,PREVENT,PROFESSIONAL FEES,5902581537,1000079800
01.06.2023,COMMUNITIES,EQUALITEACH C.I.C.,800.00,PREVENT,PROFESSIONAL FEES,5902581537,1000079800
01.06.2023,COMMUNITIES,EQUALITEACH C.I.C.,800.00,PREVENT,PROFESSIONAL FEES,5902581537,1000079800
01.06.2023,COMMUNITIES,EQUALITEACH C.I.C.,800.00,PREVENT,PROFESSIONAL FEES,5902581537,1000079800
01.06.2023,CORPORATE FACILITIES MANAGEMENT,BRITISH GAS,-397.85,CURLEW HOUSE,GAS,5902579276,1000054825
01.06.2023,CORPORATE FACILITIES MANAGEMENT,BRITISH GAS,-342.24,CURLEW HOUSE,GAS,5902579278,1000054825
01.06.2023,CUSTOMER EXPERIENCE,AVOCET SERVICES LTD,332.00,COMPLAINTS,EXTERNAL AGENCIES AND BODIES,5902581830,1000081147
01.06.2023,EDUCATION,ABRSM,"1,466.00",LEA MUSIC SERVICE(310) - 5018566,CONSULTANTS SERVICES,5902581533,1000072042
01.06.2023,ENVIRONMENT AND LEISURE,COMPLETE PRINT SOLUTIONS LTD,"2,114.00",CAPITAL PS (LEISURE),CONSTRUCTION MAIN CONTRACT -CERTIFICATED,5902581694,1000082234
01.06.2023,ENVIRONMENT DIRECTORATE,ANYTIME AUTOGLAZE LTD,320.00,FLEET INSURANCE WORKS,TRANSPORT INSURANCE COSTS,5902581620,1000088508
01.06.2023,ENVIRONMENT DIRECTORATE,1ENV SOLUTIONS LTD,"4,805.23",PEST CONTROL,MATERIALS,5902581565,1000075410
01.06.2023,ENVIRONMENT DIRECTORATE,REDACTED PERSONAL DATA,536.00,RESIDENTIAL SERVICES,MANDATORY STATUTORY FEES & CHARGES,REDACTED,REDACTED
01.06.2023,HOUSING HRA,AIREY MILLER LIMITED,650.00,CAPITAL PS (HRA),CONSTRUCTION FEES  - EXTERNAL,5902582017,1000085476
01.06.2023,HOUSING HRA,BAILY  GARNER LLP,521.32,CAPITAL PS (HRA),CONSTRUCTION FEES - EMPLOYERS AGENT,5902581834,1000663
01.06.2023,HOUSING HRA,BAILY  GARNER LLP,"2,867.54",CAPITAL PS (HRA),CONSTRUCTION FEES - EMPLOYERS AGENT,5902581834,1000663
01.06.2023,HOUSING HRA,KIND & COMPANY (BUILDERS) LTD,"16,700.00",CAPITAL PS (HRA),CONSTRUCTION SITE COSTS,2103670225,3000001608
01.06.2023,LEISURE DIRECTORATE,E.ON HEAT,267.21,HERITAGE CENTRE & WALWORTH LIBRARY,GAS,5902581447,1000080948
01.06.2023,LEISURE DIRECTORATE,KENT COUNTY COUNCIL - LASER,"1,158.28",KINGSWOOD HOUSE,GAS,5902581501,1000012926
01.06.2023,NEW BUILD,LONDON UNDERGROUND LTD,375.00,DEVELOPMENT DELIVERY,PUBLIC TRANSPORT,5902581503,1000059727
01.06.2023,RESIDENT SERVICES,BRITISH GAS,"1,990.67",EXTRA CARE,ELECTRICITY,5902581566,1000054825
01.06.2023,RESIDENT SERVICES,BRITISH GAS,"4,174.05",EXTRA CARE,ELECTRICITY,5902581566,1000054825
02.06.2023,ADULT SOCIAL CARE,BRITISH GAS,"1,269.37",CASTLEMEAD,ELECTRICITY,5902582097,1000054825
02.06.2023,ADULT SOCIAL CARE,PEOPLE PLUS GROUP LTD (INDEPENDENT LIVING SERVICES),-781.19,CHILDREN PHB - SEL ICB,PAYMENTS TO CLIENTS (DIRECT PAYMENTS),2103672112,1000061886
02.06.2023,ADULT SOCIAL CARE,PEOPLE PLUS GROUP LTD (INDEPENDENT LIVING SERVICES),"1,912.00",CHILDREN PHB - SEL ICB,PAYMENTS TO CLIENTS (DIRECT PAYMENTS),2103671953,1000061886
02.06.2023,ADULT SOCIAL CARE,PEOPLE PLUS GROUP LTD (INDEPENDENT LIVING SERVICES),"2,294.40",CHILDREN PHB - SEL ICB,PAYMENTS TO CLIENTS (DIRECT PAYMENTS),2103671901,1000061886
02.06.2023,ADULT SOCIAL CARE,BARRIE BOOKKEEPING & PAYROLL SOLUTIONS LTD,298.92,CHILDREN PHB - SEL ICB,PAYMENTS TO CLIENTS (DIRECT PAYMENTS),2103671868,1000089211
02.06.2023,ADULT SOCIAL CARE,REDACTED PERSONAL DATA,"1,939.96",CHILDREN PHB - SEL ICB,PAYMENTS TO CLIENTS (DIRECT PAYMENTS),REDACTED,REDACTED
02.06.2023,ADULT SOCIAL CARE,REDACTED PERSONAL DATA,"4,020.48",CHILDREN PHB - SEL ICB,PAYMENTS TO CLIENTS (DIRECT PAYMENTS),REDACTED,REDACTED
02.06.2023,ADULT SOCIAL CARE,REDACTED PERSONAL DATA,"12,010.80",CHILDREN PHB - SEL ICB,PAYMENTS TO CLIENTS (DIRECT PAYMENTS),REDACTED,REDACTED
02.06.2023,ADULT SOCIAL CARE,PRIORS COURT SERVICES LTD,"24,058.88",DISABILITIES LAC,RESIDENTIAL CARE,2103670588,1000085127
02.06.2023,ADULT SOCIAL CARE,PRIORS COURT SERVICES LTD,"24,058.88",DISABILITIES LAC,RESIDENTIAL CARE,2103670589,1000085127
02.06.2023,ADULT SOCIAL CARE,PRIORS COURT SERVICES LTD,"24,058.88",DISABILITIES LAC,RESIDENTIAL CARE,2103670591,1000085127
02.06.2023,ADULT SOCIAL CARE,PRIORS COURT SERVICES LTD,"62,156.69",DISABILITIES LAC,RESIDENTIAL CARE,2103670584,1000085127
02.06.2023,ADULT SOCIAL CARE,PRIORS COURT SERVICES LTD,"62,156.69",DISABILITIES LAC,RESIDENTIAL CARE,2103670586,1000085127
02.06.2023,ADULT SOCIAL CARE,PRIORS COURT SERVICES LTD,"62,156.69",DISABILITIES LAC,RESIDENTIAL CARE,2103670587,1000085127
02.06.2023,ADULT SOCIAL CARE,PEOPLE PLUS GROUP LTD (INDEPENDENT LIVING SERVICES),526.08,DISCHARGE TO ACCESS,PAYMENTS TO CLIENTS (DIRECT PAYMENTS),2103671865,1000061886
02.06.2023,ADULT SOCIAL CARE,LIBRA PARTNERSHIP LTD,399.20,LD LTS 18-64,ADVOCACY,2103670739,1000089103
02.06.2023,ADULT SOCIAL CARE,PEOPLE PLUS GROUP LTD (INDEPENDENT LIVING SERVICES),-779.80,LD LTS 18-64,DISCRETIONARY FLEXIBLE FEES & INCOME,2103671612,1000061886
02.06.2023,ADULT SOCIAL CARE,PEOPLE PLUS GROUP LTD (INDEPENDENT LIVING SERVICES),-478.20,LD LTS 18-64,DISCRETIONARY FLEXIBLE FEES & INCOME,2103671209,1000061886
02.06.2023,ADULT SOCIAL CARE,PEOPLE PLUS GROUP LTD (INDEPENDENT LIVING SERVICES),-395.72,LD LTS 18-64,DISCRETIONARY FLEXIBLE FEES & INCOME,2103670902,1000061886
02.06.2023,ADULT SOCIAL CARE,PEOPLE PLUS GROUP LTD (INDEPENDENT LIVING SERVICES),-287.00,LD LTS 18-64,DISCRETIONARY FLEXIBLE FEES & INCOME,2103671470,1000061886
02.06.2023,ADULT SOCIAL CARE,PEOPLE PLUS GROUP LTD (INDEPENDENT LIVING SERVICES),-286.96,LD LTS 18-64,DISCRETIONARY FLEXIBLE FEES & INCOME,2103671207,1000061886
02.06.2023,ADULT SOCIAL CARE,PEOPLE PLUS GROUP LTD (INDEPENDENT LIVING SERVICES),-276.00,LD LTS 18-64,DISCRETIONARY FLEXIBLE FEES & INCOME,2103671614,1000061886
02.06.2023,ADULT SOCIAL CARE,REDACTED PERSONAL DATA,-456.56,LD LTS 18-64,DISCRETIONARY FLEXIBLE FEES & INCOME,REDACTED,REDACTED
02.06.2023,ADULT SOCIAL CARE,REDACTED PERSONAL DATA,-381.12,LD LTS 18-64,DISCRETIONARY FLEXIBLE FEES & INCOME,REDACTED,REDACTED
02.06.2023,ADULT SOCIAL CARE,REDACTED PERSONAL DATA,-287.00,LD LTS 18-64,DISCRETIONARY FLEXIBLE FEES & INCOME,REDACTED,REDACTED
02.06.2023,ADULT SOCIAL CARE,REDACTED PERSONAL DATA,-287.00,LD LTS 18-64,DISCRETIONARY FLEXIBLE FEES & INCOME,REDACTED,REDACTED
02.06.2023,ADULT SOCIAL CARE,REDACTED PERSONAL DATA,-287.00,LD LTS 18-64,DISCRETIONARY FLEXIBLE FEES & INCOME,REDACTED,REDACTED
02.06.2023,ADULT SOCIAL CARE,REDACTED PERSONAL DATA,-286.96,LD LTS 18-64,DISCRETIONARY FLEXIBLE FEES & INCOME,REDACTED,REDACTED
02.06.2023,ADULT SOCIAL CARE,REDACTED PERSONAL DATA,-280.32,LD LTS 18-64,DISCRETIONARY FLEXIBLE FEES & INCOME,REDACTED,REDACTED
02.06.2023,ADULT SOCIAL CARE,REDACTED PERSONAL DATA,-278.08,LD LTS 18-64,DISCRETIONARY FLEXIBLE FEES & INCOME,REDACTED,REDACTED
02.06.2023,ADULT SOCIAL CARE,METRO HOMECARE LTD,528.00,LD LTS 18-64,HOMECARE - SPOT,2103670872,1000070695
02.06.2023,ADULT SOCIAL CARE,METRO HOMECARE LTD,528.00,LD LTS 18-64,HOMECARE - SPOT,2103670877,1000070695
02.06.2023,ADULT SOCIAL CARE,PEOPLE PLUS GROUP LTD (INDEPENDENT LIVING SERVICES),"-9,587.31",LD LTS 18-64,PAYMENTS TO CLIENTS (DIRECT PAYMENTS),2103671679,1000061886
02.06.2023,ADULT SOCIAL CARE,PEOPLE PLUS GROUP LTD (INDEPENDENT LIVING SERVICES),"-5,024.50",LD LTS 18-64,PAYMENTS TO CLIENTS (DIRECT PAYMENTS),2103671670,1000061886
02.06.2023,ADULT SOCIAL CARE,PEOPLE PLUS GROUP LTD (INDEPENDENT LIVING SERVICES),"-2,201.36",LD LTS 18-64,PAYMENTS TO CLIENTS (DIRECT PAYMENTS),2103671421,1000061886
02.06.2023,ADULT SOCIAL CARE,PEOPLE PLUS GROUP LTD (INDEPENDENT LIVING SERVICES),"-2,153.36",LD LTS 18-64,PAYMENTS TO CLIENTS (DIRECT PAYMENTS),2103671197,1000061886
02.06.2023,ADULT SOCIAL CARE,PEOPLE PLUS GROUP LTD (INDEPENDENT LIVING SERVICES),"-1,196.46",LD LTS 18-64,PAYMENTS TO CLIENTS (DIRECT PAYMENTS),2103670883,1000061886
02.06.2023,ADULT SOCIAL CARE,PEOPLE PLUS GROUP LTD (INDEPENDENT LIVING SERVICES),-936.93,LD LTS 18-64,PAYMENTS TO CLIENTS (DIRECT PAYMENTS),2103671177,1000061886
02.06.2023,ADULT SOCIAL CARE,PEOPLE PLUS GROUP LTD (INDEPENDENT LIVING SERVICES),-873.09,LD LTS 18-64,PAYMENTS TO CLIENTS (DIRECT PAYMENTS),2103671156,1000061886
02.06.2023,ADULT SOCIAL CARE,PEOPLE PLUS GROUP LTD (INDEPENDENT LIVING SERVICES),263.04,LD LTS 18-64,PAYMENTS TO CLIENTS (DIRECT PAYMENTS),2103671497,1000061886
02.06.2023,ADULT SOCIAL CARE,PEOPLE PLUS GROUP LTD (INDEPENDENT LIVING SERVICES),295.32,LD LTS 18-64,PAYMENTS TO CLIENTS (DIRECT PAYMENTS),2103671812,1000061886
02.06.2023,ADULT SOCIAL CARE,PEOPLE PLUS GROUP LTD (INDEPENDENT LIVING SERVICES),328.80,LD LTS 18-64,PAYMENTS TO CLIENTS (DIRECT PAYMENTS),2103671646,1000061886
02.06.2023,ADULT SOCIAL CARE,PEOPLE PLUS GROUP LTD (INDEPENDENT LIVING SERVICES),328.80,LD LTS 18-64,PAYMENTS TO CLIENTS (DIRECT PAYMENTS),2103671689,1000061886
02.06.2023,ADULT SOCIAL CARE,PEOPLE PLUS GROUP LTD (INDEPENDENT LIVING SERVICES),340.00,LD LTS 18-64,PAYMENTS TO CLIENTS (DIRECT PAYMENTS),2103671738,1000061886
02.06.2023,ADULT SOCIAL CARE,PEOPLE PLUS GROUP LTD (INDEPENDENT LIVING SERVICES),345.92,LD LTS 18-64,PAYMENTS TO CLIENTS (DIRECT PAYMENTS),2103671823,1000061886
02.06.2023,ADULT SOCIAL CARE,PEOPLE PLUS GROUP LTD (INDEPENDENT LIVING SERVICES),385.60,LD LTS 18-64,PAYMENTS TO CLIENTS (DIRECT PAYMENTS),2103671171,1000061886
02.06.2023,ADULT SOCIAL CARE,PEOPLE PLUS GROUP LTD (INDEPENDENT LIVING SERVICES),394.56,LD LTS 18-64,PAYMENTS TO CLIENTS (DIRECT PAYMENTS),2103670998,1000061886
02.06.2023,ADULT SOCIAL CARE,PEOPLE PLUS GROUP LTD (INDEPENDENT LIVING SERVICES),394.56,LD LTS 18-64,PAYMENTS TO CLIENTS (DIRECT PAYMENTS),2103671099,1000061886
02.06.2023,ADULT SOCIAL CARE,PEOPLE PLUS GROUP LTD (INDEPENDENT LIVING SERVICES),394.56,LD LTS 18-64,PAYMENTS TO CLIENTS (DIRECT PAYMENTS),2103671575,1000061886
02.06.2023,ADULT SOCIAL CARE,PEOPLE PLUS GROUP LTD (INDEPENDENT LIVING SERVICES),424.08,LD LTS 18-64,PAYMENTS TO CLIENTS (DIRECT PAYMENTS),2103671408,1000061886
02.06.2023,ADULT SOCIAL CARE,PEOPLE PLUS GROUP LTD (INDEPENDENT LIVING SERVICES),440.00,LD LTS 18-64,PAYMENTS TO CLIENTS (DIRECT PAYMENTS),2103671371,1000061886
02.06.2023,ADULT SOCIAL CARE,PEOPLE PLUS GROUP LTD (INDEPENDENT LIVING SERVICES),460.32,LD LTS 18-64,PAYMENTS TO CLIENTS (DIRECT PAYMENTS),2103671288,1000061886
02.06.2023,ADULT SOCIAL CARE,PEOPLE PLUS GROUP LTD (INDEPENDENT LIVING SERVICES),494.72,LD LTS 18-64,PAYMENTS TO CLIENTS (DIRECT PAYMENTS),2103671427,1000061886
02.06.2023,ADULT SOCIAL CARE,PEOPLE PLUS GROUP LTD (INDEPENDENT LIVING SERVICES),526.08,LD LTS 18-64,PAYMENTS TO CLIENTS (DIRECT PAYMENTS),2103671014,1000061886
02.06.2023,ADULT SOCIAL CARE,PEOPLE PLUS GROUP LTD (INDEPENDENT LIVING SERVICES),526.08,LD LTS 18-64,PAYMENTS TO CLIENTS (DIRECT PAYMENTS),2103671353,1000061886
02.06.2023,ADULT SOCIAL CARE,PEOPLE PLUS GROUP LTD (INDEPENDENT LIVING SERVICES),526.08,LD LTS 18-64,PAYMENTS TO CLIENTS (DIRECT PAYMENTS),2103671724,1000061886
02.06.2023,ADULT SOCIAL CARE,PEOPLE PLUS GROUP LTD (INDEPENDENT LIVING SERVICES),556.40,LD LTS 18-64,PAYMENTS TO CLIENTS (DIRECT PAYMENTS),2103671273,1000061886
02.06.2023,ADULT SOCIAL CARE,PEOPLE PLUS GROUP LTD (INDEPENDENT LIVING SERVICES),573.60,LD LTS 18-64,PAYMENTS TO CLIENTS (DIRECT PAYMENTS),2103670962,1000061886
02.06.2023,ADULT SOCIAL CARE,PEOPLE PLUS GROUP LTD (INDEPENDENT LIVING SERVICES),604.56,LD LTS 18-64,PAYMENTS TO CLIENTS (DIRECT PAYMENTS),2103671822,1000061886
02.06.2023,ADULT SOCIAL CARE,PEOPLE PLUS GROUP LTD (INDEPENDENT LIVING SERVICES),618.40,LD LTS 18-64,PAYMENTS TO CLIENTS (DIRECT PAYMENTS),2103671366,1000061886
02.06.2023,ADULT SOCIAL CARE,PEOPLE PLUS GROUP LTD (INDEPENDENT LIVING SERVICES),641.16,LD LTS 18-64,PAYMENTS TO CLIENTS (DIRECT PAYMENTS),2103671640,1000061886
02.06.2023,ADULT SOCIAL CARE,PEOPLE PLUS GROUP LTD (INDEPENDENT LIVING SERVICES),657.60,LD LTS 18-64,PAYMENTS TO CLIENTS (DIRECT PAYMENTS),2103671026,1000061886
02.06.2023,ADULT SOCIAL CARE,PEOPLE PLUS GROUP LTD (INDEPENDENT LIVING SERVICES),680.00,LD LTS 18-64,PAYMENTS TO CLIENTS (DIRECT PAYMENTS),2103671596,1000061886
02.06.2023,ADULT SOCIAL CARE,PEOPLE PLUS GROUP LTD (INDEPENDENT LIVING SERVICES),704.00,LD LTS 18-64,PAYMENTS TO CLIENTS (DIRECT PAYMENTS),2103671169,1000061886
02.06.2023,ADULT SOCIAL CARE,PEOPLE PLUS GROUP LTD (INDEPENDENT LIVING SERVICES),708.16,LD LTS 18-64,PAYMENTS TO CLIENTS (DIRECT PAYMENTS),2103670987,1000061886
02.06.2023,ADULT SOCIAL CARE,PEOPLE PLUS GROUP LTD (INDEPENDENT LIVING SERVICES),780.00,LD LTS 18-64,PAYMENTS TO CLIENTS (DIRECT PAYMENTS),2103671789,1000061886
02.06.2023,ADULT SOCIAL CARE,PEOPLE PLUS GROUP LTD (INDEPENDENT LIVING SERVICES),784.96,LD LTS 18-64,PAYMENTS TO CLIENTS (DIRECT PAYMENTS),2103671414,1000061886
02.06.2023,ADULT SOCIAL CARE,PEOPLE PLUS GROUP LTD (INDEPENDENT LIVING SERVICES),789.12,LD LTS 18-64,PAYMENTS TO CLIENTS (DIRECT PAYMENTS),2103671031,1000061886
02.06.2023,ADULT SOCIAL CARE,PEOPLE PLUS GROUP LTD (INDEPENDENT LIVING SERVICES),800.00,LD LTS 18-64,PAYMENTS TO CLIENTS (DIRECT PAYMENTS),2103671594,1000061886
02.06.2023,ADULT SOCIAL CARE,PEOPLE PLUS GROUP LTD (INDEPENDENT LIVING SERVICES),860.40,LD LTS 18-64,PAYMENTS TO CLIENTS (DIRECT PAYMENTS),2103671620,1000061886
02.06.2023,ADULT SOCIAL CARE,PEOPLE PLUS GROUP LTD (INDEPENDENT LIVING SERVICES),873.13,LD LTS 18-64,PAYMENTS TO CLIENTS (DIRECT PAYMENTS),2103671114,1000061886
02.06.2023,ADULT SOCIAL CARE,PEOPLE PLUS GROUP LTD (INDEPENDENT LIVING SERVICES),917.76,LD LTS 18-64,PAYMENTS TO CLIENTS (DIRECT PAYMENTS),2103671200,1000061886
02.06.2023,ADULT SOCIAL CARE,PEOPLE PLUS GROUP LTD (INDEPENDENT LIVING SERVICES),961.08,LD LTS 18-64,PAYMENTS TO CLIENTS (DIRECT PAYMENTS),2103671628,1000061886
02.06.2023,ADULT SOCIAL CARE,PEOPLE PLUS GROUP LTD (INDEPENDENT LIVING SERVICES),975.00,LD LTS 18-64,PAYMENTS TO CLIENTS (DIRECT PAYMENTS),2103671411,1000061886
02.06.2023,ADULT SOCIAL CARE,PEOPLE PLUS GROUP LTD (INDEPENDENT LIVING SERVICES),978.00,LD LTS 18-64,PAYMENTS TO CLIENTS (DIRECT PAYMENTS),2103671077,1000061886
02.06.2023,ADULT SOCIAL CARE,PEOPLE PLUS GROUP LTD (INDEPENDENT LIVING SERVICES),978.32,LD LTS 18-64,PAYMENTS TO CLIENTS (DIRECT PAYMENTS),2103671358,1000061886
02.06.2023,ADULT SOCIAL CARE,PEOPLE PLUS GROUP LTD (INDEPENDENT LIVING SERVICES),"1,019.28",LD LTS 18-64,PAYMENTS TO CLIENTS (DIRECT PAYMENTS),2103671035,1000061886
02.06.2023,ADULT SOCIAL CARE,PEOPLE PLUS GROUP LTD (INDEPENDENT LIVING SERVICES),"1,052.16",LD LTS 18-64,PAYMENTS TO CLIENTS (DIRECT PAYMENTS),2103670917,1000061886
02.06.2023,ADULT SOCIAL CARE,PEOPLE PLUS GROUP LTD (INDEPENDENT LIVING SERVICES),"1,068.60",LD LTS 18-64,PAYMENTS TO CLIENTS (DIRECT PAYMENTS),2103671783,1000061886
02.06.2023,ADULT SOCIAL CARE,PEOPLE PLUS GROUP LTD (INDEPENDENT LIVING SERVICES),"1,166.32",LD LTS 18-64,PAYMENTS TO CLIENTS (DIRECT PAYMENTS),2103671218,1000061886
02.06.2023,ADULT SOCIAL CARE,PEOPLE PLUS GROUP LTD (INDEPENDENT LIVING SERVICES),"1,170.00",LD LTS 18-64,PAYMENTS TO CLIENTS (DIRECT PAYMENTS),2103671179,1000061886
02.06.2023,ADULT SOCIAL CARE,PEOPLE PLUS GROUP LTD (INDEPENDENT LIVING SERVICES),"1,179.00",LD LTS 18-64,PAYMENTS TO CLIENTS (DIRECT PAYMENTS),2103671415,1000061886
02.06.2023,ADULT SOCIAL CARE,PEOPLE PLUS GROUP LTD (INDEPENDENT LIVING SERVICES),"1,179.12",LD LTS 18-64,PAYMENTS TO CLIENTS (DIRECT PAYMENTS),2103671601,1000061886
02.06.2023,ADULT SOCIAL CARE,PEOPLE PLUS GROUP LTD (INDEPENDENT LIVING SERVICES),"1,183.68",LD LTS 18-64,PAYMENTS TO CLIENTS (DIRECT PAYMENTS),2103670933,1000061886
02.06.2023,ADULT SOCIAL CARE,PEOPLE PLUS GROUP LTD (INDEPENDENT LIVING SERVICES),"1,183.68",LD LTS 18-64,PAYMENTS TO CLIENTS (DIRECT PAYMENTS),2103671386,1000061886
02.06.2023,ADULT SOCIAL CARE,PEOPLE PLUS GROUP LTD (INDEPENDENT LIVING SERVICES),"1,249.44",LD LTS 18-64,PAYMENTS TO CLIENTS (DIRECT PAYMENTS),2103671293,1000061886
02.06.2023,ADULT SOCIAL CARE,PEOPLE PLUS GROUP LTD (INDEPENDENT LIVING SERVICES),"1,252.53",LD LTS 18-64,PAYMENTS TO CLIENTS (DIRECT PAYMENTS),2103671185,1000061886
02.06.2023,ADULT SOCIAL CARE,PEOPLE PLUS GROUP LTD (INDEPENDENT LIVING SERVICES),"1,274.64",LD LTS 18-64,PAYMENTS TO CLIENTS (DIRECT PAYMENTS),2103670938,1000061886
02.06.2023,ADULT SOCIAL CARE,PEOPLE PLUS GROUP LTD (INDEPENDENT LIVING SERVICES),"1,315.20",LD LTS 18-64,PAYMENTS TO CLIENTS (DIRECT PAYMENTS),2103671707,1000061886
02.06.2023,ADULT SOCIAL CARE,PEOPLE PLUS GROUP LTD (INDEPENDENT LIVING SERVICES),"1,353.64",LD LTS 18-64,PAYMENTS TO CLIENTS (DIRECT PAYMENTS),2103671198,1000061886
02.06.2023,ADULT SOCIAL CARE,PEOPLE PLUS GROUP LTD (INDEPENDENT LIVING SERVICES),"1,386.10",LD LTS 18-64,PAYMENTS TO CLIENTS (DIRECT PAYMENTS),2103671350,1000061886
02.06.2023,ADULT SOCIAL CARE,PEOPLE PLUS GROUP LTD (INDEPENDENT LIVING SERVICES),"1,431.16",LD LTS 18-64,PAYMENTS TO CLIENTS (DIRECT PAYMENTS),2103671787,1000061886
02.06.2023,ADULT SOCIAL CARE,PEOPLE PLUS GROUP LTD (INDEPENDENT LIVING SERVICES),"1,529.60",LD LTS 18-64,PAYMENTS TO CLIENTS (DIRECT PAYMENTS),2103670937,1000061886
02.06.2023,ADULT SOCIAL CARE,PEOPLE PLUS GROUP LTD (INDEPENDENT LIVING SERVICES),"1,640.96",LD LTS 18-64,PAYMENTS TO CLIENTS (DIRECT PAYMENTS),2103671736,1000061886
02.06.2023,ADULT SOCIAL CARE,PEOPLE PLUS GROUP LTD (INDEPENDENT LIVING SERVICES),"1,709.76",LD LTS 18-64,PAYMENTS TO CLIENTS (DIRECT PAYMENTS),2103671290,1000061886
02.06.2023,ADULT SOCIAL CARE,PEOPLE PLUS GROUP LTD (INDEPENDENT LIVING SERVICES),"1,714.56",LD LTS 18-64,PAYMENTS TO CLIENTS (DIRECT PAYMENTS),2103671419,1000061886
02.06.2023,ADULT SOCIAL CARE,PEOPLE PLUS GROUP LTD (INDEPENDENT LIVING SERVICES),"1,747.34",LD LTS 18-64,PAYMENTS TO CLIENTS (DIRECT PAYMENTS),2103671520,1000061886
02.06.2023,ADULT SOCIAL CARE,PEOPLE PLUS GROUP LTD (INDEPENDENT LIVING SERVICES),"1,795.60",LD LTS 18-64,PAYMENTS TO CLIENTS (DIRECT PAYMENTS),2103671798,1000061886
02.06.2023,ADULT SOCIAL CARE,PEOPLE PLUS GROUP LTD (INDEPENDENT LIVING SERVICES),"1,798.46",LD LTS 18-64,PAYMENTS TO CLIENTS (DIRECT PAYMENTS),2103671543,1000061886
02.06.2023,ADULT SOCIAL CARE,PEOPLE PLUS GROUP LTD (INDEPENDENT LIVING SERVICES),"1,895.20",LD LTS 18-64,PAYMENTS TO CLIENTS (DIRECT PAYMENTS),2103671826,1000061886
02.06.2023,ADULT SOCIAL CARE,PEOPLE PLUS GROUP LTD (INDEPENDENT LIVING SERVICES),"1,906.12",LD LTS 18-64,PAYMENTS TO CLIENTS (DIRECT PAYMENTS),2103670887,1000061886
02.06.2023,ADULT SOCIAL CARE,PEOPLE PLUS GROUP LTD (INDEPENDENT LIVING SERVICES),"1,972.80",LD LTS 18-64,PAYMENTS TO CLIENTS (DIRECT PAYMENTS),2103670929,1000061886
02.06.2023,ADULT SOCIAL CARE,PEOPLE PLUS GROUP LTD (INDEPENDENT LIVING SERVICES),"1,972.80",LD LTS 18-64,PAYMENTS TO CLIENTS (DIRECT PAYMENTS),2103671634,1000061886
02.06.2023,ADULT SOCIAL CARE,PEOPLE PLUS GROUP LTD (INDEPENDENT LIVING SERVICES),"2,017.92",LD LTS 18-64,PAYMENTS TO CLIENTS (DIRECT PAYMENTS),2103671219,1000061886
02.06.2023,ADULT SOCIAL CARE,PEOPLE PLUS GROUP LTD (INDEPENDENT LIVING SERVICES),"2,191.20",LD LTS 18-64,PAYMENTS TO CLIENTS (DIRECT PAYMENTS),2103671490,1000061886
02.06.2023,ADULT SOCIAL CARE,PEOPLE PLUS GROUP LTD (INDEPENDENT LIVING SERVICES),"2,198.80",LD LTS 18-64,PAYMENTS TO CLIENTS (DIRECT PAYMENTS),2103671255,1000061886
02.06.2023,ADULT SOCIAL CARE,PEOPLE PLUS GROUP LTD (INDEPENDENT LIVING SERVICES),"2,301.60",LD LTS 18-64,PAYMENTS TO CLIENTS (DIRECT PAYMENTS),2103671760,1000061886
02.06.2023,ADULT SOCIAL CARE,PEOPLE PLUS GROUP LTD (INDEPENDENT LIVING SERVICES),"2,364.56",LD LTS 18-64,PAYMENTS TO CLIENTS (DIRECT PAYMENTS),2103671322,1000061886
02.06.2023,ADULT SOCIAL CARE,PEOPLE PLUS GROUP LTD (INDEPENDENT LIVING SERVICES),"2,367.36",LD LTS 18-64,PAYMENTS TO CLIENTS (DIRECT PAYMENTS),2103671688,1000061886
02.06.2023,ADULT SOCIAL CARE,PEOPLE PLUS GROUP LTD (INDEPENDENT LIVING SERVICES),"2,583.92",LD LTS 18-64,PAYMENTS TO CLIENTS (DIRECT PAYMENTS),2103671148,1000061886
02.06.2023,ADULT SOCIAL CARE,PEOPLE PLUS GROUP LTD (INDEPENDENT LIVING SERVICES),"2,781.72",LD LTS 18-64,PAYMENTS TO CLIENTS (DIRECT PAYMENTS),2103671135,1000061886
02.06.2023,ADULT SOCIAL CARE,PEOPLE PLUS GROUP LTD (INDEPENDENT LIVING SERVICES),"2,827.28",LD LTS 18-64,PAYMENTS TO CLIENTS (DIRECT PAYMENTS),2103671663,1000061886
02.06.2023,ADULT SOCIAL CARE,PEOPLE PLUS GROUP LTD (INDEPENDENT LIVING SERVICES),"2,988.48",LD LTS 18-64,PAYMENTS TO CLIENTS (DIRECT PAYMENTS),2103671791,1000061886
02.06.2023,ADULT SOCIAL CARE,PEOPLE PLUS GROUP LTD (INDEPENDENT LIVING SERVICES),"3,020.96",LD LTS 18-64,PAYMENTS TO CLIENTS (DIRECT PAYMENTS),2103671256,1000061886
02.06.2023,ADULT SOCIAL CARE,PEOPLE PLUS GROUP LTD (INDEPENDENT LIVING SERVICES),"3,080.96",LD LTS 18-64,PAYMENTS TO CLIENTS (DIRECT PAYMENTS),2103671316,1000061886
02.06.2023,ADULT SOCIAL CARE,PEOPLE PLUS GROUP LTD (INDEPENDENT LIVING SERVICES),"3,123.60",LD LTS 18-64,PAYMENTS TO CLIENTS (DIRECT PAYMENTS),2103671016,1000061886
02.06.2023,ADULT SOCIAL CARE,PEOPLE PLUS GROUP LTD (INDEPENDENT LIVING SERVICES),"4,027.93",LD LTS 18-64,PAYMENTS TO CLIENTS (DIRECT PAYMENTS),2103671690,1000061886
02.06.2023,ADULT SOCIAL CARE,PEOPLE PLUS GROUP LTD (INDEPENDENT LIVING SERVICES),"4,932.00",LD LTS 18-64,PAYMENTS TO CLIENTS (DIRECT PAYMENTS),2103671311,1000061886
02.06.2023,ADULT SOCIAL CARE,PEOPLE PLUS GROUP LTD (INDEPENDENT LIVING SERVICES),"5,353.60",LD LTS 18-64,PAYMENTS TO CLIENTS (DIRECT PAYMENTS),2103671199,1000061886
02.06.2023,ADULT SOCIAL CARE,PEOPLE PLUS GROUP LTD (INDEPENDENT LIVING SERVICES),"5,940.80",LD LTS 18-64,PAYMENTS TO CLIENTS (DIRECT PAYMENTS),2103671420,1000061886
02.06.2023,ADULT SOCIAL CARE,PEOPLE PLUS GROUP LTD (INDEPENDENT LIVING SERVICES),"6,075.05",LD LTS 18-64,PAYMENTS TO CLIENTS (DIRECT PAYMENTS),2103671231,1000061886
02.06.2023,ADULT SOCIAL CARE,PEOPLE PLUS GROUP LTD (INDEPENDENT LIVING SERVICES),"7,644.60",LD LTS 18-64,PAYMENTS TO CLIENTS (DIRECT PAYMENTS),2103671005,1000061886
02.06.2023,ADULT SOCIAL CARE,PEOPLE PLUS GROUP LTD (INDEPENDENT LIVING SERVICES),"12,542.72",LD LTS 18-64,PAYMENTS TO CLIENTS (DIRECT PAYMENTS),2103671841,1000061886
02.06.2023,ADULT SOCIAL CARE,PEOPLE PLUS GROUP LTD (INDEPENDENT LIVING SERVICES),"12,619.20",LD LTS 18-64,PAYMENTS TO CLIENTS (DIRECT PAYMENTS),2103671162,1000061886
02.06.2023,ADULT SOCIAL CARE,PEOPLE PLUS GROUP LTD (INDEPENDENT LIVING SERVICES),"12,619.20",LD LTS 18-64,PAYMENTS TO CLIENTS (DIRECT PAYMENTS),2103671163,1000061886
02.06.2023,ADULT SOCIAL CARE,PEOPLE PLUS GROUP LTD (INDEPENDENT LIVING SERVICES),"13,117.52",LD LTS 18-64,PAYMENTS TO CLIENTS (DIRECT PAYMENTS),2103671150,1000061886
02.06.2023,ADULT SOCIAL CARE,FRESH IDEAS & SOLUTIONS SERVICES CIC,"-10,098.00",LD LTS 18-64,PAYMENTS TO CLIENTS (DIRECT PAYMENTS),2103671585,1000070832
02.06.2023,ADULT SOCIAL CARE,FRESH IDEAS & SOLUTIONS SERVICES CIC,920.64,LD LTS 18-64,PAYMENTS TO CLIENTS (DIRECT PAYMENTS),2103671387,1000070832
02.06.2023,ADULT SOCIAL CARE,FRESH IDEAS & SOLUTIONS SERVICES CIC,"1,061.52",LD LTS 18-64,PAYMENTS TO CLIENTS (DIRECT PAYMENTS),2103670986,1000070832
02.06.2023,ADULT SOCIAL CARE,FRESH IDEAS & SOLUTIONS SERVICES CIC,"1,223.68",LD LTS 18-64,PAYMENTS TO CLIENTS (DIRECT PAYMENTS),2103671567,1000070832
02.06.2023,ADULT SOCIAL CARE,FRESH IDEAS & SOLUTIONS SERVICES CIC,"1,869.52",LD LTS 18-64,PAYMENTS TO CLIENTS (DIRECT PAYMENTS),2103671054,1000070832
02.06.2023,ADULT SOCIAL CARE,PEOPLEPLUS GROUP LTD,"2,672.13",LD LTS 18-64,PAYMENTS TO CLIENTS (DIRECT PAYMENTS),2103671091,1000076642
02.06.2023,ADULT SOCIAL CARE,REDACTED PERSONAL DATA,"-112,326.98",LD LTS 18-64,PAYMENTS TO CLIENTS (DIRECT PAYMENTS),REDACTED,REDACTED
02.06.2023,ADULT SOCIAL CARE,REDACTED PERSONAL DATA,"-99,000.60",LD LTS 18-64,PAYMENTS TO CLIENTS (DIRECT PAYMENTS),REDACTED,REDACTED
02.06.2023,ADULT SOCIAL CARE,REDACTED PERSONAL DATA,300.00,LD LTS 18-64,PAYMENTS TO CLIENTS (DIRECT PAYMENTS),REDACTED,REDACTED
02.06.2023,ADULT SOCIAL CARE,REDACTED PERSONAL DATA,305.92,LD LTS 18-64,PAYMENTS TO CLIENTS (DIRECT PAYMENTS),REDACTED,REDACTED
02.06.2023,ADULT SOCIAL CARE,REDACTED PERSONAL DATA,309.20,LD LTS 18-64,PAYMENTS TO CLIENTS (DIRECT PAYMENTS),REDACTED,REDACTED
02.06.2023,ADULT SOCIAL CARE,REDACTED PERSONAL DATA,320.00,LD LTS 18-64,PAYMENTS TO CLIENTS (DIRECT PAYMENTS),REDACTED,REDACTED
02.06.2023,ADULT SOCIAL CARE,REDACTED PERSONAL DATA,325.92,LD LTS 18-64,PAYMENTS TO CLIENTS (DIRECT PAYMENTS),REDACTED,REDACTED
02.06.2023,ADULT SOCIAL CARE,REDACTED PERSONAL DATA,345.92,LD LTS 18-64,PAYMENTS TO CLIENTS (DIRECT PAYMENTS),REDACTED,REDACTED
02.06.2023,ADULT SOCIAL CARE,REDACTED PERSONAL DATA,381.60,LD LTS 18-64,PAYMENTS TO CLIENTS (DIRECT PAYMENTS),REDACTED,REDACTED
02.06.2023,ADULT SOCIAL CARE,REDACTED PERSONAL DATA,440.64,LD LTS 18-64,PAYMENTS TO CLIENTS (DIRECT PAYMENTS),REDACTED,REDACTED
02.06.2023,ADULT SOCIAL CARE,REDACTED PERSONAL DATA,460.04,LD LTS 18-64,PAYMENTS TO CLIENTS (DIRECT PAYMENTS),REDACTED,REDACTED
02.06.2023,ADULT SOCIAL CARE,REDACTED PERSONAL DATA,465.36,LD LTS 18-64,PAYMENTS TO CLIENTS (DIRECT PAYMENTS),REDACTED,REDACTED
02.06.2023,ADULT SOCIAL CARE,REDACTED PERSONAL DATA,535.36,LD LTS 18-64,PAYMENTS TO CLIENTS (DIRECT PAYMENTS),REDACTED,REDACTED
02.06.2023,ADULT SOCIAL CARE,REDACTED PERSONAL DATA,540.60,LD LTS 18-64,PAYMENTS TO CLIENTS (DIRECT PAYMENTS),REDACTED,REDACTED
02.06.2023,ADULT SOCIAL CARE,REDACTED PERSONAL DATA,559.36,LD LTS 18-64,PAYMENTS TO CLIENTS (DIRECT PAYMENTS),REDACTED,REDACTED
02.06.2023,ADULT SOCIAL CARE,REDACTED PERSONAL DATA,562.52,LD LTS 18-64,PAYMENTS TO CLIENTS (DIRECT PAYMENTS),REDACTED,REDACTED
02.06.2023,ADULT SOCIAL CARE,REDACTED PERSONAL DATA,580.52,LD LTS 18-64,PAYMENTS TO CLIENTS (DIRECT PAYMENTS),REDACTED,REDACTED
02.06.2023,ADULT SOCIAL CARE,REDACTED PERSONAL DATA,600.00,LD LTS 18-64,PAYMENTS TO CLIENTS (DIRECT PAYMENTS),REDACTED,REDACTED
02.06.2023,ADULT SOCIAL CARE,REDACTED PERSONAL DATA,611.84,LD LTS 18-64,PAYMENTS TO CLIENTS (DIRECT PAYMENTS),REDACTED,REDACTED
02.06.2023,ADULT SOCIAL CARE,REDACTED PERSONAL DATA,620.00,LD LTS 18-64,PAYMENTS TO CLIENTS (DIRECT PAYMENTS),REDACTED,REDACTED
02.06.2023,ADULT SOCIAL CARE,REDACTED PERSONAL DATA,682.16,LD LTS 18-64,PAYMENTS TO CLIENTS (DIRECT PAYMENTS),REDACTED,REDACTED
02.06.2023,ADULT SOCIAL CARE,REDACTED PERSONAL DATA,723.36,LD LTS 18-64,PAYMENTS TO CLIENTS (DIRECT PAYMENTS),REDACTED,REDACTED
02.06.2023,ADULT SOCIAL CARE,REDACTED PERSONAL DATA,739.80,LD LTS 18-64,PAYMENTS TO CLIENTS (DIRECT PAYMENTS),REDACTED,REDACTED
02.06.2023,ADULT SOCIAL CARE,REDACTED PERSONAL DATA,764.80,LD LTS 18-64,PAYMENTS TO CLIENTS (DIRECT PAYMENTS),REDACTED,REDACTED
02.06.2023,ADULT SOCIAL CARE,REDACTED PERSONAL DATA,789.12,LD LTS 18-64,PAYMENTS TO CLIENTS (DIRECT PAYMENTS),REDACTED,REDACTED
02.06.2023,ADULT SOCIAL CARE,REDACTED PERSONAL DATA,809.12,LD LTS 18-64,PAYMENTS TO CLIENTS (DIRECT PAYMENTS),REDACTED,REDACTED
02.06.2023,ADULT SOCIAL CARE,REDACTED PERSONAL DATA,854.88,LD LTS 18-64,PAYMENTS TO CLIENTS (DIRECT PAYMENTS),REDACTED,REDACTED
02.06.2023,ADULT SOCIAL CARE,REDACTED PERSONAL DATA,854.88,LD LTS 18-64,PAYMENTS TO CLIENTS (DIRECT PAYMENTS),REDACTED,REDACTED
02.06.2023,ADULT SOCIAL CARE,REDACTED PERSONAL DATA,953.52,LD LTS 18-64,PAYMENTS TO CLIENTS (DIRECT PAYMENTS),REDACTED,REDACTED
02.06.2023,ADULT SOCIAL CARE,REDACTED PERSONAL DATA,973.60,LD LTS 18-64,PAYMENTS TO CLIENTS (DIRECT PAYMENTS),REDACTED,REDACTED
02.06.2023,ADULT SOCIAL CARE,REDACTED PERSONAL DATA,980.64,LD LTS 18-64,PAYMENTS TO CLIENTS (DIRECT PAYMENTS),REDACTED,REDACTED
02.06.2023,ADULT SOCIAL CARE,REDACTED PERSONAL DATA,"1,028.24",LD LTS 18-64,PAYMENTS TO CLIENTS (DIRECT PAYMENTS),REDACTED,REDACTED
02.06.2023,ADULT SOCIAL CARE,REDACTED PERSONAL DATA,"1,035.72",LD LTS 18-64,PAYMENTS TO CLIENTS (DIRECT PAYMENTS),REDACTED,REDACTED
02.06.2023,ADULT SOCIAL CARE,REDACTED PERSONAL DATA,"1,070.72",LD LTS 18-64,PAYMENTS TO CLIENTS (DIRECT PAYMENTS),REDACTED,REDACTED
02.06.2023,ADULT SOCIAL CARE,REDACTED PERSONAL DATA,"1,129.56",LD LTS 18-64,PAYMENTS TO CLIENTS (DIRECT PAYMENTS),REDACTED,REDACTED
02.06.2023,ADULT SOCIAL CARE,REDACTED PERSONAL DATA,"1,247.68",LD LTS 18-64,PAYMENTS TO CLIENTS (DIRECT PAYMENTS),REDACTED,REDACTED
02.06.2023,ADULT SOCIAL CARE,REDACTED PERSONAL DATA,"1,378.40",LD LTS 18-64,PAYMENTS TO CLIENTS (DIRECT PAYMENTS),REDACTED,REDACTED
02.06.2023,ADULT SOCIAL CARE,REDACTED PERSONAL DATA,"1,400.00",LD LTS 18-64,PAYMENTS TO CLIENTS (DIRECT PAYMENTS),REDACTED,REDACTED
02.06.2023,ADULT SOCIAL CARE,REDACTED PERSONAL DATA,"1,400.00",LD LTS 18-64,PAYMENTS TO CLIENTS (DIRECT PAYMENTS),REDACTED,REDACTED
02.06.2023,ADULT SOCIAL CARE,REDACTED PERSONAL DATA,"1,529.60",LD LTS 18-64,PAYMENTS TO CLIENTS (DIRECT PAYMENTS),REDACTED,REDACTED
02.06.2023,ADULT SOCIAL CARE,REDACTED PERSONAL DATA,"1,549.60",LD LTS 18-64,PAYMENTS TO CLIENTS (DIRECT PAYMENTS),REDACTED,REDACTED
02.06.2023,ADULT SOCIAL CARE,REDACTED PERSONAL DATA,"1,644.00",LD LTS 18-64,PAYMENTS TO CLIENTS (DIRECT PAYMENTS),REDACTED,REDACTED
02.06.2023,ADULT SOCIAL CARE,REDACTED PERSONAL DATA,"1,660.84",LD LTS 18-64,PAYMENTS TO CLIENTS (DIRECT PAYMENTS),REDACTED,REDACTED
02.06.2023,ADULT SOCIAL CARE,REDACTED PERSONAL DATA,"1,912.00",LD LTS 18-64,PAYMENTS TO CLIENTS (DIRECT PAYMENTS),REDACTED,REDACTED
02.06.2023,ADULT SOCIAL CARE,REDACTED PERSONAL DATA,"1,938.60",LD LTS 18-64,PAYMENTS TO CLIENTS (DIRECT PAYMENTS),REDACTED,REDACTED
02.06.2023,ADULT SOCIAL CARE,REDACTED PERSONAL DATA,"2,012.32",LD LTS 18-64,PAYMENTS TO CLIENTS (DIRECT PAYMENTS),REDACTED,REDACTED
02.06.2023,ADULT SOCIAL CARE,REDACTED PERSONAL DATA,"2,116.00",LD LTS 18-64,PAYMENTS TO CLIENTS (DIRECT PAYMENTS),REDACTED,REDACTED
02.06.2023,ADULT SOCIAL CARE,REDACTED PERSONAL DATA,"2,162.24",LD LTS 18-64,PAYMENTS TO CLIENTS (DIRECT PAYMENTS),REDACTED,REDACTED
02.06.2023,ADULT SOCIAL CARE,REDACTED PERSONAL DATA,"2,190.08",LD LTS 18-64,PAYMENTS TO CLIENTS (DIRECT PAYMENTS),REDACTED,REDACTED
02.06.2023,ADULT SOCIAL CARE,REDACTED PERSONAL DATA,"2,250.80",LD LTS 18-64,PAYMENTS TO CLIENTS (DIRECT PAYMENTS),REDACTED,REDACTED
02.06.2023,ADULT SOCIAL CARE,REDACTED PERSONAL DATA,"2,301.60",LD LTS 18-64,PAYMENTS TO CLIENTS (DIRECT PAYMENTS),REDACTED,REDACTED
02.06.2023,ADULT SOCIAL CARE,REDACTED PERSONAL DATA,"2,317.60",LD LTS 18-64,PAYMENTS TO CLIENTS (DIRECT PAYMENTS),REDACTED,REDACTED
02.06.2023,ADULT SOCIAL CARE,REDACTED PERSONAL DATA,"2,630.40",LD LTS 18-64,PAYMENTS TO CLIENTS (DIRECT PAYMENTS),REDACTED,REDACTED
02.06.2023,ADULT SOCIAL CARE,REDACTED PERSONAL DATA,"2,676.80",LD LTS 18-64,PAYMENTS TO CLIENTS (DIRECT PAYMENTS),REDACTED,REDACTED
02.06.2023,ADULT SOCIAL CARE,REDACTED PERSONAL DATA,"2,729.04",LD LTS 18-64,PAYMENTS TO CLIENTS (DIRECT PAYMENTS),REDACTED,REDACTED
02.06.2023,ADULT SOCIAL CARE,REDACTED PERSONAL DATA,"2,736.00",LD LTS 18-64,PAYMENTS TO CLIENTS (DIRECT PAYMENTS),REDACTED,REDACTED
02.06.2023,ADULT SOCIAL CARE,REDACTED PERSONAL DATA,"3,024.96",LD LTS 18-64,PAYMENTS TO CLIENTS (DIRECT PAYMENTS),REDACTED,REDACTED
02.06.2023,ADULT SOCIAL CARE,REDACTED PERSONAL DATA,"3,079.20",LD LTS 18-64,PAYMENTS TO CLIENTS (DIRECT PAYMENTS),REDACTED,REDACTED
02.06.2023,ADULT SOCIAL CARE,REDACTED PERSONAL DATA,"3,876.00",LD LTS 18-64,PAYMENTS TO CLIENTS (DIRECT PAYMENTS),REDACTED,REDACTED
02.06.2023,ADULT SOCIAL CARE,REDACTED PERSONAL DATA,"4,011.36",LD LTS 18-64,PAYMENTS TO CLIENTS (DIRECT PAYMENTS),REDACTED,REDACTED
02.06.2023,ADULT SOCIAL CARE,REDACTED PERSONAL DATA,"4,102.80",LD LTS 18-64,PAYMENTS TO CLIENTS (DIRECT PAYMENTS),REDACTED,REDACTED
02.06.2023,ADULT SOCIAL CARE,REDACTED PERSONAL DATA,"6,644.40",LD LTS 18-64,PAYMENTS TO CLIENTS (DIRECT PAYMENTS),REDACTED,REDACTED
02.06.2023,ADULT SOCIAL CARE,REDACTED PERSONAL DATA,"7,217.52",LD LTS 18-64,PAYMENTS TO CLIENTS (DIRECT PAYMENTS),REDACTED,REDACTED
02.06.2023,ADULT SOCIAL CARE,REDACTED PERSONAL DATA,"11,100.00",LD LTS 18-64,PAYMENTS TO CLIENTS (DIRECT PAYMENTS),REDACTED,REDACTED
02.06.2023,ADULT SOCIAL CARE,REDACTED PERSONAL DATA,"20,577.24",LD LTS 18-64,PAYMENTS TO CLIENTS (DIRECT PAYMENTS),REDACTED,REDACTED
02.06.2023,ADULT SOCIAL CARE,REDACTED PERSONAL DATA,"262,421.48",LD LTS 18-64,PAYMENTS TO CLIENTS (DIRECT PAYMENTS),REDACTED,REDACTED
02.06.2023,ADULT SOCIAL CARE,UNITED RESPONSE,"1,989.60",LD LTS 18-64,SUPPORTED LIVING,2103670555,1022934
02.06.2023,ADULT SOCIAL CARE,UNITED RESPONSE,"1,989.60",LD LTS 18-64,SUPPORTED LIVING,2103670556,1022934
02.06.2023,ADULT SOCIAL CARE,UNITED RESPONSE,"1,989.60",LD LTS 18-64,SUPPORTED LIVING,2103670557,1022934
02.06.2023,ADULT SOCIAL CARE,UNITED RESPONSE,"1,989.60",LD LTS 18-64,SUPPORTED LIVING,2103670558,1022934
02.06.2023,ADULT SOCIAL CARE,UNITED RESPONSE,"1,989.60",LD LTS 18-64,SUPPORTED LIVING,2103670561,1022934
02.06.2023,ADULT SOCIAL CARE,UNITED RESPONSE,"1,989.60",LD LTS 18-64,SUPPORTED LIVING,2103670562,1022934
02.06.2023,ADULT SOCIAL CARE,UNITED RESPONSE,"1,989.60",LD LTS 18-64,SUPPORTED LIVING,2103670565,1022934
02.06.2023,ADULT SOCIAL CARE,UNITED RESPONSE,"2,049.60",LD LTS 18-64,SUPPORTED LIVING,2103670559,1022934
02.06.2023,ADULT SOCIAL CARE,UNITED RESPONSE,"2,049.60",LD LTS 18-64,SUPPORTED LIVING,2103670560,1022934
02.06.2023,ADULT SOCIAL CARE,UNITED RESPONSE,"2,049.60",LD LTS 18-64,SUPPORTED LIVING,2103670563,1022934
02.06.2023,ADULT SOCIAL CARE,UNITED RESPONSE,"2,049.60",LD LTS 18-64,SUPPORTED LIVING,2103670564,1022934
02.06.2023,ADULT SOCIAL CARE,GRANGE FARM COMPLEX,"1,778.36",LD LTS 18-64,SUPPORTED LIVING,2103671395,11086081
02.06.2023,ADULT SOCIAL CARE,INSPIRE SUPPORT WORKERS LTD,298.36,LD LTS 18-64,SUPPORTED LIVING,2103670734,1000080725
02.06.2023,ADULT SOCIAL CARE,REDACTED PERSONAL DATA,"1,032.16",LD LTS 18-64,SUPPORTED LIVING,REDACTED,REDACTED
02.06.2023,ADULT SOCIAL CARE,PEOPLE PLUS GROUP LTD (INDEPENDENT LIVING SERVICES),263.04,LD LTS 18-64 AAD,PAYMENTS TO CLIENTS (DIRECT PAYMENTS),2103670949,1000061886
02.06.2023,ADULT SOCIAL CARE,PEOPLE PLUS GROUP LTD (INDEPENDENT LIVING SERVICES),263.04,LD LTS 18-64 AAD,PAYMENTS TO CLIENTS (DIRECT PAYMENTS),2103671498,1000061886
02.06.2023,ADULT SOCIAL CARE,PEOPLE PLUS GROUP LTD (INDEPENDENT LIVING SERVICES),723.36,LD LTS 18-64 AAD,PAYMENTS TO CLIENTS (DIRECT PAYMENTS),2103671565,1000061886
02.06.2023,ADULT SOCIAL CARE,PEOPLE PLUS GROUP LTD (INDEPENDENT LIVING SERVICES),982.88,LD LTS 18-64 AAD,PAYMENTS TO CLIENTS (DIRECT PAYMENTS),2103671338,1000061886
02.06.2023,ADULT SOCIAL CARE,PEOPLE PLUS GROUP LTD (INDEPENDENT LIVING SERVICES),"1,578.24",LD LTS 18-64 AAD,PAYMENTS TO CLIENTS (DIRECT PAYMENTS),2103670990,1000061886
02.06.2023,ADULT SOCIAL CARE,PEOPLE PLUS GROUP LTD (INDEPENDENT LIVING SERVICES),"1,759.04",LD LTS 18-64 AAD,PAYMENTS TO CLIENTS (DIRECT PAYMENTS),2103670910,1000061886
02.06.2023,ADULT SOCIAL CARE,PEOPLE PLUS GROUP LTD (INDEPENDENT LIVING SERVICES),"3,276.26",LD LTS 18-64 AAD,PAYMENTS TO CLIENTS (DIRECT PAYMENTS),2103671519,1000061886
02.06.2023,ADULT SOCIAL CARE,REDACTED PERSONAL DATA,348.80,LD LTS 18-64 AAD,PAYMENTS TO CLIENTS (DIRECT PAYMENTS),REDACTED,REDACTED
02.06.2023,ADULT SOCIAL CARE,REDACTED PERSONAL DATA,394.56,LD LTS 18-64 AAD,PAYMENTS TO CLIENTS (DIRECT PAYMENTS),REDACTED,REDACTED
02.06.2023,ADULT SOCIAL CARE,REDACTED PERSONAL DATA,591.84,LD LTS 18-64 AAD,PAYMENTS TO CLIENTS (DIRECT PAYMENTS),REDACTED,REDACTED
02.06.2023,ADULT SOCIAL CARE,REDACTED PERSONAL DATA,657.60,LD LTS 18-64 AAD,PAYMENTS TO CLIENTS (DIRECT PAYMENTS),REDACTED,REDACTED
02.06.2023,ADULT SOCIAL CARE,REDACTED PERSONAL DATA,986.40,LD LTS 18-64 AAD,PAYMENTS TO CLIENTS (DIRECT PAYMENTS),REDACTED,REDACTED
02.06.2023,ADULT SOCIAL CARE,REDACTED PERSONAL DATA,"2,251.52",LD LTS 18-64 AAD,PAYMENTS TO CLIENTS (DIRECT PAYMENTS),REDACTED,REDACTED
02.06.2023,ADULT SOCIAL CARE,PEOPLE PLUS GROUP LTD (INDEPENDENT LIVING SERVICES),785.28,LD LTS 65+,PAYMENTS TO CLIENTS (DIRECT PAYMENTS),2103671137,1000061886
02.06.2023,ADULT SOCIAL CARE,PEOPLE PLUS GROUP LTD (INDEPENDENT LIVING SERVICES),558.96,MEM LTS 18-64,PAYMENTS TO CLIENTS (DIRECT PAYMENTS),2103671043,1000061886
02.06.2023,ADULT SOCIAL CARE,PEOPLE PLUS GROUP LTD (INDEPENDENT LIVING SERVICES),"1,644.00",MEM LTS 18-64,PAYMENTS TO CLIENTS (DIRECT PAYMENTS),2103671525,1000061886
02.06.2023,ADULT SOCIAL CARE,ZOT LTD,340.00,MEM LTS 65+,CLIENT TRANSPORT,2103670800,1000082848
02.06.2023,ADULT SOCIAL CARE,PEOPLE PLUS GROUP LTD (INDEPENDENT LIVING SERVICES),-296.36,MEM LTS 65+,DISCRETIONARY FLEXIBLE FEES & INCOME,2103671847,1000061886
02.06.2023,ADULT SOCIAL CARE,REDACTED PERSONAL DATA,-337.68,MEM LTS 65+,DISCRETIONARY FLEXIBLE FEES & INCOME,REDACTED,REDACTED
02.06.2023,ADULT SOCIAL CARE,PEOPLE PLUS GROUP LTD (INDEPENDENT LIVING SERVICES),"-4,498.27",MEM LTS 65+,PAYMENTS TO CLIENTS (DIRECT PAYMENTS),2103671458,1000061886
02.06.2023,ADULT SOCIAL CARE,PEOPLE PLUS GROUP LTD (INDEPENDENT LIVING SERVICES),285.68,MEM LTS 65+,PAYMENTS TO CLIENTS (DIRECT PAYMENTS),2103671423,1000061886
02.06.2023,ADULT SOCIAL CARE,PEOPLE PLUS GROUP LTD (INDEPENDENT LIVING SERVICES),"2,531.76",MEM LTS 65+,PAYMENTS TO CLIENTS (DIRECT PAYMENTS),2103671633,1000061886
02.06.2023,ADULT SOCIAL CARE,PEOPLE PLUS GROUP LTD (INDEPENDENT LIVING SERVICES),"6,770.93",MEM LTS 65+,PAYMENTS TO CLIENTS (DIRECT PAYMENTS),2103671277,1000061886
02.06.2023,ADULT SOCIAL CARE,PEOPLEPLUS GROUP LTD,"1,201.92",MEM LTS 65+,PAYMENTS TO CLIENTS (DIRECT PAYMENTS),2103671571,1000076642
02.06.2023,ADULT SOCIAL CARE,REDACTED PERSONAL DATA,"3,164.72",MEM LTS 65+,PAYMENTS TO CLIENTS (DIRECT PAYMENTS),REDACTED,REDACTED
02.06.2023,ADULT SOCIAL CARE,CAREPOINT SERVICES LTD,495.56,MH LTS 18-64,HOMECARE - C&V,2103670766,1000087914
02.06.2023,ADULT SOCIAL CARE,CAREPOINT SERVICES LTD,724.28,MH LTS 18-64,HOMECARE - C&V,2103670788,1000087914
02.06.2023,ADULT SOCIAL CARE,PEOPLE PLUS GROUP LTD (INDEPENDENT LIVING SERVICES),-682.62,MH LTS 18-64,PAYMENTS TO CLIENTS (DIRECT PAYMENTS),2103671373,1000061886
02.06.2023,ADULT SOCIAL CARE,PEOPLE PLUS GROUP LTD (INDEPENDENT LIVING SERVICES),263.04,MH LTS 18-64,PAYMENTS TO CLIENTS (DIRECT PAYMENTS),2103670916,1000061886
02.06.2023,ADULT SOCIAL CARE,PEOPLE PLUS GROUP LTD (INDEPENDENT LIVING SERVICES),294.00,MH LTS 18-64,PAYMENTS TO CLIENTS (DIRECT PAYMENTS),2103671176,1000061886
02.06.2023,ADULT SOCIAL CARE,PEOPLE PLUS GROUP LTD (INDEPENDENT LIVING SERVICES),305.92,MH LTS 18-64,PAYMENTS TO CLIENTS (DIRECT PAYMENTS),2103671603,1000061886
02.06.2023,ADULT SOCIAL CARE,PEOPLE PLUS GROUP LTD (INDEPENDENT LIVING SERVICES),307.04,MH LTS 18-64,PAYMENTS TO CLIENTS (DIRECT PAYMENTS),2103671195,1000061886
02.06.2023,ADULT SOCIAL CARE,PEOPLE PLUS GROUP LTD (INDEPENDENT LIVING SERVICES),307.04,MH LTS 18-64,PAYMENTS TO CLIENTS (DIRECT PAYMENTS),2103671271,1000061886
02.06.2023,ADULT SOCIAL CARE,PEOPLE PLUS GROUP LTD (INDEPENDENT LIVING SERVICES),307.04,MH LTS 18-64,PAYMENTS TO CLIENTS (DIRECT PAYMENTS),2103671661,1000061886
02.06.2023,ADULT SOCIAL CARE,PEOPLE PLUS GROUP LTD (INDEPENDENT LIVING SERVICES),307.04,MH LTS 18-64,PAYMENTS TO CLIENTS (DIRECT PAYMENTS),2103671739,1000061886
02.06.2023,ADULT SOCIAL CARE,PEOPLE PLUS GROUP LTD (INDEPENDENT LIVING SERVICES),320.00,MH LTS 18-64,PAYMENTS TO CLIENTS (DIRECT PAYMENTS),2103671805,1000061886
02.06.2023,ADULT SOCIAL CARE,PEOPLE PLUS GROUP LTD (INDEPENDENT LIVING SERVICES),371.76,MH LTS 18-64,PAYMENTS TO CLIENTS (DIRECT PAYMENTS),2103671180,1000061886
02.06.2023,ADULT SOCIAL CARE,PEOPLE PLUS GROUP LTD (INDEPENDENT LIVING SERVICES),376.12,MH LTS 18-64,PAYMENTS TO CLIENTS (DIRECT PAYMENTS),2103671089,1000061886
02.06.2023,ADULT SOCIAL CARE,PEOPLE PLUS GROUP LTD (INDEPENDENT LIVING SERVICES),388.47,MH LTS 18-64,PAYMENTS TO CLIENTS (DIRECT PAYMENTS),2103671521,1000061886
02.06.2023,ADULT SOCIAL CARE,PEOPLE PLUS GROUP LTD (INDEPENDENT LIVING SERVICES),394.56,MH LTS 18-64,PAYMENTS TO CLIENTS (DIRECT PAYMENTS),2103671101,1000061886
02.06.2023,ADULT SOCIAL CARE,PEOPLE PLUS GROUP LTD (INDEPENDENT LIVING SERVICES),460.56,MH LTS 18-64,PAYMENTS TO CLIENTS (DIRECT PAYMENTS),2103671082,1000061886
02.06.2023,ADULT SOCIAL CARE,PEOPLE PLUS GROUP LTD (INDEPENDENT LIVING SERVICES),487.40,MH LTS 18-64,PAYMENTS TO CLIENTS (DIRECT PAYMENTS),2103670984,1000061886
02.06.2023,ADULT SOCIAL CARE,PEOPLE PLUS GROUP LTD (INDEPENDENT LIVING SERVICES),505.44,MH LTS 18-64,PAYMENTS TO CLIENTS (DIRECT PAYMENTS),2103671376,1000061886
02.06.2023,ADULT SOCIAL CARE,PEOPLE PLUS GROUP LTD (INDEPENDENT LIVING SERVICES),526.08,MH LTS 18-64,PAYMENTS TO CLIENTS (DIRECT PAYMENTS),2103671010,1000061886
02.06.2023,ADULT SOCIAL CARE,PEOPLE PLUS GROUP LTD (INDEPENDENT LIVING SERVICES),537.32,MH LTS 18-64,PAYMENTS TO CLIENTS (DIRECT PAYMENTS),2103671146,1000061886
02.06.2023,ADULT SOCIAL CARE,PEOPLE PLUS GROUP LTD (INDEPENDENT LIVING SERVICES),542.24,MH LTS 18-64,PAYMENTS TO CLIENTS (DIRECT PAYMENTS),2103671075,1000061886
02.06.2023,ADULT SOCIAL CARE,PEOPLE PLUS GROUP LTD (INDEPENDENT LIVING SERVICES),555.08,MH LTS 18-64,PAYMENTS TO CLIENTS (DIRECT PAYMENTS),2103671758,1000061886
02.06.2023,ADULT SOCIAL CARE,PEOPLE PLUS GROUP LTD (INDEPENDENT LIVING SERVICES),587.84,MH LTS 18-64,PAYMENTS TO CLIENTS (DIRECT PAYMENTS),2103671079,1000061886
02.06.2023,ADULT SOCIAL CARE,PEOPLE PLUS GROUP LTD (INDEPENDENT LIVING SERVICES),657.60,MH LTS 18-64,PAYMENTS TO CLIENTS (DIRECT PAYMENTS),2103671329,1000061886
02.06.2023,ADULT SOCIAL CARE,PEOPLE PLUS GROUP LTD (INDEPENDENT LIVING SERVICES),690.84,MH LTS 18-64,PAYMENTS TO CLIENTS (DIRECT PAYMENTS),2103671083,1000061886
02.06.2023,ADULT SOCIAL CARE,PEOPLE PLUS GROUP LTD (INDEPENDENT LIVING SERVICES),"1,052.16",MH LTS 18-64,PAYMENTS TO CLIENTS (DIRECT PAYMENTS),2103671508,1000061886
02.06.2023,ADULT SOCIAL CARE,PEOPLE PLUS GROUP LTD (INDEPENDENT LIVING SERVICES),"2,115.00",MH LTS 18-64,PAYMENTS TO CLIENTS (DIRECT PAYMENTS),2103671183,1000061886
02.06.2023,ADULT SOCIAL CARE,PEOPLE PLUS GROUP LTD (INDEPENDENT LIVING SERVICES),"2,447.36",MH LTS 18-64,PAYMENTS TO CLIENTS (DIRECT PAYMENTS),2103670888,1000061886
02.06.2023,ADULT SOCIAL CARE,FRESH IDEAS & SOLUTIONS SERVICES CIC,712.80,MH LTS 18-64,PAYMENTS TO CLIENTS (DIRECT PAYMENTS),2103670895,1000070832
02.06.2023,ADULT SOCIAL CARE,FRESH IDEAS & SOLUTIONS SERVICES CIC,968.64,MH LTS 18-64,PAYMENTS TO CLIENTS (DIRECT PAYMENTS),2103671744,1000070832
02.06.2023,ADULT SOCIAL CARE,BARRIE BOOKKEEPING & PAYROLL SOLUTIONS LTD,316.02,MH LTS 18-64,PAYMENTS TO CLIENTS (DIRECT PAYMENTS),2103671318,1000089211
02.06.2023,ADULT SOCIAL CARE,BARRIE BOOKKEEPING & PAYROLL SOLUTIONS LTD,870.01,MH LTS 18-64,PAYMENTS TO CLIENTS (DIRECT PAYMENTS),2103671763,1000089211
02.06.2023,ADULT SOCIAL CARE,BARRIE BOOKKEEPING & PAYROLL SOLUTIONS LTD,"1,118.95",MH LTS 18-64,PAYMENTS TO CLIENTS (DIRECT PAYMENTS),2103671529,1000089211
02.06.2023,ADULT SOCIAL CARE,BARRIE BOOKKEEPING & PAYROLL SOLUTIONS LTD,"1,427.22",MH LTS 18-64,PAYMENTS TO CLIENTS (DIRECT PAYMENTS),2103671319,1000089211
02.06.2023,ADULT SOCIAL CARE,REDACTED PERSONAL DATA,263.04,MH LTS 18-64,PAYMENTS TO CLIENTS (DIRECT PAYMENTS),REDACTED,REDACTED
02.06.2023,ADULT SOCIAL CARE,REDACTED PERSONAL DATA,328.00,MH LTS 18-64,PAYMENTS TO CLIENTS (DIRECT PAYMENTS),REDACTED,REDACTED
02.06.2023,ADULT SOCIAL CARE,REDACTED PERSONAL DATA,"2,675.84",MH LTS 18-64,PAYMENTS TO CLIENTS (DIRECT PAYMENTS),REDACTED,REDACTED
02.06.2023,ADULT SOCIAL CARE,CAREPOINT SERVICES LTD,"1,315.28",MH LTS 65+,HOMECARE - C&V,2103670793,1000087914
02.06.2023,ADULT SOCIAL CARE,PEOPLE PLUS GROUP LTD (INDEPENDENT LIVING SERVICES),263.04,MH LTS 65+,PAYMENTS TO CLIENTS (DIRECT PAYMENTS),2103671718,1000061886
02.06.2023,ADULT SOCIAL CARE,PEOPLE PLUS GROUP LTD (INDEPENDENT LIVING SERVICES),307.04,MH LTS 65+,PAYMENTS TO CLIENTS (DIRECT PAYMENTS),2103671152,1000061886
02.06.2023,ADULT SOCIAL CARE,PEOPLE PLUS GROUP LTD (INDEPENDENT LIVING SERVICES),348.36,MH LTS 65+,PAYMENTS TO CLIENTS (DIRECT PAYMENTS),2103671844,1000061886
02.06.2023,ADULT SOCIAL CARE,PEOPLE PLUS GROUP LTD (INDEPENDENT LIVING SERVICES),351.04,MH LTS 65+,PAYMENTS TO CLIENTS (DIRECT PAYMENTS),2103671189,1000061886
02.06.2023,ADULT SOCIAL CARE,PEOPLE PLUS GROUP LTD (INDEPENDENT LIVING SERVICES),361.68,MH LTS 65+,PAYMENTS TO CLIENTS (DIRECT PAYMENTS),2103671013,1000061886
02.06.2023,ADULT SOCIAL CARE,PEOPLE PLUS GROUP LTD (INDEPENDENT LIVING SERVICES),"1,188.60",MH LTS 65+,PAYMENTS TO CLIENTS (DIRECT PAYMENTS),2103671410,1000061886
02.06.2023,ADULT SOCIAL CARE,INSPIRE SUPPORT WORKERS LTD,374.40,MH LTS 65+,SUPPORTED LIVING,2103670731,1000080725
02.06.2023,ADULT SOCIAL CARE,KENT COUNTY COUNCIL - LASER,"1,242.86",ORIENT ST � RESPITE,SERVICE CHARGES,5902582566,1000012926
02.06.2023,ADULT SOCIAL CARE,KENT COUNTY COUNCIL - LASER,"1,316.27",ORIENT ST � RESPITE,SERVICE CHARGES,5902582562,1000012926
02.06.2023,ADULT SOCIAL CARE,CASTLE WATER LTD,335.35,ORIENT ST � RESPITE,SERVICE CHARGES,5902582518,1000078867
02.06.2023,ADULT SOCIAL CARE,PEOPLE PLUS GROUP LTD (INDEPENDENT LIVING SERVICES),555.08,PHB - SEL ICB,RECOVERABLE COSTS INCL. HEALTH,2103671038,1000061886
02.06.2023,ADULT SOCIAL CARE,PEOPLE PLUS GROUP LTD (INDEPENDENT LIVING SERVICES),"1,402.12",PHB - SEL ICB,RECOVERABLE COSTS INCL. HEALTH,2103671544,1000061886
02.06.2023,ADULT SOCIAL CARE,PEOPLE PLUS GROUP LTD (INDEPENDENT LIVING SERVICES),"1,577.60",PHB - SEL ICB,RECOVERABLE COSTS INCL. HEALTH,2103671600,1000061886
02.06.2023,ADULT SOCIAL CARE,PEOPLE PLUS GROUP LTD (INDEPENDENT LIVING SERVICES),"1,753.08",PHB - SEL ICB,RECOVERABLE COSTS INCL. HEALTH,2103671412,1000061886
02.06.2023,ADULT SOCIAL CARE,PEOPLE PLUS GROUP LTD (INDEPENDENT LIVING SERVICES),"4,137.92",PHB - SEL ICB,RECOVERABLE COSTS INCL. HEALTH,2103671799,1000061886
02.06.2023,ADULT SOCIAL CARE,PEOPLE PLUS GROUP LTD (INDEPENDENT LIVING SERVICES),"7,086.72",PHB - SEL ICB,RECOVERABLE COSTS INCL. HEALTH,2103671182,1000061886
02.06.2023,ADULT SOCIAL CARE,PENDERELS TRUST LTD,"12,016.32",PHB - SEL ICB,RECOVERABLE COSTS INCL. HEALTH,2103671448,1000075856
02.06.2023,ADULT SOCIAL CARE,REDACTED PERSONAL DATA,"-16,832.12",PHB - SEL ICB,RECOVERABLE COSTS INCL. HEALTH,REDACTED,REDACTED
02.06.2023,ADULT SOCIAL CARE,REDACTED PERSONAL DATA,"1,531.73",PHB - SEL ICB,RECOVERABLE COSTS INCL. HEALTH,REDACTED,REDACTED
02.06.2023,ADULT SOCIAL CARE,REDACTED PERSONAL DATA,"2,549.52",PHB - SEL ICB,RECOVERABLE COSTS INCL. HEALTH,REDACTED,REDACTED
02.06.2023,ADULT SOCIAL CARE,REDACTED PERSONAL DATA,"3,094.48",PHB - SEL ICB,RECOVERABLE COSTS INCL. HEALTH,REDACTED,REDACTED
02.06.2023,ADULT SOCIAL CARE,REDACTED PERSONAL DATA,"4,666.16",PHB - SEL ICB,RECOVERABLE COSTS INCL. HEALTH,REDACTED,REDACTED
02.06.2023,ADULT SOCIAL CARE,REDACTED PERSONAL DATA,"5,090.48",PHB - SEL ICB,RECOVERABLE COSTS INCL. HEALTH,REDACTED,REDACTED
02.06.2023,ADULT SOCIAL CARE,REDACTED PERSONAL DATA,"9,079.20",PHB - SEL ICB,RECOVERABLE COSTS INCL. HEALTH,REDACTED,REDACTED
02.06.2023,ADULT SOCIAL CARE,REDACTED PERSONAL DATA,"25,609.41",PHB - SEL ICB,RECOVERABLE COSTS INCL. HEALTH,REDACTED,REDACTED
02.06.2023,ADULT SOCIAL CARE,PEOPLE PLUS GROUP LTD (INDEPENDENT LIVING SERVICES),-448.20,PHY LTS 18-64,DISCRETIONARY FLEXIBLE FEES & INCOME,2103671835,1000061886
02.06.2023,ADULT SOCIAL CARE,PEOPLE PLUS GROUP LTD (INDEPENDENT LIVING SERVICES),-442.24,PHY LTS 18-64,DISCRETIONARY FLEXIBLE FEES & INCOME,2103671211,1000061886
02.06.2023,ADULT SOCIAL CARE,PEOPLE PLUS GROUP LTD (INDEPENDENT LIVING SERVICES),-344.08,PHY LTS 18-64,DISCRETIONARY FLEXIBLE FEES & INCOME,2103671840,1000061886
02.06.2023,ADULT SOCIAL CARE,PEOPLE PLUS GROUP LTD (INDEPENDENT LIVING SERVICES),-273.48,PHY LTS 18-64,DISCRETIONARY FLEXIBLE FEES & INCOME,2103671466,1000061886
02.06.2023,ADULT SOCIAL CARE,FRESH IDEAS & SOLUTIONS SERVICES CIC,-287.00,PHY LTS 18-64,DISCRETIONARY FLEXIBLE FEES & INCOME,2103670915,1000070832
02.06.2023,ADULT SOCIAL CARE,REDACTED PERSONAL DATA,-331.64,PHY LTS 18-64,DISCRETIONARY FLEXIBLE FEES & INCOME,REDACTED,REDACTED
02.06.2023,ADULT SOCIAL CARE,REDACTED PERSONAL DATA,-270.64,PHY LTS 18-64,DISCRETIONARY FLEXIBLE FEES & INCOME,REDACTED,REDACTED
02.06.2023,ADULT SOCIAL CARE,LONDON CARE LTD,276.31,PHY LTS 18-64,HOMECARE - C&V,2103670751,1000003398
02.06.2023,ADULT SOCIAL CARE,LONDON CARE LTD,571.64,PHY LTS 18-64,HOMECARE - C&V,2103670797,1000003398
02.06.2023,ADULT SOCIAL CARE,CAREPOINT SERVICES LTD,266.84,PHY LTS 18-64,HOMECARE - C&V,2103670776,1000087914
02.06.2023,ADULT SOCIAL CARE,CAREPOINT SERVICES LTD,266.84,PHY LTS 18-64,HOMECARE - C&V,2103670786,1000087914
02.06.2023,ADULT SOCIAL CARE,CAREPOINT SERVICES LTD,381.20,PHY LTS 18-64,HOMECARE - C&V,2103670782,1000087914
02.06.2023,ADULT SOCIAL CARE,CAREPOINT SERVICES LTD,386.07,PHY LTS 18-64,HOMECARE - C&V,2103670761,1000087914
02.06.2023,ADULT SOCIAL CARE,CAREPOINT SERVICES LTD,400.40,PHY LTS 18-64,HOMECARE - C&V,2103670784,1000087914
02.06.2023,ADULT SOCIAL CARE,CAREPOINT SERVICES LTD,609.92,PHY LTS 18-64,HOMECARE - C&V,2103670785,1000087914
02.06.2023,ADULT SOCIAL CARE,CAREPOINT SERVICES LTD,724.44,PHY LTS 18-64,HOMECARE - C&V,2103670781,1000087914
02.06.2023,ADULT SOCIAL CARE,CAREPOINT SERVICES LTD,"1,586.92",PHY LTS 18-64,HOMECARE - C&V,2103670779,1000087914
02.06.2023,ADULT SOCIAL CARE,CAREPOINT SERVICES LTD,"1,982.24",PHY LTS 18-64,HOMECARE - C&V,2103670773,1000087914
02.06.2023,ADULT SOCIAL CARE,CAREPOINT SERVICES LTD,"2,935.52",PHY LTS 18-64,HOMECARE - C&V,2103670769,1000087914
02.06.2023,ADULT SOCIAL CARE,CAREPOINT SERVICES LTD,"3,336.20",PHY LTS 18-64,HOMECARE - C&V,2103670764,1000087914
02.06.2023,ADULT SOCIAL CARE,PEOPLES CARE LTD,"1,901.25",PHY LTS 18-64,HOMECARE - SPOT,2103670735,1000077465
02.06.2023,ADULT SOCIAL CARE,PEOPLE PLUS GROUP LTD (INDEPENDENT LIVING SERVICES),"-3,741.32",PHY LTS 18-64,PAYMENTS TO CLIENTS (DIRECT PAYMENTS),2103671831,1000061886
02.06.2023,ADULT SOCIAL CARE,PEOPLE PLUS GROUP LTD (INDEPENDENT LIVING SERVICES),"-2,344.91",PHY LTS 18-64,PAYMENTS TO CLIENTS (DIRECT PAYMENTS),2103671381,1000061886
02.06.2023,ADULT SOCIAL CARE,PEOPLE PLUS GROUP LTD (INDEPENDENT LIVING SERVICES),"-1,925.24",PHY LTS 18-64,PAYMENTS TO CLIENTS (DIRECT PAYMENTS),2103671829,1000061886
02.06.2023,ADULT SOCIAL CARE,PEOPLE PLUS GROUP LTD (INDEPENDENT LIVING SERVICES),"-1,806.62",PHY LTS 18-64,PAYMENTS TO CLIENTS (DIRECT PAYMENTS),2103671821,1000061886
02.06.2023,ADULT SOCIAL CARE,PEOPLE PLUS GROUP LTD (INDEPENDENT LIVING SERVICES),"-1,782.62",PHY LTS 18-64,PAYMENTS TO CLIENTS (DIRECT PAYMENTS),2103671191,1000061886
02.06.2023,ADULT SOCIAL CARE,PEOPLE PLUS GROUP LTD (INDEPENDENT LIVING SERVICES),"-1,519.51",PHY LTS 18-64,PAYMENTS TO CLIENTS (DIRECT PAYMENTS),2103671664,1000061886
02.06.2023,ADULT SOCIAL CARE,PEOPLE PLUS GROUP LTD (INDEPENDENT LIVING SERVICES),"-1,140.57",PHY LTS 18-64,PAYMENTS TO CLIENTS (DIRECT PAYMENTS),2103671460,1000061886
02.06.2023,ADULT SOCIAL CARE,PEOPLE PLUS GROUP LTD (INDEPENDENT LIVING SERVICES),-897.28,PHY LTS 18-64,PAYMENTS TO CLIENTS (DIRECT PAYMENTS),2103671685,1000061886
02.06.2023,ADULT SOCIAL CARE,PEOPLE PLUS GROUP LTD (INDEPENDENT LIVING SERVICES),261.04,PHY LTS 18-64,PAYMENTS TO CLIENTS (DIRECT PAYMENTS),2103671790,1000061886
02.06.2023,ADULT SOCIAL CARE,PEOPLE PLUS GROUP LTD (INDEPENDENT LIVING SERVICES),263.04,PHY LTS 18-64,PAYMENTS TO CLIENTS (DIRECT PAYMENTS),2103671106,1000061886
02.06.2023,ADULT SOCIAL CARE,PEOPLE PLUS GROUP LTD (INDEPENDENT LIVING SERVICES),263.04,PHY LTS 18-64,PAYMENTS TO CLIENTS (DIRECT PAYMENTS),2103671528,1000061886
02.06.2023,ADULT SOCIAL CARE,PEOPLE PLUS GROUP LTD (INDEPENDENT LIVING SERVICES),345.24,PHY LTS 18-64,PAYMENTS TO CLIENTS (DIRECT PAYMENTS),2103670934,1000061886
02.06.2023,ADULT SOCIAL CARE,PEOPLE PLUS GROUP LTD (INDEPENDENT LIVING SERVICES),394.56,PHY LTS 18-64,PAYMENTS TO CLIENTS (DIRECT PAYMENTS),2103671642,1000061886
02.06.2023,ADULT SOCIAL CARE,PEOPLE PLUS GROUP LTD (INDEPENDENT LIVING SERVICES),493.20,PHY LTS 18-64,PAYMENTS TO CLIENTS (DIRECT PAYMENTS),2103671723,1000061886
02.06.2023,ADULT SOCIAL CARE,PEOPLE PLUS GROUP LTD (INDEPENDENT LIVING SERVICES),575.40,PHY LTS 18-64,PAYMENTS TO CLIENTS (DIRECT PAYMENTS),2103671694,1000061886
02.06.2023,ADULT SOCIAL CARE,PEOPLE PLUS GROUP LTD (INDEPENDENT LIVING SERVICES),636.00,PHY LTS 18-64,PAYMENTS TO CLIENTS (DIRECT PAYMENTS),2103671655,1000061886
02.06.2023,ADULT SOCIAL CARE,PEOPLE PLUS GROUP LTD (INDEPENDENT LIVING SERVICES),641.16,PHY LTS 18-64,PAYMENTS TO CLIENTS (DIRECT PAYMENTS),2103671000,1000061886
02.06.2023,ADULT SOCIAL CARE,PEOPLE PLUS GROUP LTD (INDEPENDENT LIVING SERVICES),657.60,PHY LTS 18-64,PAYMENTS TO CLIENTS (DIRECT PAYMENTS),2103671048,1000061886
02.06.2023,ADULT SOCIAL CARE,PEOPLE PLUS GROUP LTD (INDEPENDENT LIVING SERVICES),657.60,PHY LTS 18-64,PAYMENTS TO CLIENTS (DIRECT PAYMENTS),2103671097,1000061886
02.06.2023,ADULT SOCIAL CARE,PEOPLE PLUS GROUP LTD (INDEPENDENT LIVING SERVICES),690.48,PHY LTS 18-64,PAYMENTS TO CLIENTS (DIRECT PAYMENTS),2103671303,1000061886
02.06.2023,ADULT SOCIAL CARE,PEOPLE PLUS GROUP LTD (INDEPENDENT LIVING SERVICES),690.48,PHY LTS 18-64,PAYMENTS TO CLIENTS (DIRECT PAYMENTS),2103671629,1000061886
02.06.2023,ADULT SOCIAL CARE,PEOPLE PLUS GROUP LTD (INDEPENDENT LIVING SERVICES),690.48,PHY LTS 18-64,PAYMENTS TO CLIENTS (DIRECT PAYMENTS),2103671697,1000061886
02.06.2023,ADULT SOCIAL CARE,PEOPLE PLUS GROUP LTD (INDEPENDENT LIVING SERVICES),699.60,PHY LTS 18-64,PAYMENTS TO CLIENTS (DIRECT PAYMENTS),2103671361,1000061886
02.06.2023,ADULT SOCIAL CARE,PEOPLE PLUS GROUP LTD (INDEPENDENT LIVING SERVICES),706.92,PHY LTS 18-64,PAYMENTS TO CLIENTS (DIRECT PAYMENTS),2103671238,1000061886
02.06.2023,ADULT SOCIAL CARE,PEOPLE PLUS GROUP LTD (INDEPENDENT LIVING SERVICES),756.24,PHY LTS 18-64,PAYMENTS TO CLIENTS (DIRECT PAYMENTS),2103671120,1000061886
02.06.2023,ADULT SOCIAL CARE,PEOPLE PLUS GROUP LTD (INDEPENDENT LIVING SERVICES),789.12,PHY LTS 18-64,PAYMENTS TO CLIENTS (DIRECT PAYMENTS),2103671287,1000061886
02.06.2023,ADULT SOCIAL CARE,PEOPLE PLUS GROUP LTD (INDEPENDENT LIVING SERVICES),805.56,PHY LTS 18-64,PAYMENTS TO CLIENTS (DIRECT PAYMENTS),2103671749,1000061886
02.06.2023,ADULT SOCIAL CARE,PEOPLE PLUS GROUP LTD (INDEPENDENT LIVING SERVICES),822.00,PHY LTS 18-64,PAYMENTS TO CLIENTS (DIRECT PAYMENTS),2103671264,1000061886
02.06.2023,ADULT SOCIAL CARE,PEOPLE PLUS GROUP LTD (INDEPENDENT LIVING SERVICES),822.00,PHY LTS 18-64,PAYMENTS TO CLIENTS (DIRECT PAYMENTS),2103671314,1000061886
02.06.2023,ADULT SOCIAL CARE,PEOPLE PLUS GROUP LTD (INDEPENDENT LIVING SERVICES),822.00,PHY LTS 18-64,PAYMENTS TO CLIENTS (DIRECT PAYMENTS),2103671639,1000061886
02.06.2023,ADULT SOCIAL CARE,PEOPLE PLUS GROUP LTD (INDEPENDENT LIVING SERVICES),854.88,PHY LTS 18-64,PAYMENTS TO CLIENTS (DIRECT PAYMENTS),2103670959,1000061886
02.06.2023,ADULT SOCIAL CARE,PEOPLE PLUS GROUP LTD (INDEPENDENT LIVING SERVICES),904.20,PHY LTS 18-64,PAYMENTS TO CLIENTS (DIRECT PAYMENTS),2103670924,1000061886
02.06.2023,ADULT SOCIAL CARE,PEOPLE PLUS GROUP LTD (INDEPENDENT LIVING SERVICES),904.20,PHY LTS 18-64,PAYMENTS TO CLIENTS (DIRECT PAYMENTS),2103671468,1000061886
02.06.2023,ADULT SOCIAL CARE,PEOPLE PLUS GROUP LTD (INDEPENDENT LIVING SERVICES),904.20,PHY LTS 18-64,PAYMENTS TO CLIENTS (DIRECT PAYMENTS),2103671693,1000061886
02.06.2023,ADULT SOCIAL CARE,PEOPLE PLUS GROUP LTD (INDEPENDENT LIVING SERVICES),978.32,PHY LTS 18-64,PAYMENTS TO CLIENTS (DIRECT PAYMENTS),2103671820,1000061886
02.06.2023,ADULT SOCIAL CARE,PEOPLE PLUS GROUP LTD (INDEPENDENT LIVING SERVICES),"1,016.00",PHY LTS 18-64,PAYMENTS TO CLIENTS (DIRECT PAYMENTS),2103671187,1000061886
02.06.2023,ADULT SOCIAL CARE,PEOPLE PLUS GROUP LTD (INDEPENDENT LIVING SERVICES),"1,019.28",PHY LTS 18-64,PAYMENTS TO CLIENTS (DIRECT PAYMENTS),2103671705,1000061886
02.06.2023,ADULT SOCIAL CARE,PEOPLE PLUS GROUP LTD (INDEPENDENT LIVING SERVICES),"1,085.04",PHY LTS 18-64,PAYMENTS TO CLIENTS (DIRECT PAYMENTS),2103671321,1000061886
02.06.2023,ADULT SOCIAL CARE,PEOPLE PLUS GROUP LTD (INDEPENDENT LIVING SERVICES),"1,100.16",PHY LTS 18-64,PAYMENTS TO CLIENTS (DIRECT PAYMENTS),2103671153,1000061886
02.06.2023,ADULT SOCIAL CARE,PEOPLE PLUS GROUP LTD (INDEPENDENT LIVING SERVICES),"1,117.92",PHY LTS 18-64,PAYMENTS TO CLIENTS (DIRECT PAYMENTS),2103671708,1000061886
02.06.2023,ADULT SOCIAL CARE,PEOPLE PLUS GROUP LTD (INDEPENDENT LIVING SERVICES),"1,134.36",PHY LTS 18-64,PAYMENTS TO CLIENTS (DIRECT PAYMENTS),2103670973,1000061886
02.06.2023,ADULT SOCIAL CARE,PEOPLE PLUS GROUP LTD (INDEPENDENT LIVING SERVICES),"1,150.80",PHY LTS 18-64,PAYMENTS TO CLIENTS (DIRECT PAYMENTS),2103671385,1000061886
02.06.2023,ADULT SOCIAL CARE,PEOPLE PLUS GROUP LTD (INDEPENDENT LIVING SERVICES),"1,187.19",PHY LTS 18-64,PAYMENTS TO CLIENTS (DIRECT PAYMENTS),2103671665,1000061886
02.06.2023,ADULT SOCIAL CARE,PEOPLE PLUS GROUP LTD (INDEPENDENT LIVING SERVICES),"1,216.56",PHY LTS 18-64,PAYMENTS TO CLIENTS (DIRECT PAYMENTS),2103671532,1000061886
02.06.2023,ADULT SOCIAL CARE,PEOPLE PLUS GROUP LTD (INDEPENDENT LIVING SERVICES),"1,265.88",PHY LTS 18-64,PAYMENTS TO CLIENTS (DIRECT PAYMENTS),2103671121,1000061886
02.06.2023,ADULT SOCIAL CARE,PEOPLE PLUS GROUP LTD (INDEPENDENT LIVING SERVICES),"1,282.32",PHY LTS 18-64,PAYMENTS TO CLIENTS (DIRECT PAYMENTS),2103671715,1000061886
02.06.2023,ADULT SOCIAL CARE,PEOPLE PLUS GROUP LTD (INDEPENDENT LIVING SERVICES),"1,365.11",PHY LTS 18-64,PAYMENTS TO CLIENTS (DIRECT PAYMENTS),2103671513,1000061886
02.06.2023,ADULT SOCIAL CARE,PEOPLE PLUS GROUP LTD (INDEPENDENT LIVING SERVICES),"1,380.96",PHY LTS 18-64,PAYMENTS TO CLIENTS (DIRECT PAYMENTS),2103671636,1000061886
02.06.2023,ADULT SOCIAL CARE,PEOPLE PLUS GROUP LTD (INDEPENDENT LIVING SERVICES),"1,446.72",PHY LTS 18-64,PAYMENTS TO CLIENTS (DIRECT PAYMENTS),2103671637,1000061886
02.06.2023,ADULT SOCIAL CARE,PEOPLE PLUS GROUP LTD (INDEPENDENT LIVING SERVICES),"1,512.48",PHY LTS 18-64,PAYMENTS TO CLIENTS (DIRECT PAYMENTS),2103671651,1000061886
02.06.2023,ADULT SOCIAL CARE,PEOPLE PLUS GROUP LTD (INDEPENDENT LIVING SERVICES),"1,578.24",PHY LTS 18-64,PAYMENTS TO CLIENTS (DIRECT PAYMENTS),2103671332,1000061886
02.06.2023,ADULT SOCIAL CARE,PEOPLE PLUS GROUP LTD (INDEPENDENT LIVING SERVICES),"1,725.96",PHY LTS 18-64,PAYMENTS TO CLIENTS (DIRECT PAYMENTS),2103671804,1000061886
02.06.2023,ADULT SOCIAL CARE,PEOPLE PLUS GROUP LTD (INDEPENDENT LIVING SERVICES),"1,908.00",PHY LTS 18-64,PAYMENTS TO CLIENTS (DIRECT PAYMENTS),2103671413,1000061886
02.06.2023,ADULT SOCIAL CARE,PEOPLE PLUS GROUP LTD (INDEPENDENT LIVING SERVICES),"2,022.12",PHY LTS 18-64,PAYMENTS TO CLIENTS (DIRECT PAYMENTS),2103671058,1000061886
02.06.2023,ADULT SOCIAL CARE,PEOPLE PLUS GROUP LTD (INDEPENDENT LIVING SERVICES),"2,238.78",PHY LTS 18-64,PAYMENTS TO CLIENTS (DIRECT PAYMENTS),2103671294,1000061886
02.06.2023,ADULT SOCIAL CARE,PEOPLE PLUS GROUP LTD (INDEPENDENT LIVING SERVICES),"2,301.60",PHY LTS 18-64,PAYMENTS TO CLIENTS (DIRECT PAYMENTS),2103671777,1000061886
02.06.2023,ADULT SOCIAL CARE,PEOPLE PLUS GROUP LTD (INDEPENDENT LIVING SERVICES),"2,532.80",PHY LTS 18-64,PAYMENTS TO CLIENTS (DIRECT PAYMENTS),2103671104,1000061886
02.06.2023,ADULT SOCIAL CARE,PEOPLE PLUS GROUP LTD (INDEPENDENT LIVING SERVICES),"2,663.28",PHY LTS 18-64,PAYMENTS TO CLIENTS (DIRECT PAYMENTS),2103671345,1000061886
02.06.2023,ADULT SOCIAL CARE,PEOPLE PLUS GROUP LTD (INDEPENDENT LIVING SERVICES),"2,675.61",PHY LTS 18-64,PAYMENTS TO CLIENTS (DIRECT PAYMENTS),2103670952,1000061886
02.06.2023,ADULT SOCIAL CARE,PEOPLE PLUS GROUP LTD (INDEPENDENT LIVING SERVICES),"2,675.61",PHY LTS 18-64,PAYMENTS TO CLIENTS (DIRECT PAYMENTS),2103671518,1000061886
02.06.2023,ADULT SOCIAL CARE,PEOPLE PLUS GROUP LTD (INDEPENDENT LIVING SERVICES),"3,288.00",PHY LTS 18-64,PAYMENTS TO CLIENTS (DIRECT PAYMENTS),2103671631,1000061886
02.06.2023,ADULT SOCIAL CARE,PEOPLE PLUS GROUP LTD (INDEPENDENT LIVING SERVICES),"3,494.67",PHY LTS 18-64,PAYMENTS TO CLIENTS (DIRECT PAYMENTS),2103671502,1000061886
02.06.2023,ADULT SOCIAL CARE,PEOPLE PLUS GROUP LTD (INDEPENDENT LIVING SERVICES),"3,542.40",PHY LTS 18-64,PAYMENTS TO CLIENTS (DIRECT PAYMENTS),2103671792,1000061886
02.06.2023,ADULT SOCIAL CARE,PEOPLE PLUS GROUP LTD (INDEPENDENT LIVING SERVICES),"3,912.72",PHY LTS 18-64,PAYMENTS TO CLIENTS (DIRECT PAYMENTS),2103670958,1000061886
02.06.2023,ADULT SOCIAL CARE,FRESH IDEAS & SOLUTIONS SERVICES CIC,475.80,PHY LTS 18-64,PAYMENTS TO CLIENTS (DIRECT PAYMENTS),2103671266,1000070832
02.06.2023,ADULT SOCIAL CARE,FRESH IDEAS & SOLUTIONS SERVICES CIC,665.16,PHY LTS 18-64,PAYMENTS TO CLIENTS (DIRECT PAYMENTS),2103671268,1000070832
02.06.2023,ADULT SOCIAL CARE,FRESH IDEAS & SOLUTIONS SERVICES CIC,672.72,PHY LTS 18-64,PAYMENTS TO CLIENTS (DIRECT PAYMENTS),2103671746,1000070832
02.06.2023,ADULT SOCIAL CARE,FRESH IDEAS & SOLUTIONS SERVICES CIC,722.04,PHY LTS 18-64,PAYMENTS TO CLIENTS (DIRECT PAYMENTS),2103671267,1000070832
02.06.2023,ADULT SOCIAL CARE,FRESH IDEAS & SOLUTIONS SERVICES CIC,738.48,PHY LTS 18-64,PAYMENTS TO CLIENTS (DIRECT PAYMENTS),2103671216,1000070832
02.06.2023,ADULT SOCIAL CARE,FRESH IDEAS & SOLUTIONS SERVICES CIC,823.12,PHY LTS 18-64,PAYMENTS TO CLIENTS (DIRECT PAYMENTS),2103671732,1000070832
02.06.2023,ADULT SOCIAL CARE,FRESH IDEAS & SOLUTIONS SERVICES CIC,853.56,PHY LTS 18-64,PAYMENTS TO CLIENTS (DIRECT PAYMENTS),2103671262,1000070832
02.06.2023,ADULT SOCIAL CARE,FRESH IDEAS & SOLUTIONS SERVICES CIC,889.24,PHY LTS 18-64,PAYMENTS TO CLIENTS (DIRECT PAYMENTS),2103671832,1000070832
02.06.2023,ADULT SOCIAL CARE,FRESH IDEAS & SOLUTIONS SERVICES CIC,968.64,PHY LTS 18-64,PAYMENTS TO CLIENTS (DIRECT PAYMENTS),2103671265,1000070832
02.06.2023,ADULT SOCIAL CARE,FRESH IDEAS & SOLUTIONS SERVICES CIC,"1,137.92",PHY LTS 18-64,PAYMENTS TO CLIENTS (DIRECT PAYMENTS),2103671374,1000070832
02.06.2023,ADULT SOCIAL CARE,FRESH IDEAS & SOLUTIONS SERVICES CIC,"1,165.92",PHY LTS 18-64,PAYMENTS TO CLIENTS (DIRECT PAYMENTS),2103671624,1000070832
02.06.2023,ADULT SOCIAL CARE,FRESH IDEAS & SOLUTIONS SERVICES CIC,"1,249.44",PHY LTS 18-64,PAYMENTS TO CLIENTS (DIRECT PAYMENTS),2103671522,1000070832
02.06.2023,ADULT SOCIAL CARE,FRESH IDEAS & SOLUTIONS SERVICES CIC,"1,315.20",PHY LTS 18-64,PAYMENTS TO CLIENTS (DIRECT PAYMENTS),2103671021,1000070832
02.06.2023,ADULT SOCIAL CARE,FRESH IDEAS & SOLUTIONS SERVICES CIC,"1,494.72",PHY LTS 18-64,PAYMENTS TO CLIENTS (DIRECT PAYMENTS),2103671433,1000070832
02.06.2023,ADULT SOCIAL CARE,FRESH IDEAS & SOLUTIONS SERVICES CIC,"1,545.20",PHY LTS 18-64,PAYMENTS TO CLIENTS (DIRECT PAYMENTS),2103670906,1000070832
02.06.2023,ADULT SOCIAL CARE,FRESH IDEAS & SOLUTIONS SERVICES CIC,"1,578.24",PHY LTS 18-64,PAYMENTS TO CLIENTS (DIRECT PAYMENTS),2103671500,1000070832
02.06.2023,ADULT SOCIAL CARE,FRESH IDEAS & SOLUTIONS SERVICES CIC,"1,757.76",PHY LTS 18-64,PAYMENTS TO CLIENTS (DIRECT PAYMENTS),2103670982,1000070832
02.06.2023,ADULT SOCIAL CARE,FRESH IDEAS & SOLUTIONS SERVICES CIC,"2,892.12",PHY LTS 18-64,PAYMENTS TO CLIENTS (DIRECT PAYMENTS),2103671675,1000070832
02.06.2023,ADULT SOCIAL CARE,FRESH IDEAS & SOLUTIONS SERVICES CIC,"3,321.52",PHY LTS 18-64,PAYMENTS TO CLIENTS (DIRECT PAYMENTS),2103671484,1000070832
02.06.2023,ADULT SOCIAL CARE,PEOPLEPLUS GROUP LTD,988.20,PHY LTS 18-64,PAYMENTS TO CLIENTS (DIRECT PAYMENTS),2103671320,1000076642
02.06.2023,ADULT SOCIAL CARE,PEOPLEPLUS GROUP LTD,"1,366.32",PHY LTS 18-64,PAYMENTS TO CLIENTS (DIRECT PAYMENTS),2103671245,1000076642
02.06.2023,ADULT SOCIAL CARE,BARRIE BOOKKEEPING & PAYROLL SOLUTIONS LTD,745.16,PHY LTS 18-64,PAYMENTS TO CLIENTS (DIRECT PAYMENTS),2103671447,1000089211
02.06.2023,ADULT SOCIAL CARE,BARRIE BOOKKEEPING & PAYROLL SOLUTIONS LTD,"2,531.76",PHY LTS 18-64,PAYMENTS TO CLIENTS (DIRECT PAYMENTS),2103671712,1000089211
02.06.2023,ADULT SOCIAL CARE,REDACTED PERSONAL DATA,263.04,PHY LTS 18-64,PAYMENTS TO CLIENTS (DIRECT PAYMENTS),REDACTED,REDACTED
02.06.2023,ADULT SOCIAL CARE,REDACTED PERSONAL DATA,295.92,PHY LTS 18-64,PAYMENTS TO CLIENTS (DIRECT PAYMENTS),REDACTED,REDACTED
02.06.2023,ADULT SOCIAL CARE,REDACTED PERSONAL DATA,476.76,PHY LTS 18-64,PAYMENTS TO CLIENTS (DIRECT PAYMENTS),REDACTED,REDACTED
02.06.2023,ADULT SOCIAL CARE,REDACTED PERSONAL DATA,480.32,PHY LTS 18-64,PAYMENTS TO CLIENTS (DIRECT PAYMENTS),REDACTED,REDACTED
02.06.2023,ADULT SOCIAL CARE,REDACTED PERSONAL DATA,541.12,PHY LTS 18-64,PAYMENTS TO CLIENTS (DIRECT PAYMENTS),REDACTED,REDACTED
02.06.2023,ADULT SOCIAL CARE,REDACTED PERSONAL DATA,546.08,PHY LTS 18-64,PAYMENTS TO CLIENTS (DIRECT PAYMENTS),REDACTED,REDACTED
02.06.2023,ADULT SOCIAL CARE,REDACTED PERSONAL DATA,558.96,PHY LTS 18-64,PAYMENTS TO CLIENTS (DIRECT PAYMENTS),REDACTED,REDACTED
02.06.2023,ADULT SOCIAL CARE,REDACTED PERSONAL DATA,575.40,PHY LTS 18-64,PAYMENTS TO CLIENTS (DIRECT PAYMENTS),REDACTED,REDACTED
02.06.2023,ADULT SOCIAL CARE,REDACTED PERSONAL DATA,628.28,PHY LTS 18-64,PAYMENTS TO CLIENTS (DIRECT PAYMENTS),REDACTED,REDACTED
02.06.2023,ADULT SOCIAL CARE,REDACTED PERSONAL DATA,641.16,PHY LTS 18-64,PAYMENTS TO CLIENTS (DIRECT PAYMENTS),REDACTED,REDACTED
02.06.2023,ADULT SOCIAL CARE,REDACTED PERSONAL DATA,661.16,PHY LTS 18-64,PAYMENTS TO CLIENTS (DIRECT PAYMENTS),REDACTED,REDACTED
02.06.2023,ADULT SOCIAL CARE,REDACTED PERSONAL DATA,674.04,PHY LTS 18-64,PAYMENTS TO CLIENTS (DIRECT PAYMENTS),REDACTED,REDACTED
02.06.2023,ADULT SOCIAL CARE,REDACTED PERSONAL DATA,690.48,PHY LTS 18-64,PAYMENTS TO CLIENTS (DIRECT PAYMENTS),REDACTED,REDACTED
02.06.2023,ADULT SOCIAL CARE,REDACTED PERSONAL DATA,751.96,PHY LTS 18-64,PAYMENTS TO CLIENTS (DIRECT PAYMENTS),REDACTED,REDACTED
02.06.2023,ADULT SOCIAL CARE,REDACTED PERSONAL DATA,784.80,PHY LTS 18-64,PAYMENTS TO CLIENTS (DIRECT PAYMENTS),REDACTED,REDACTED
02.06.2023,ADULT SOCIAL CARE,REDACTED PERSONAL DATA,789.12,PHY LTS 18-64,PAYMENTS TO CLIENTS (DIRECT PAYMENTS),REDACTED,REDACTED
02.06.2023,ADULT SOCIAL CARE,REDACTED PERSONAL DATA,808.48,PHY LTS 18-64,PAYMENTS TO CLIENTS (DIRECT PAYMENTS),REDACTED,REDACTED
02.06.2023,ADULT SOCIAL CARE,REDACTED PERSONAL DATA,875.24,PHY LTS 18-64,PAYMENTS TO CLIENTS (DIRECT PAYMENTS),REDACTED,REDACTED
02.06.2023,ADULT SOCIAL CARE,REDACTED PERSONAL DATA,920.64,PHY LTS 18-64,PAYMENTS TO CLIENTS (DIRECT PAYMENTS),REDACTED,REDACTED
02.06.2023,ADULT SOCIAL CARE,REDACTED PERSONAL DATA,924.20,PHY LTS 18-64,PAYMENTS TO CLIENTS (DIRECT PAYMENTS),REDACTED,REDACTED
02.06.2023,ADULT SOCIAL CARE,REDACTED PERSONAL DATA,937.08,PHY LTS 18-64,PAYMENTS TO CLIENTS (DIRECT PAYMENTS),REDACTED,REDACTED
02.06.2023,ADULT SOCIAL CARE,REDACTED PERSONAL DATA,986.40,PHY LTS 18-64,PAYMENTS TO CLIENTS (DIRECT PAYMENTS),REDACTED,REDACTED
02.06.2023,ADULT SOCIAL CARE,REDACTED PERSONAL DATA,"1,052.16",PHY LTS 18-64,PAYMENTS TO CLIENTS (DIRECT PAYMENTS),REDACTED,REDACTED
02.06.2023,ADULT SOCIAL CARE,REDACTED PERSONAL DATA,"1,055.72",PHY LTS 18-64,PAYMENTS TO CLIENTS (DIRECT PAYMENTS),REDACTED,REDACTED
02.06.2023,ADULT SOCIAL CARE,REDACTED PERSONAL DATA,"1,105.04",PHY LTS 18-64,PAYMENTS TO CLIENTS (DIRECT PAYMENTS),REDACTED,REDACTED
02.06.2023,ADULT SOCIAL CARE,REDACTED PERSONAL DATA,"1,150.80",PHY LTS 18-64,PAYMENTS TO CLIENTS (DIRECT PAYMENTS),REDACTED,REDACTED
02.06.2023,ADULT SOCIAL CARE,REDACTED PERSONAL DATA,"1,167.24",PHY LTS 18-64,PAYMENTS TO CLIENTS (DIRECT PAYMENTS),REDACTED,REDACTED
02.06.2023,ADULT SOCIAL CARE,REDACTED PERSONAL DATA,"1,187.24",PHY LTS 18-64,PAYMENTS TO CLIENTS (DIRECT PAYMENTS),REDACTED,REDACTED
02.06.2023,ADULT SOCIAL CARE,REDACTED PERSONAL DATA,"1,204.16",PHY LTS 18-64,PAYMENTS TO CLIENTS (DIRECT PAYMENTS),REDACTED,REDACTED
02.06.2023,ADULT SOCIAL CARE,REDACTED PERSONAL DATA,"1,207.20",PHY LTS 18-64,PAYMENTS TO CLIENTS (DIRECT PAYMENTS),REDACTED,REDACTED
02.06.2023,ADULT SOCIAL CARE,REDACTED PERSONAL DATA,"1,243.68",PHY LTS 18-64,PAYMENTS TO CLIENTS (DIRECT PAYMENTS),REDACTED,REDACTED
02.06.2023,ADULT SOCIAL CARE,REDACTED PERSONAL DATA,"1,392.96",PHY LTS 18-64,PAYMENTS TO CLIENTS (DIRECT PAYMENTS),REDACTED,REDACTED
02.06.2023,ADULT SOCIAL CARE,REDACTED PERSONAL DATA,"1,417.40",PHY LTS 18-64,PAYMENTS TO CLIENTS (DIRECT PAYMENTS),REDACTED,REDACTED
02.06.2023,ADULT SOCIAL CARE,REDACTED PERSONAL DATA,"1,501.00",PHY LTS 18-64,PAYMENTS TO CLIENTS (DIRECT PAYMENTS),REDACTED,REDACTED
02.06.2023,ADULT SOCIAL CARE,REDACTED PERSONAL DATA,"1,841.28",PHY LTS 18-64,PAYMENTS TO CLIENTS (DIRECT PAYMENTS),REDACTED,REDACTED
02.06.2023,ADULT SOCIAL CARE,REDACTED PERSONAL DATA,"1,841.28",PHY LTS 18-64,PAYMENTS TO CLIENTS (DIRECT PAYMENTS),REDACTED,REDACTED
02.06.2023,ADULT SOCIAL CARE,REDACTED PERSONAL DATA,"1,841.28",PHY LTS 18-64,PAYMENTS TO CLIENTS (DIRECT PAYMENTS),REDACTED,REDACTED
02.06.2023,ADULT SOCIAL CARE,REDACTED PERSONAL DATA,"2,026.72",PHY LTS 18-64,PAYMENTS TO CLIENTS (DIRECT PAYMENTS),REDACTED,REDACTED
02.06.2023,ADULT SOCIAL CARE,REDACTED PERSONAL DATA,"2,781.92",PHY LTS 18-64,PAYMENTS TO CLIENTS (DIRECT PAYMENTS),REDACTED,REDACTED
02.06.2023,ADULT SOCIAL CARE,REDACTED PERSONAL DATA,"2,997.40",PHY LTS 18-64,PAYMENTS TO CLIENTS (DIRECT PAYMENTS),REDACTED,REDACTED
02.06.2023,ADULT SOCIAL CARE,REDACTED PERSONAL DATA,"3,156.48",PHY LTS 18-64,PAYMENTS TO CLIENTS (DIRECT PAYMENTS),REDACTED,REDACTED
02.06.2023,ADULT SOCIAL CARE,REDACTED PERSONAL DATA,"3,682.56",PHY LTS 18-64,PAYMENTS TO CLIENTS (DIRECT PAYMENTS),REDACTED,REDACTED
02.06.2023,ADULT SOCIAL CARE,ZOT LTD,290.00,PHY LTS 65+,CLIENT TRANSPORT,2103670803,1000082848
02.06.2023,ADULT SOCIAL CARE,PEOPLE PLUS GROUP LTD (INDEPENDENT LIVING SERVICES),-644.56,PHY LTS 65+,DISCRETIONARY FLEXIBLE FEES & INCOME,2103671259,1000061886
02.06.2023,ADULT SOCIAL CARE,PEOPLE PLUS GROUP LTD (INDEPENDENT LIVING SERVICES),-476.56,PHY LTS 65+,DISCRETIONARY FLEXIBLE FEES & INCOME,2103671205,1000061886
02.06.2023,ADULT SOCIAL CARE,PEOPLE PLUS GROUP LTD (INDEPENDENT LIVING SERVICES),-438.52,PHY LTS 65+,DISCRETIONARY FLEXIBLE FEES & INCOME,2103671653,1000061886
02.06.2023,ADULT SOCIAL CARE,PEOPLE PLUS GROUP LTD (INDEPENDENT LIVING SERVICES),-367.96,PHY LTS 65+,DISCRETIONARY FLEXIBLE FEES & INCOME,2103671673,1000061886
02.06.2023,ADULT SOCIAL CARE,PEOPLE PLUS GROUP LTD (INDEPENDENT LIVING SERVICES),-297.68,PHY LTS 65+,DISCRETIONARY FLEXIBLE FEES & INCOME,2103671208,1000061886
02.06.2023,ADULT SOCIAL CARE,PEOPLE PLUS GROUP LTD (INDEPENDENT LIVING SERVICES),595.31,PHY LTS 65+,DISCRETIONARY FLEXIBLE FEES & INCOME,2103671478,1000061886
02.06.2023,ADULT SOCIAL CARE,REDACTED PERSONAL DATA,-590.04,PHY LTS 65+,DISCRETIONARY FLEXIBLE FEES & INCOME,REDACTED,REDACTED
02.06.2023,ADULT SOCIAL CARE,REDACTED PERSONAL DATA,-534.00,PHY LTS 65+,DISCRETIONARY FLEXIBLE FEES & INCOME,REDACTED,REDACTED
02.06.2023,ADULT SOCIAL CARE,REDACTED PERSONAL DATA,-445.60,PHY LTS 65+,DISCRETIONARY FLEXIBLE FEES & INCOME,REDACTED,REDACTED
02.06.2023,ADULT SOCIAL CARE,REDACTED PERSONAL DATA,-398.28,PHY LTS 65+,DISCRETIONARY FLEXIBLE FEES & INCOME,REDACTED,REDACTED
02.06.2023,ADULT SOCIAL CARE,REDACTED PERSONAL DATA,-375.00,PHY LTS 65+,DISCRETIONARY FLEXIBLE FEES & INCOME,REDACTED,REDACTED
02.06.2023,ADULT SOCIAL CARE,LONDON CARE LTD,"1,418.04",PHY LTS 65+,HOMECARE - C&V,2103670745,1000003398
02.06.2023,ADULT SOCIAL CARE,CAREPOINT SERVICES LTD,266.86,PHY LTS 65+,HOMECARE - C&V,2103670771,1000087914
02.06.2023,ADULT SOCIAL CARE,CAREPOINT SERVICES LTD,271.70,PHY LTS 65+,HOMECARE - C&V,2103670758,1000087914
02.06.2023,ADULT SOCIAL CARE,CAREPOINT SERVICES LTD,305.04,PHY LTS 65+,HOMECARE - C&V,2103670775,1000087914
02.06.2023,ADULT SOCIAL CARE,CAREPOINT SERVICES LTD,419.44,PHY LTS 65+,HOMECARE - C&V,2103670792,1000087914
02.06.2023,ADULT SOCIAL CARE,CAREPOINT SERVICES LTD,514.62,PHY LTS 65+,HOMECARE - C&V,2103670794,1000087914
02.06.2023,ADULT SOCIAL CARE,CAREPOINT SERVICES LTD,543.21,PHY LTS 65+,HOMECARE - C&V,2103670760,1000087914
02.06.2023,ADULT SOCIAL CARE,CAREPOINT SERVICES LTD,667.24,PHY LTS 65+,HOMECARE - C&V,2103670783,1000087914
02.06.2023,ADULT SOCIAL CARE,CAREPOINT SERVICES LTD,857.84,PHY LTS 65+,HOMECARE - C&V,2103670765,1000087914
02.06.2023,ADULT SOCIAL CARE,CAREPOINT SERVICES LTD,"1,200.92",PHY LTS 65+,HOMECARE - C&V,2103670759,1000087914
02.06.2023,ADULT SOCIAL CARE,CAREPOINT SERVICES LTD,"1,772.96",PHY LTS 65+,HOMECARE - C&V,2103670763,1000087914
02.06.2023,ADULT SOCIAL CARE,CAREPOINT SERVICES LTD,"1,834.80",PHY LTS 65+,HOMECARE - C&V,2103670780,1000087914
02.06.2023,ADULT SOCIAL CARE,CAREPOINT SERVICES LTD,"2,249.08",PHY LTS 65+,HOMECARE - C&V,2103670778,1000087914
02.06.2023,ADULT SOCIAL CARE,CAREPOINT SERVICES LTD,"2,249.30",PHY LTS 65+,HOMECARE - C&V,2103670756,1000087914
02.06.2023,ADULT SOCIAL CARE,CAREPOINT SERVICES LTD,"2,478.08",PHY LTS 65+,HOMECARE - C&V,2103670757,1000087914
02.06.2023,ADULT SOCIAL CARE,CAREPOINT SERVICES LTD,"3,297.66",PHY LTS 65+,HOMECARE - C&V,2103670774,1000087914
02.06.2023,ADULT SOCIAL CARE,METRO HOMECARE LTD,330.00,PHY LTS 65+,HOMECARE - SPOT,2103670876,1000070695
02.06.2023,ADULT SOCIAL CARE,METRO HOMECARE LTD,462.00,PHY LTS 65+,HOMECARE - SPOT,2103670875,1000070695
02.06.2023,ADULT SOCIAL CARE,METRO HOMECARE LTD,"1,237.50",PHY LTS 65+,HOMECARE - SPOT,2103670871,1000070695
02.06.2023,ADULT SOCIAL CARE,METRO HOMECARE LTD,"1,237.50",PHY LTS 65+,HOMECARE - SPOT,2103670878,1000070695
02.06.2023,ADULT SOCIAL CARE,METRO HOMECARE LTD,"1,402.50",PHY LTS 65+,HOMECARE - SPOT,2103670870,1000070695
02.06.2023,ADULT SOCIAL CARE,PEOPLES CARE LTD,526.50,PHY LTS 65+,HOMECARE - SPOT,2103670736,1000077465
02.06.2023,ADULT SOCIAL CARE,CAREPOINT SERVICES LTD,"1,715.40",PHY LTS 65+,HOMECARE - SPOT,2103670755,1000087914
02.06.2023,ADULT SOCIAL CARE,PEOPLE PLUS GROUP LTD (INDEPENDENT LIVING SERVICES),"-2,690.14",PHY LTS 65+,PAYMENTS TO CLIENTS (DIRECT PAYMENTS),2103671667,1000061886
02.06.2023,ADULT SOCIAL CARE,PEOPLE PLUS GROUP LTD (INDEPENDENT LIVING SERVICES),"-2,476.41",PHY LTS 65+,PAYMENTS TO CLIENTS (DIRECT PAYMENTS),2103670892,1000061886
02.06.2023,ADULT SOCIAL CARE,PEOPLE PLUS GROUP LTD (INDEPENDENT LIVING SERVICES),"-2,392.69",PHY LTS 65+,PAYMENTS TO CLIENTS (DIRECT PAYMENTS),2103671608,1000061886
02.06.2023,ADULT SOCIAL CARE,PEOPLE PLUS GROUP LTD (INDEPENDENT LIVING SERVICES),"-2,261.07",PHY LTS 65+,PAYMENTS TO CLIENTS (DIRECT PAYMENTS),2103671159,1000061886
02.06.2023,ADULT SOCIAL CARE,PEOPLE PLUS GROUP LTD (INDEPENDENT LIVING SERVICES),"-1,973.96",PHY LTS 65+,PAYMENTS TO CLIENTS (DIRECT PAYMENTS),2103671337,1000061886
02.06.2023,ADULT SOCIAL CARE,PEOPLE PLUS GROUP LTD (INDEPENDENT LIVING SERVICES),"-1,674.91",PHY LTS 65+,PAYMENTS TO CLIENTS (DIRECT PAYMENTS),2103671422,1000061886
02.06.2023,ADULT SOCIAL CARE,PEOPLE PLUS GROUP LTD (INDEPENDENT LIVING SERVICES),-780.05,PHY LTS 65+,PAYMENTS TO CLIENTS (DIRECT PAYMENTS),2103671190,1000061886
02.06.2023,ADULT SOCIAL CARE,PEOPLE PLUS GROUP LTD (INDEPENDENT LIVING SERVICES),365.76,PHY LTS 65+,PAYMENTS TO CLIENTS (DIRECT PAYMENTS),2103671164,1000061886
02.06.2023,ADULT SOCIAL CARE,PEOPLE PLUS GROUP LTD (INDEPENDENT LIVING SERVICES),476.76,PHY LTS 65+,PAYMENTS TO CLIENTS (DIRECT PAYMENTS),2103671499,1000061886
02.06.2023,ADULT SOCIAL CARE,PEOPLE PLUS GROUP LTD (INDEPENDENT LIVING SERVICES),509.64,PHY LTS 65+,PAYMENTS TO CLIENTS (DIRECT PAYMENTS),2103671526,1000061886
02.06.2023,ADULT SOCIAL CARE,PEOPLE PLUS GROUP LTD (INDEPENDENT LIVING SERVICES),524.05,PHY LTS 65+,PAYMENTS TO CLIENTS (DIRECT PAYMENTS),2103671028,1000061886
02.06.2023,ADULT SOCIAL CARE,PEOPLE PLUS GROUP LTD (INDEPENDENT LIVING SERVICES),641.16,PHY LTS 65+,PAYMENTS TO CLIENTS (DIRECT PAYMENTS),2103671063,1000061886
02.06.2023,ADULT SOCIAL CARE,PEOPLE PLUS GROUP LTD (INDEPENDENT LIVING SERVICES),690.48,PHY LTS 65+,PAYMENTS TO CLIENTS (DIRECT PAYMENTS),2103671122,1000061886
02.06.2023,ADULT SOCIAL CARE,PEOPLE PLUS GROUP LTD (INDEPENDENT LIVING SERVICES),690.48,PHY LTS 65+,PAYMENTS TO CLIENTS (DIRECT PAYMENTS),2103671511,1000061886
02.06.2023,ADULT SOCIAL CARE,PEOPLE PLUS GROUP LTD (INDEPENDENT LIVING SERVICES),706.92,PHY LTS 65+,PAYMENTS TO CLIENTS (DIRECT PAYMENTS),2103671754,1000061886
02.06.2023,ADULT SOCIAL CARE,PEOPLE PLUS GROUP LTD (INDEPENDENT LIVING SERVICES),723.36,PHY LTS 65+,PAYMENTS TO CLIENTS (DIRECT PAYMENTS),2103671695,1000061886
02.06.2023,ADULT SOCIAL CARE,PEOPLE PLUS GROUP LTD (INDEPENDENT LIVING SERVICES),739.80,PHY LTS 65+,PAYMENTS TO CLIENTS (DIRECT PAYMENTS),2103671317,1000061886
02.06.2023,ADULT SOCIAL CARE,PEOPLE PLUS GROUP LTD (INDEPENDENT LIVING SERVICES),742.08,PHY LTS 65+,PAYMENTS TO CLIENTS (DIRECT PAYMENTS),2103671471,1000061886
02.06.2023,ADULT SOCIAL CARE,PEOPLE PLUS GROUP LTD (INDEPENDENT LIVING SERVICES),756.24,PHY LTS 65+,PAYMENTS TO CLIENTS (DIRECT PAYMENTS),2103671727,1000061886
02.06.2023,ADULT SOCIAL CARE,PEOPLE PLUS GROUP LTD (INDEPENDENT LIVING SERVICES),822.00,PHY LTS 65+,PAYMENTS TO CLIENTS (DIRECT PAYMENTS),2103670978,1000061886
02.06.2023,ADULT SOCIAL CARE,PEOPLE PLUS GROUP LTD (INDEPENDENT LIVING SERVICES),822.00,PHY LTS 65+,PAYMENTS TO CLIENTS (DIRECT PAYMENTS),2103671324,1000061886
02.06.2023,ADULT SOCIAL CARE,PEOPLE PLUS GROUP LTD (INDEPENDENT LIVING SERVICES),854.88,PHY LTS 65+,PAYMENTS TO CLIENTS (DIRECT PAYMENTS),2103671060,1000061886
02.06.2023,ADULT SOCIAL CARE,PEOPLE PLUS GROUP LTD (INDEPENDENT LIVING SERVICES),865.76,PHY LTS 65+,PAYMENTS TO CLIENTS (DIRECT PAYMENTS),2103671429,1000061886
02.06.2023,ADULT SOCIAL CARE,PEOPLE PLUS GROUP LTD (INDEPENDENT LIVING SERVICES),871.32,PHY LTS 65+,PAYMENTS TO CLIENTS (DIRECT PAYMENTS),2103670960,1000061886
02.06.2023,ADULT SOCIAL CARE,PEOPLE PLUS GROUP LTD (INDEPENDENT LIVING SERVICES),969.96,PHY LTS 65+,PAYMENTS TO CLIENTS (DIRECT PAYMENTS),2103671059,1000061886
02.06.2023,ADULT SOCIAL CARE,PEOPLE PLUS GROUP LTD (INDEPENDENT LIVING SERVICES),969.96,PHY LTS 65+,PAYMENTS TO CLIENTS (DIRECT PAYMENTS),2103671304,1000061886
02.06.2023,ADULT SOCIAL CARE,PEOPLE PLUS GROUP LTD (INDEPENDENT LIVING SERVICES),"1,019.28",PHY LTS 65+,PAYMENTS TO CLIENTS (DIRECT PAYMENTS),2103670932,1000061886
02.06.2023,ADULT SOCIAL CARE,PEOPLE PLUS GROUP LTD (INDEPENDENT LIVING SERVICES),"1,035.72",PHY LTS 65+,PAYMENTS TO CLIENTS (DIRECT PAYMENTS),2103671691,1000061886
02.06.2023,ADULT SOCIAL CARE,PEOPLE PLUS GROUP LTD (INDEPENDENT LIVING SERVICES),"1,045.12",PHY LTS 65+,PAYMENTS TO CLIENTS (DIRECT PAYMENTS),2103670981,1000061886
02.06.2023,ADULT SOCIAL CARE,PEOPLE PLUS GROUP LTD (INDEPENDENT LIVING SERVICES),"1,101.48",PHY LTS 65+,PAYMENTS TO CLIENTS (DIRECT PAYMENTS),2103671699,1000061886
02.06.2023,ADULT SOCIAL CARE,PEOPLE PLUS GROUP LTD (INDEPENDENT LIVING SERVICES),"1,167.24",PHY LTS 65+,PAYMENTS TO CLIENTS (DIRECT PAYMENTS),2103671347,1000061886
02.06.2023,ADULT SOCIAL CARE,PEOPLE PLUS GROUP LTD (INDEPENDENT LIVING SERVICES),"1,222.96",PHY LTS 65+,PAYMENTS TO CLIENTS (DIRECT PAYMENTS),2103670882,1000061886
02.06.2023,ADULT SOCIAL CARE,PEOPLE PLUS GROUP LTD (INDEPENDENT LIVING SERVICES),"1,298.76",PHY LTS 65+,PAYMENTS TO CLIENTS (DIRECT PAYMENTS),2103671778,1000061886
02.06.2023,ADULT SOCIAL CARE,PEOPLE PLUS GROUP LTD (INDEPENDENT LIVING SERVICES),"1,331.64",PHY LTS 65+,PAYMENTS TO CLIENTS (DIRECT PAYMENTS),2103671767,1000061886
02.06.2023,ADULT SOCIAL CARE,PEOPLE PLUS GROUP LTD (INDEPENDENT LIVING SERVICES),"1,348.08",PHY LTS 65+,PAYMENTS TO CLIENTS (DIRECT PAYMENTS),2103671003,1000061886
02.06.2023,ADULT SOCIAL CARE,PEOPLE PLUS GROUP LTD (INDEPENDENT LIVING SERVICES),"1,479.60",PHY LTS 65+,PAYMENTS TO CLIENTS (DIRECT PAYMENTS),2103671249,1000061886
02.06.2023,ADULT SOCIAL CARE,PEOPLE PLUS GROUP LTD (INDEPENDENT LIVING SERVICES),"1,496.04",PHY LTS 65+,PAYMENTS TO CLIENTS (DIRECT PAYMENTS),2103671726,1000061886
02.06.2023,ADULT SOCIAL CARE,PEOPLE PLUS GROUP LTD (INDEPENDENT LIVING SERVICES),"1,561.80",PHY LTS 65+,PAYMENTS TO CLIENTS (DIRECT PAYMENTS),2103670948,1000061886
02.06.2023,ADULT SOCIAL CARE,PEOPLE PLUS GROUP LTD (INDEPENDENT LIVING SERVICES),"1,685.16",PHY LTS 65+,PAYMENTS TO CLIENTS (DIRECT PAYMENTS),2103671461,1000061886
02.06.2023,ADULT SOCIAL CARE,PEOPLE PLUS GROUP LTD (INDEPENDENT LIVING SERVICES),"1,841.28",PHY LTS 65+,PAYMENTS TO CLIENTS (DIRECT PAYMENTS),2103671309,1000061886
02.06.2023,ADULT SOCIAL CARE,PEOPLE PLUS GROUP LTD (INDEPENDENT LIVING SERVICES),"2,009.20",PHY LTS 65+,PAYMENTS TO CLIENTS (DIRECT PAYMENTS),2103671023,1000061886
02.06.2023,ADULT SOCIAL CARE,PEOPLE PLUS GROUP LTD (INDEPENDENT LIVING SERVICES),"2,071.44",PHY LTS 65+,PAYMENTS TO CLIENTS (DIRECT PAYMENTS),2103671012,1000061886
02.06.2023,ADULT SOCIAL CARE,PEOPLE PLUS GROUP LTD (INDEPENDENT LIVING SERVICES),"2,082.00",PHY LTS 65+,PAYMENTS TO CLIENTS (DIRECT PAYMENTS),2103671080,1000061886
02.06.2023,ADULT SOCIAL CARE,PEOPLE PLUS GROUP LTD (INDEPENDENT LIVING SERVICES),"2,153.64",PHY LTS 65+,PAYMENTS TO CLIENTS (DIRECT PAYMENTS),2103671569,1000061886
02.06.2023,ADULT SOCIAL CARE,PEOPLE PLUS GROUP LTD (INDEPENDENT LIVING SERVICES),"2,170.08",PHY LTS 65+,PAYMENTS TO CLIENTS (DIRECT PAYMENTS),2103671496,1000061886
02.06.2023,ADULT SOCIAL CARE,PEOPLE PLUS GROUP LTD (INDEPENDENT LIVING SERVICES),"2,364.56",PHY LTS 65+,PAYMENTS TO CLIENTS (DIRECT PAYMENTS),2103671349,1000061886
02.06.2023,ADULT SOCIAL CARE,PEOPLE PLUS GROUP LTD (INDEPENDENT LIVING SERVICES),"2,511.80",PHY LTS 65+,PAYMENTS TO CLIENTS (DIRECT PAYMENTS),2103671242,1000061886
02.06.2023,ADULT SOCIAL CARE,PEOPLE PLUS GROUP LTD (INDEPENDENT LIVING SERVICES),"2,692.67",PHY LTS 65+,PAYMENTS TO CLIENTS (DIRECT PAYMENTS),2103671830,1000061886
02.06.2023,ADULT SOCIAL CARE,PEOPLE PLUS GROUP LTD (INDEPENDENT LIVING SERVICES),"2,811.24",PHY LTS 65+,PAYMENTS TO CLIENTS (DIRECT PAYMENTS),2103671534,1000061886
02.06.2023,ADULT SOCIAL CARE,PEOPLE PLUS GROUP LTD (INDEPENDENT LIVING SERVICES),"3,003.24",PHY LTS 65+,PAYMENTS TO CLIENTS (DIRECT PAYMENTS),2103671556,1000061886
02.06.2023,ADULT SOCIAL CARE,PEOPLE PLUS GROUP LTD (INDEPENDENT LIVING SERVICES),"3,079.60",PHY LTS 65+,PAYMENTS TO CLIENTS (DIRECT PAYMENTS),2103671666,1000061886
02.06.2023,ADULT SOCIAL CARE,PEOPLE PLUS GROUP LTD (INDEPENDENT LIVING SERVICES),"3,116.28",PHY LTS 65+,PAYMENTS TO CLIENTS (DIRECT PAYMENTS),2103671576,1000061886
02.06.2023,ADULT SOCIAL CARE,PEOPLE PLUS GROUP LTD (INDEPENDENT LIVING SERVICES),"3,178.25",PHY LTS 65+,PAYMENTS TO CLIENTS (DIRECT PAYMENTS),2103671428,1000061886
02.06.2023,ADULT SOCIAL CARE,PEOPLE PLUS GROUP LTD (INDEPENDENT LIVING SERVICES),"3,255.12",PHY LTS 65+,PAYMENTS TO CLIENTS (DIRECT PAYMENTS),2103671542,1000061886
02.06.2023,ADULT SOCIAL CARE,PEOPLE PLUS GROUP LTD (INDEPENDENT LIVING SERVICES),"3,440.07",PHY LTS 65+,PAYMENTS TO CLIENTS (DIRECT PAYMENTS),2103671193,1000061886
02.06.2023,ADULT SOCIAL CARE,PEOPLE PLUS GROUP LTD (INDEPENDENT LIVING SERVICES),"3,603.88",PHY LTS 65+,PAYMENTS TO CLIENTS (DIRECT PAYMENTS),2103671455,1000061886
02.06.2023,ADULT SOCIAL CARE,PEOPLE PLUS GROUP LTD (INDEPENDENT LIVING SERVICES),"3,767.70",PHY LTS 65+,PAYMENTS TO CLIENTS (DIRECT PAYMENTS),2103671233,1000061886
02.06.2023,ADULT SOCIAL CARE,FRESH IDEAS & SOLUTIONS SERVICES CIC,804.24,PHY LTS 65+,PAYMENTS TO CLIENTS (DIRECT PAYMENTS),2103671443,1000070832
02.06.2023,ADULT SOCIAL CARE,FRESH IDEAS & SOLUTIONS SERVICES CIC,940.99,PHY LTS 65+,PAYMENTS TO CLIENTS (DIRECT PAYMENTS),2103671270,1000070832
02.06.2023,ADULT SOCIAL CARE,FRESH IDEAS & SOLUTIONS SERVICES CIC,"1,067.64",PHY LTS 65+,PAYMENTS TO CLIENTS (DIRECT PAYMENTS),2103671469,1000070832
02.06.2023,ADULT SOCIAL CARE,FRESH IDEAS & SOLUTIONS SERVICES CIC,"1,809.52",PHY LTS 65+,PAYMENTS TO CLIENTS (DIRECT PAYMENTS),2103671462,1000070832
02.06.2023,ADULT SOCIAL CARE,FRESH IDEAS & SOLUTIONS SERVICES CIC,"2,119.44",PHY LTS 65+,PAYMENTS TO CLIENTS (DIRECT PAYMENTS),2103671225,1000070832
02.06.2023,ADULT SOCIAL CARE,BARRIE BOOKKEEPING & PAYROLL SOLUTIONS LTD,"2,433.12",PHY LTS 65+,PAYMENTS TO CLIENTS (DIRECT PAYMENTS),2103671741,1000089211
02.06.2023,ADULT SOCIAL CARE,REDACTED PERSONAL DATA,394.56,PHY LTS 65+,PAYMENTS TO CLIENTS (DIRECT PAYMENTS),REDACTED,REDACTED
02.06.2023,ADULT SOCIAL CARE,REDACTED PERSONAL DATA,435.00,PHY LTS 65+,PAYMENTS TO CLIENTS (DIRECT PAYMENTS),REDACTED,REDACTED
02.06.2023,ADULT SOCIAL CARE,REDACTED PERSONAL DATA,558.96,PHY LTS 65+,PAYMENTS TO CLIENTS (DIRECT PAYMENTS),REDACTED,REDACTED
02.06.2023,ADULT SOCIAL CARE,REDACTED PERSONAL DATA,575.40,PHY LTS 65+,PAYMENTS TO CLIENTS (DIRECT PAYMENTS),REDACTED,REDACTED
02.06.2023,ADULT SOCIAL CARE,REDACTED PERSONAL DATA,618.40,PHY LTS 65+,PAYMENTS TO CLIENTS (DIRECT PAYMENTS),REDACTED,REDACTED
02.06.2023,ADULT SOCIAL CARE,REDACTED PERSONAL DATA,641.16,PHY LTS 65+,PAYMENTS TO CLIENTS (DIRECT PAYMENTS),REDACTED,REDACTED
02.06.2023,ADULT SOCIAL CARE,REDACTED PERSONAL DATA,641.16,PHY LTS 65+,PAYMENTS TO CLIENTS (DIRECT PAYMENTS),REDACTED,REDACTED
02.06.2023,ADULT SOCIAL CARE,REDACTED PERSONAL DATA,641.16,PHY LTS 65+,PAYMENTS TO CLIENTS (DIRECT PAYMENTS),REDACTED,REDACTED
02.06.2023,ADULT SOCIAL CARE,REDACTED PERSONAL DATA,743.36,PHY LTS 65+,PAYMENTS TO CLIENTS (DIRECT PAYMENTS),REDACTED,REDACTED
02.06.2023,ADULT SOCIAL CARE,REDACTED PERSONAL DATA,871.32,PHY LTS 65+,PAYMENTS TO CLIENTS (DIRECT PAYMENTS),REDACTED,REDACTED
02.06.2023,ADULT SOCIAL CARE,REDACTED PERSONAL DATA,904.20,PHY LTS 65+,PAYMENTS TO CLIENTS (DIRECT PAYMENTS),REDACTED,REDACTED
02.06.2023,ADULT SOCIAL CARE,REDACTED PERSONAL DATA,920.64,PHY LTS 65+,PAYMENTS TO CLIENTS (DIRECT PAYMENTS),REDACTED,REDACTED
02.06.2023,ADULT SOCIAL CARE,REDACTED PERSONAL DATA,937.08,PHY LTS 65+,PAYMENTS TO CLIENTS (DIRECT PAYMENTS),REDACTED,REDACTED
02.06.2023,ADULT SOCIAL CARE,REDACTED PERSONAL DATA,940.64,PHY LTS 65+,PAYMENTS TO CLIENTS (DIRECT PAYMENTS),REDACTED,REDACTED
02.06.2023,ADULT SOCIAL CARE,REDACTED PERSONAL DATA,986.40,PHY LTS 65+,PAYMENTS TO CLIENTS (DIRECT PAYMENTS),REDACTED,REDACTED
02.06.2023,ADULT SOCIAL CARE,REDACTED PERSONAL DATA,"1,052.16",PHY LTS 65+,PAYMENTS TO CLIENTS (DIRECT PAYMENTS),REDACTED,REDACTED
02.06.2023,ADULT SOCIAL CARE,REDACTED PERSONAL DATA,"1,084.20",PHY LTS 65+,PAYMENTS TO CLIENTS (DIRECT PAYMENTS),REDACTED,REDACTED
02.06.2023,ADULT SOCIAL CARE,REDACTED PERSONAL DATA,"1,265.88",PHY LTS 65+,PAYMENTS TO CLIENTS (DIRECT PAYMENTS),REDACTED,REDACTED
02.06.2023,ADULT SOCIAL CARE,REDACTED PERSONAL DATA,"1,345.04",PHY LTS 65+,PAYMENTS TO CLIENTS (DIRECT PAYMENTS),REDACTED,REDACTED
02.06.2023,ADULT SOCIAL CARE,REDACTED PERSONAL DATA,"1,380.96",PHY LTS 65+,PAYMENTS TO CLIENTS (DIRECT PAYMENTS),REDACTED,REDACTED
02.06.2023,ADULT SOCIAL CARE,REDACTED PERSONAL DATA,"1,496.04",PHY LTS 65+,PAYMENTS TO CLIENTS (DIRECT PAYMENTS),REDACTED,REDACTED
02.06.2023,ADULT SOCIAL CARE,REDACTED PERSONAL DATA,"1,611.12",PHY LTS 65+,PAYMENTS TO CLIENTS (DIRECT PAYMENTS),REDACTED,REDACTED
02.06.2023,ADULT SOCIAL CARE,REDACTED PERSONAL DATA,"1,676.88",PHY LTS 65+,PAYMENTS TO CLIENTS (DIRECT PAYMENTS),REDACTED,REDACTED
02.06.2023,ADULT SOCIAL CARE,REDACTED PERSONAL DATA,"1,742.64",PHY LTS 65+,PAYMENTS TO CLIENTS (DIRECT PAYMENTS),REDACTED,REDACTED
02.06.2023,ADULT SOCIAL CARE,REDACTED PERSONAL DATA,"1,808.40",PHY LTS 65+,PAYMENTS TO CLIENTS (DIRECT PAYMENTS),REDACTED,REDACTED
02.06.2023,ADULT SOCIAL CARE,REDACTED PERSONAL DATA,"1,992.52",PHY LTS 65+,PAYMENTS TO CLIENTS (DIRECT PAYMENTS),REDACTED,REDACTED
02.06.2023,ADULT SOCIAL CARE,REDACTED PERSONAL DATA,"2,137.20",PHY LTS 65+,PAYMENTS TO CLIENTS (DIRECT PAYMENTS),REDACTED,REDACTED
02.06.2023,ADULT SOCIAL CARE,REDACTED PERSONAL DATA,"2,170.08",PHY LTS 65+,PAYMENTS TO CLIENTS (DIRECT PAYMENTS),REDACTED,REDACTED
02.06.2023,ADULT SOCIAL CARE,REDACTED PERSONAL DATA,"2,535.32",PHY LTS 65+,PAYMENTS TO CLIENTS (DIRECT PAYMENTS),REDACTED,REDACTED
02.06.2023,ADULT SOCIAL CARE,REDACTED PERSONAL DATA,"2,630.40",PHY LTS 65+,PAYMENTS TO CLIENTS (DIRECT PAYMENTS),REDACTED,REDACTED
02.06.2023,ADULT SOCIAL CARE,REDACTED PERSONAL DATA,"2,761.92",PHY LTS 65+,PAYMENTS TO CLIENTS (DIRECT PAYMENTS),REDACTED,REDACTED
02.06.2023,ADULT SOCIAL CARE,REDACTED PERSONAL DATA,"2,975.64",PHY LTS 65+,PAYMENTS TO CLIENTS (DIRECT PAYMENTS),REDACTED,REDACTED
02.06.2023,ADULT SOCIAL CARE,REDACTED PERSONAL DATA,"2,992.08",PHY LTS 65+,PAYMENTS TO CLIENTS (DIRECT PAYMENTS),REDACTED,REDACTED
02.06.2023,ADULT SOCIAL CARE,REDACTED PERSONAL DATA,"3,156.48",PHY LTS 65+,PAYMENTS TO CLIENTS (DIRECT PAYMENTS),REDACTED,REDACTED
02.06.2023,ADULT SOCIAL CARE,REDACTED PERSONAL DATA,"3,543.09",PHY LTS 65+,PAYMENTS TO CLIENTS (DIRECT PAYMENTS),REDACTED,REDACTED
02.06.2023,ADULT SOCIAL CARE,LONDON CARE LTD,329.29,PHY STS 65+,HOMECARE - IC,2103670795,1000003398
02.06.2023,ADULT SOCIAL CARE,SOUTHSIDE PARTNERSHIP LTD,"63,353.76",S75 SUPHSG SCH LBS LEAD,EXTERNAL AGENCIES AND BODIES,5902582436,1716624
02.06.2023,ADULT SOCIAL CARE,PEOPLE PLUS GROUP LTD (INDEPENDENT LIVING SERVICES),-312.72,SEN LTS 18-64,DISCRETIONARY FLEXIBLE FEES & INCOME,2103670893,1000061886
02.06.2023,ADULT SOCIAL CARE,CAREPOINT SERVICES LTD,"1,124.68",SEN LTS 18-64,HOMECARE - C&V,2103670768,1000087914
02.06.2023,ADULT SOCIAL CARE,BARRIE BOOKKEEPING & PAYROLL SOLUTIONS LTD,"1,446.92",SEN LTS 65+,PAYMENTS TO CLIENTS (DIRECT PAYMENTS),2103671394,1000089211
02.06.2023,ADULT SOCIAL CARE,PEOPLE PLUS GROUP LTD (INDEPENDENT LIVING SERVICES),-326.00,SOCIAL ISOLATION,DISCRETIONARY FLEXIBLE FEES & INCOME,2103670901,1000061886
02.06.2023,ADULT SOCIAL CARE,FRESH IDEAS & SOLUTIONS SERVICES CIC,-262.80,SOCIAL ISOLATION,DISCRETIONARY FLEXIBLE FEES & INCOME,2103671833,1000070832
02.06.2023,ADULT SOCIAL CARE,PEOPLE PLUS GROUP LTD (INDEPENDENT LIVING SERVICES),"-1,832.16",SOCIAL ISOLATION,PAYMENTS TO CLIENTS (DIRECT PAYMENTS),2103671383,1000061886
02.06.2023,ADULT SOCIAL CARE,PEOPLE PLUS GROUP LTD (INDEPENDENT LIVING SERVICES),552.36,SOCIAL ISOLATION,PAYMENTS TO CLIENTS (DIRECT PAYMENTS),2103670951,1000061886
02.06.2023,ADULT SOCIAL CARE,PEOPLE PLUS GROUP LTD (INDEPENDENT LIVING SERVICES),723.36,SOCIAL ISOLATION,PAYMENTS TO CLIENTS (DIRECT PAYMENTS),2103671306,1000061886
02.06.2023,ADULT SOCIAL CARE,PEOPLE PLUS GROUP LTD (INDEPENDENT LIVING SERVICES),958.72,SOCIAL ISOLATION,PAYMENTS TO CLIENTS (DIRECT PAYMENTS),2103671595,1000061886
02.06.2023,ADULT SOCIAL CARE,REDACTED PERSONAL DATA,611.84,SOCIAL ISOLATION,PAYMENTS TO CLIENTS (DIRECT PAYMENTS),REDACTED,REDACTED
02.06.2023,ADULT SOCIAL CARE,REDACTED PERSONAL DATA,"3,340.88",SOCIAL ISOLATION,PAYMENTS TO CLIENTS (DIRECT PAYMENTS),REDACTED,REDACTED
02.06.2023,ADULT SOCIAL CARE,PEOPLE PLUS GROUP LTD (INDEPENDENT LIVING SERVICES),-670.01,SPECIALIST CARE,PAYMENTS TO CLIENTS (DIRECT PAYMENTS),2103672029,1000061886
02.06.2023,ADULT SOCIAL CARE,PEOPLE PLUS GROUP LTD (INDEPENDENT LIVING SERVICES),-574.23,SPECIALIST CARE,PAYMENTS TO CLIENTS (DIRECT PAYMENTS),2103672032,1000061886
02.06.2023,ADULT SOCIAL CARE,PEOPLE PLUS GROUP LTD (INDEPENDENT LIVING SERVICES),250.36,SPECIALIST CARE,PAYMENTS TO CLIENTS (DIRECT PAYMENTS),2103672065,1000061886
02.06.2023,ADULT SOCIAL CARE,PEOPLE PLUS GROUP LTD (INDEPENDENT LIVING SERVICES),251.92,SPECIALIST CARE,PAYMENTS TO CLIENTS (DIRECT PAYMENTS),2103672090,1000061886
02.06.2023,ADULT SOCIAL CARE,PEOPLE PLUS GROUP LTD (INDEPENDENT LIVING SERVICES),263.04,SPECIALIST CARE,PAYMENTS TO CLIENTS (DIRECT PAYMENTS),2103671863,1000061886
02.06.2023,ADULT SOCIAL CARE,PEOPLE PLUS GROUP LTD (INDEPENDENT LIVING SERVICES),263.04,SPECIALIST CARE,PAYMENTS TO CLIENTS (DIRECT PAYMENTS),2103671867,1000061886
02.06.2023,ADULT SOCIAL CARE,PEOPLE PLUS GROUP LTD (INDEPENDENT LIVING SERVICES),263.04,SPECIALIST CARE,PAYMENTS TO CLIENTS (DIRECT PAYMENTS),2103671874,1000061886
02.06.2023,ADULT SOCIAL CARE,PEOPLE PLUS GROUP LTD (INDEPENDENT LIVING SERVICES),263.04,SPECIALIST CARE,PAYMENTS TO CLIENTS (DIRECT PAYMENTS),2103671906,1000061886
02.06.2023,ADULT SOCIAL CARE,PEOPLE PLUS GROUP LTD (INDEPENDENT LIVING SERVICES),263.04,SPECIALIST CARE,PAYMENTS TO CLIENTS (DIRECT PAYMENTS),2103671909,1000061886
02.06.2023,ADULT SOCIAL CARE,PEOPLE PLUS GROUP LTD (INDEPENDENT LIVING SERVICES),263.04,SPECIALIST CARE,PAYMENTS TO CLIENTS (DIRECT PAYMENTS),2103671916,1000061886
02.06.2023,ADULT SOCIAL CARE,PEOPLE PLUS GROUP LTD (INDEPENDENT LIVING SERVICES),263.04,SPECIALIST CARE,PAYMENTS TO CLIENTS (DIRECT PAYMENTS),2103671923,1000061886
02.06.2023,ADULT SOCIAL CARE,PEOPLE PLUS GROUP LTD (INDEPENDENT LIVING SERVICES),263.04,SPECIALIST CARE,PAYMENTS TO CLIENTS (DIRECT PAYMENTS),2103671957,1000061886
02.06.2023,ADULT SOCIAL CARE,PEOPLE PLUS GROUP LTD (INDEPENDENT LIVING SERVICES),263.04,SPECIALIST CARE,PAYMENTS TO CLIENTS (DIRECT PAYMENTS),2103671976,1000061886
02.06.2023,ADULT SOCIAL CARE,PEOPLE PLUS GROUP LTD (INDEPENDENT LIVING SERVICES),263.04,SPECIALIST CARE,PAYMENTS TO CLIENTS (DIRECT PAYMENTS),2103671996,1000061886
02.06.2023,ADULT SOCIAL CARE,PEOPLE PLUS GROUP LTD (INDEPENDENT LIVING SERVICES),263.04,SPECIALIST CARE,PAYMENTS TO CLIENTS (DIRECT PAYMENTS),2103672016,1000061886
02.06.2023,ADULT SOCIAL CARE,PEOPLE PLUS GROUP LTD (INDEPENDENT LIVING SERVICES),263.04,SPECIALIST CARE,PAYMENTS TO CLIENTS (DIRECT PAYMENTS),2103672017,1000061886
02.06.2023,ADULT SOCIAL CARE,PEOPLE PLUS GROUP LTD (INDEPENDENT LIVING SERVICES),263.04,SPECIALIST CARE,PAYMENTS TO CLIENTS (DIRECT PAYMENTS),2103672054,1000061886
02.06.2023,ADULT SOCIAL CARE,PEOPLE PLUS GROUP LTD (INDEPENDENT LIVING SERVICES),263.04,SPECIALIST CARE,PAYMENTS TO CLIENTS (DIRECT PAYMENTS),2103672059,1000061886
02.06.2023,ADULT SOCIAL CARE,PEOPLE PLUS GROUP LTD (INDEPENDENT LIVING SERVICES),263.04,SPECIALIST CARE,PAYMENTS TO CLIENTS (DIRECT PAYMENTS),2103672105,1000061886
02.06.2023,ADULT SOCIAL CARE,PEOPLE PLUS GROUP LTD (INDEPENDENT LIVING SERVICES),263.04,SPECIALIST CARE,PAYMENTS TO CLIENTS (DIRECT PAYMENTS),2103672118,1000061886
02.06.2023,ADULT SOCIAL CARE,PEOPLE PLUS GROUP LTD (INDEPENDENT LIVING SERVICES),263.04,SPECIALIST CARE,PAYMENTS TO CLIENTS (DIRECT PAYMENTS),2103672123,1000061886
02.06.2023,ADULT SOCIAL CARE,PEOPLE PLUS GROUP LTD (INDEPENDENT LIVING SERVICES),263.04,SPECIALIST CARE,PAYMENTS TO CLIENTS (DIRECT PAYMENTS),2103672136,1000061886
02.06.2023,ADULT SOCIAL CARE,PEOPLE PLUS GROUP LTD (INDEPENDENT LIVING SERVICES),263.04,SPECIALIST CARE,PAYMENTS TO CLIENTS (DIRECT PAYMENTS),2103672142,1000061886
02.06.2023,ADULT SOCIAL CARE,PEOPLE PLUS GROUP LTD (INDEPENDENT LIVING SERVICES),263.04,SPECIALIST CARE,PAYMENTS TO CLIENTS (DIRECT PAYMENTS),2103672156,1000061886
02.06.2023,ADULT SOCIAL CARE,PEOPLE PLUS GROUP LTD (INDEPENDENT LIVING SERVICES),263.04,SPECIALIST CARE,PAYMENTS TO CLIENTS (DIRECT PAYMENTS),2103672159,1000061886
02.06.2023,ADULT SOCIAL CARE,PEOPLE PLUS GROUP LTD (INDEPENDENT LIVING SERVICES),263.04,SPECIALIST CARE,PAYMENTS TO CLIENTS (DIRECT PAYMENTS),2103672171,1000061886
02.06.2023,ADULT SOCIAL CARE,PEOPLE PLUS GROUP LTD (INDEPENDENT LIVING SERVICES),263.04,SPECIALIST CARE,PAYMENTS TO CLIENTS (DIRECT PAYMENTS),2103672192,1000061886
02.06.2023,ADULT SOCIAL CARE,PEOPLE PLUS GROUP LTD (INDEPENDENT LIVING SERVICES),263.04,SPECIALIST CARE,PAYMENTS TO CLIENTS (DIRECT PAYMENTS),2103672198,1000061886
02.06.2023,ADULT SOCIAL CARE,PEOPLE PLUS GROUP LTD (INDEPENDENT LIVING SERVICES),272.72,SPECIALIST CARE,PAYMENTS TO CLIENTS (DIRECT PAYMENTS),2103672078,1000061886
02.06.2023,ADULT SOCIAL CARE,PEOPLE PLUS GROUP LTD (INDEPENDENT LIVING SERVICES),295.92,SPECIALIST CARE,PAYMENTS TO CLIENTS (DIRECT PAYMENTS),2103671871,1000061886
02.06.2023,ADULT SOCIAL CARE,PEOPLE PLUS GROUP LTD (INDEPENDENT LIVING SERVICES),295.92,SPECIALIST CARE,PAYMENTS TO CLIENTS (DIRECT PAYMENTS),2103671941,1000061886
02.06.2023,ADULT SOCIAL CARE,PEOPLE PLUS GROUP LTD (INDEPENDENT LIVING SERVICES),296.28,SPECIALIST CARE,PAYMENTS TO CLIENTS (DIRECT PAYMENTS),2103672076,1000061886
02.06.2023,ADULT SOCIAL CARE,PEOPLE PLUS GROUP LTD (INDEPENDENT LIVING SERVICES),298.48,SPECIALIST CARE,PAYMENTS TO CLIENTS (DIRECT PAYMENTS),2103671931,1000061886
02.06.2023,ADULT SOCIAL CARE,PEOPLE PLUS GROUP LTD (INDEPENDENT LIVING SERVICES),305.92,SPECIALIST CARE,PAYMENTS TO CLIENTS (DIRECT PAYMENTS),2103672097,1000061886
02.06.2023,ADULT SOCIAL CARE,PEOPLE PLUS GROUP LTD (INDEPENDENT LIVING SERVICES),305.92,SPECIALIST CARE,PAYMENTS TO CLIENTS (DIRECT PAYMENTS),2103672111,1000061886
02.06.2023,ADULT SOCIAL CARE,PEOPLE PLUS GROUP LTD (INDEPENDENT LIVING SERVICES),324.60,SPECIALIST CARE,PAYMENTS TO CLIENTS (DIRECT PAYMENTS),2103671855,1000061886
02.06.2023,ADULT SOCIAL CARE,PEOPLE PLUS GROUP LTD (INDEPENDENT LIVING SERVICES),328.80,SPECIALIST CARE,PAYMENTS TO CLIENTS (DIRECT PAYMENTS),2103671954,1000061886
02.06.2023,ADULT SOCIAL CARE,PEOPLE PLUS GROUP LTD (INDEPENDENT LIVING SERVICES),328.80,SPECIALIST CARE,PAYMENTS TO CLIENTS (DIRECT PAYMENTS),2103672121,1000061886
02.06.2023,ADULT SOCIAL CARE,PEOPLE PLUS GROUP LTD (INDEPENDENT LIVING SERVICES),328.80,SPECIALIST CARE,PAYMENTS TO CLIENTS (DIRECT PAYMENTS),2103672161,1000061886
02.06.2023,ADULT SOCIAL CARE,PEOPLE PLUS GROUP LTD (INDEPENDENT LIVING SERVICES),333.84,SPECIALIST CARE,PAYMENTS TO CLIENTS (DIRECT PAYMENTS),2103672053,1000061886
02.06.2023,ADULT SOCIAL CARE,PEOPLE PLUS GROUP LTD (INDEPENDENT LIVING SERVICES),345.24,SPECIALIST CARE,PAYMENTS TO CLIENTS (DIRECT PAYMENTS),2103671932,1000061886
02.06.2023,ADULT SOCIAL CARE,PEOPLE PLUS GROUP LTD (INDEPENDENT LIVING SERVICES),345.24,SPECIALIST CARE,PAYMENTS TO CLIENTS (DIRECT PAYMENTS),2103671969,1000061886
02.06.2023,ADULT SOCIAL CARE,PEOPLE PLUS GROUP LTD (INDEPENDENT LIVING SERVICES),358.12,SPECIALIST CARE,PAYMENTS TO CLIENTS (DIRECT PAYMENTS),2103672041,1000061886
02.06.2023,ADULT SOCIAL CARE,PEOPLE PLUS GROUP LTD (INDEPENDENT LIVING SERVICES),394.56,SPECIALIST CARE,PAYMENTS TO CLIENTS (DIRECT PAYMENTS),2103671878,1000061886
02.06.2023,ADULT SOCIAL CARE,PEOPLE PLUS GROUP LTD (INDEPENDENT LIVING SERVICES),394.56,SPECIALIST CARE,PAYMENTS TO CLIENTS (DIRECT PAYMENTS),2103671879,1000061886
02.06.2023,ADULT SOCIAL CARE,PEOPLE PLUS GROUP LTD (INDEPENDENT LIVING SERVICES),394.56,SPECIALIST CARE,PAYMENTS TO CLIENTS (DIRECT PAYMENTS),2103671904,1000061886
02.06.2023,ADULT SOCIAL CARE,PEOPLE PLUS GROUP LTD (INDEPENDENT LIVING SERVICES),394.56,SPECIALIST CARE,PAYMENTS TO CLIENTS (DIRECT PAYMENTS),2103671928,1000061886
02.06.2023,ADULT SOCIAL CARE,PEOPLE PLUS GROUP LTD (INDEPENDENT LIVING SERVICES),394.56,SPECIALIST CARE,PAYMENTS TO CLIENTS (DIRECT PAYMENTS),2103671956,1000061886
02.06.2023,ADULT SOCIAL CARE,PEOPLE PLUS GROUP LTD (INDEPENDENT LIVING SERVICES),394.56,SPECIALIST CARE,PAYMENTS TO CLIENTS (DIRECT PAYMENTS),2103672119,1000061886
02.06.2023,ADULT SOCIAL CARE,PEOPLE PLUS GROUP LTD (INDEPENDENT LIVING SERVICES),394.56,SPECIALIST CARE,PAYMENTS TO CLIENTS (DIRECT PAYMENTS),2103672122,1000061886
02.06.2023,ADULT SOCIAL CARE,PEOPLE PLUS GROUP LTD (INDEPENDENT LIVING SERVICES),394.56,SPECIALIST CARE,PAYMENTS TO CLIENTS (DIRECT PAYMENTS),2103672127,1000061886
02.06.2023,ADULT SOCIAL CARE,PEOPLE PLUS GROUP LTD (INDEPENDENT LIVING SERVICES),394.56,SPECIALIST CARE,PAYMENTS TO CLIENTS (DIRECT PAYMENTS),2103672148,1000061886
02.06.2023,ADULT SOCIAL CARE,PEOPLE PLUS GROUP LTD (INDEPENDENT LIVING SERVICES),394.56,SPECIALIST CARE,PAYMENTS TO CLIENTS (DIRECT PAYMENTS),2103672209,1000061886
02.06.2023,ADULT SOCIAL CARE,PEOPLE PLUS GROUP LTD (INDEPENDENT LIVING SERVICES),401.96,SPECIALIST CARE,PAYMENTS TO CLIENTS (DIRECT PAYMENTS),2103672096,1000061886
02.06.2023,ADULT SOCIAL CARE,PEOPLE PLUS GROUP LTD (INDEPENDENT LIVING SERVICES),404.92,SPECIALIST CARE,PAYMENTS TO CLIENTS (DIRECT PAYMENTS),2103672182,1000061886
02.06.2023,ADULT SOCIAL CARE,PEOPLE PLUS GROUP LTD (INDEPENDENT LIVING SERVICES),427.44,SPECIALIST CARE,PAYMENTS TO CLIENTS (DIRECT PAYMENTS),2103672039,1000061886
02.06.2023,ADULT SOCIAL CARE,PEOPLE PLUS GROUP LTD (INDEPENDENT LIVING SERVICES),460.32,SPECIALIST CARE,PAYMENTS TO CLIENTS (DIRECT PAYMENTS),2103671934,1000061886
02.06.2023,ADULT SOCIAL CARE,PEOPLE PLUS GROUP LTD (INDEPENDENT LIVING SERVICES),460.32,SPECIALIST CARE,PAYMENTS TO CLIENTS (DIRECT PAYMENTS),2103672040,1000061886
02.06.2023,ADULT SOCIAL CARE,PEOPLE PLUS GROUP LTD (INDEPENDENT LIVING SERVICES),460.32,SPECIALIST CARE,PAYMENTS TO CLIENTS (DIRECT PAYMENTS),2103672056,1000061886
02.06.2023,ADULT SOCIAL CARE,PEOPLE PLUS GROUP LTD (INDEPENDENT LIVING SERVICES),479.36,SPECIALIST CARE,PAYMENTS TO CLIENTS (DIRECT PAYMENTS),2103671946,1000061886
02.06.2023,ADULT SOCIAL CARE,PEOPLE PLUS GROUP LTD (INDEPENDENT LIVING SERVICES),483.08,SPECIALIST CARE,PAYMENTS TO CLIENTS (DIRECT PAYMENTS),2103671860,1000061886
02.06.2023,ADULT SOCIAL CARE,PEOPLE PLUS GROUP LTD (INDEPENDENT LIVING SERVICES),484.80,SPECIALIST CARE,PAYMENTS TO CLIENTS (DIRECT PAYMENTS),2103671898,1000061886
02.06.2023,ADULT SOCIAL CARE,PEOPLE PLUS GROUP LTD (INDEPENDENT LIVING SERVICES),493.20,SPECIALIST CARE,PAYMENTS TO CLIENTS (DIRECT PAYMENTS),2103672138,1000061886
02.06.2023,ADULT SOCIAL CARE,PEOPLE PLUS GROUP LTD (INDEPENDENT LIVING SERVICES),509.64,SPECIALIST CARE,PAYMENTS TO CLIENTS (DIRECT PAYMENTS),2103672066,1000061886
02.06.2023,ADULT SOCIAL CARE,PEOPLE PLUS GROUP LTD (INDEPENDENT LIVING SERVICES),526.08,SPECIALIST CARE,PAYMENTS TO CLIENTS (DIRECT PAYMENTS),2103671985,1000061886
02.06.2023,ADULT SOCIAL CARE,PEOPLE PLUS GROUP LTD (INDEPENDENT LIVING SERVICES),526.08,SPECIALIST CARE,PAYMENTS TO CLIENTS (DIRECT PAYMENTS),2103672009,1000061886
02.06.2023,ADULT SOCIAL CARE,PEOPLE PLUS GROUP LTD (INDEPENDENT LIVING SERVICES),526.08,SPECIALIST CARE,PAYMENTS TO CLIENTS (DIRECT PAYMENTS),2103672137,1000061886
02.06.2023,ADULT SOCIAL CARE,PEOPLE PLUS GROUP LTD (INDEPENDENT LIVING SERVICES),526.08,SPECIALIST CARE,PAYMENTS TO CLIENTS (DIRECT PAYMENTS),2103672208,1000061886
02.06.2023,ADULT SOCIAL CARE,PEOPLE PLUS GROUP LTD (INDEPENDENT LIVING SERVICES),575.40,SPECIALIST CARE,PAYMENTS TO CLIENTS (DIRECT PAYMENTS),2103672064,1000061886
02.06.2023,ADULT SOCIAL CARE,PEOPLE PLUS GROUP LTD (INDEPENDENT LIVING SERVICES),591.84,SPECIALIST CARE,PAYMENTS TO CLIENTS (DIRECT PAYMENTS),2103671881,1000061886
02.06.2023,ADULT SOCIAL CARE,PEOPLE PLUS GROUP LTD (INDEPENDENT LIVING SERVICES),611.84,SPECIALIST CARE,PAYMENTS TO CLIENTS (DIRECT PAYMENTS),2103671948,1000061886
02.06.2023,ADULT SOCIAL CARE,PEOPLE PLUS GROUP LTD (INDEPENDENT LIVING SERVICES),624.72,SPECIALIST CARE,PAYMENTS TO CLIENTS (DIRECT PAYMENTS),2103672063,1000061886
02.06.2023,ADULT SOCIAL CARE,PEOPLE PLUS GROUP LTD (INDEPENDENT LIVING SERVICES),641.16,SPECIALIST CARE,PAYMENTS TO CLIENTS (DIRECT PAYMENTS),2103672050,1000061886
02.06.2023,ADULT SOCIAL CARE,PEOPLE PLUS GROUP LTD (INDEPENDENT LIVING SERVICES),657.60,SPECIALIST CARE,PAYMENTS TO CLIENTS (DIRECT PAYMENTS),2103671959,1000061886
02.06.2023,ADULT SOCIAL CARE,PEOPLE PLUS GROUP LTD (INDEPENDENT LIVING SERVICES),657.60,SPECIALIST CARE,PAYMENTS TO CLIENTS (DIRECT PAYMENTS),2103671973,1000061886
02.06.2023,ADULT SOCIAL CARE,PEOPLE PLUS GROUP LTD (INDEPENDENT LIVING SERVICES),657.60,SPECIALIST CARE,PAYMENTS TO CLIENTS (DIRECT PAYMENTS),2103672165,1000061886
02.06.2023,ADULT SOCIAL CARE,PEOPLE PLUS GROUP LTD (INDEPENDENT LIVING SERVICES),657.60,SPECIALIST CARE,PAYMENTS TO CLIENTS (DIRECT PAYMENTS),2103672173,1000061886
02.06.2023,ADULT SOCIAL CARE,PEOPLE PLUS GROUP LTD (INDEPENDENT LIVING SERVICES),657.60,SPECIALIST CARE,PAYMENTS TO CLIENTS (DIRECT PAYMENTS),2103672201,1000061886
02.06.2023,ADULT SOCIAL CARE,PEOPLE PLUS GROUP LTD (INDEPENDENT LIVING SERVICES),688.32,SPECIALIST CARE,PAYMENTS TO CLIENTS (DIRECT PAYMENTS),2103671949,1000061886
02.06.2023,ADULT SOCIAL CARE,PEOPLE PLUS GROUP LTD (INDEPENDENT LIVING SERVICES),688.32,SPECIALIST CARE,PAYMENTS TO CLIENTS (DIRECT PAYMENTS),2103672188,1000061886
02.06.2023,ADULT SOCIAL CARE,PEOPLE PLUS GROUP LTD (INDEPENDENT LIVING SERVICES),690.48,SPECIALIST CARE,PAYMENTS TO CLIENTS (DIRECT PAYMENTS),2103672169,1000061886
02.06.2023,ADULT SOCIAL CARE,PEOPLE PLUS GROUP LTD (INDEPENDENT LIVING SERVICES),690.48,SPECIALIST CARE,PAYMENTS TO CLIENTS (DIRECT PAYMENTS),2103672194,1000061886
02.06.2023,ADULT SOCIAL CARE,PEOPLE PLUS GROUP LTD (INDEPENDENT LIVING SERVICES),695.48,SPECIALIST CARE,PAYMENTS TO CLIENTS (DIRECT PAYMENTS),2103671952,1000061886
02.06.2023,ADULT SOCIAL CARE,PEOPLE PLUS GROUP LTD (INDEPENDENT LIVING SERVICES),700.00,SPECIALIST CARE,PAYMENTS TO CLIENTS (DIRECT PAYMENTS),2103672175,1000061886
02.06.2023,ADULT SOCIAL CARE,PEOPLE PLUS GROUP LTD (INDEPENDENT LIVING SERVICES),756.24,SPECIALIST CARE,PAYMENTS TO CLIENTS (DIRECT PAYMENTS),2103672001,1000061886
02.06.2023,ADULT SOCIAL CARE,PEOPLE PLUS GROUP LTD (INDEPENDENT LIVING SERVICES),756.24,SPECIALIST CARE,PAYMENTS TO CLIENTS (DIRECT PAYMENTS),2103672116,1000061886
02.06.2023,ADULT SOCIAL CARE,PEOPLE PLUS GROUP LTD (INDEPENDENT LIVING SERVICES),782.48,SPECIALIST CARE,PAYMENTS TO CLIENTS (DIRECT PAYMENTS),2103671944,1000061886
02.06.2023,ADULT SOCIAL CARE,PEOPLE PLUS GROUP LTD (INDEPENDENT LIVING SERVICES),789.12,SPECIALIST CARE,PAYMENTS TO CLIENTS (DIRECT PAYMENTS),2103671984,1000061886
02.06.2023,ADULT SOCIAL CARE,PEOPLE PLUS GROUP LTD (INDEPENDENT LIVING SERVICES),789.12,SPECIALIST CARE,PAYMENTS TO CLIENTS (DIRECT PAYMENTS),2103671995,1000061886
02.06.2023,ADULT SOCIAL CARE,PEOPLE PLUS GROUP LTD (INDEPENDENT LIVING SERVICES),789.12,SPECIALIST CARE,PAYMENTS TO CLIENTS (DIRECT PAYMENTS),2103672049,1000061886
02.06.2023,ADULT SOCIAL CARE,PEOPLE PLUS GROUP LTD (INDEPENDENT LIVING SERVICES),794.16,SPECIALIST CARE,PAYMENTS TO CLIENTS (DIRECT PAYMENTS),2103672095,1000061886
02.06.2023,ADULT SOCIAL CARE,PEOPLE PLUS GROUP LTD (INDEPENDENT LIVING SERVICES),867.76,SPECIALIST CARE,PAYMENTS TO CLIENTS (DIRECT PAYMENTS),2103671856,1000061886
02.06.2023,ADULT SOCIAL CARE,PEOPLE PLUS GROUP LTD (INDEPENDENT LIVING SERVICES),887.76,SPECIALIST CARE,PAYMENTS TO CLIENTS (DIRECT PAYMENTS),2103671960,1000061886
02.06.2023,ADULT SOCIAL CARE,PEOPLE PLUS GROUP LTD (INDEPENDENT LIVING SERVICES),917.76,SPECIALIST CARE,PAYMENTS TO CLIENTS (DIRECT PAYMENTS),2103671951,1000061886
02.06.2023,ADULT SOCIAL CARE,PEOPLE PLUS GROUP LTD (INDEPENDENT LIVING SERVICES),920.64,SPECIALIST CARE,PAYMENTS TO CLIENTS (DIRECT PAYMENTS),2103671920,1000061886
02.06.2023,ADULT SOCIAL CARE,PEOPLE PLUS GROUP LTD (INDEPENDENT LIVING SERVICES),944.64,SPECIALIST CARE,PAYMENTS TO CLIENTS (DIRECT PAYMENTS),2103672027,1000061886
02.06.2023,ADULT SOCIAL CARE,PEOPLE PLUS GROUP LTD (INDEPENDENT LIVING SERVICES),954.80,SPECIALIST CARE,PAYMENTS TO CLIENTS (DIRECT PAYMENTS),2103672081,1000061886
02.06.2023,ADULT SOCIAL CARE,PEOPLE PLUS GROUP LTD (INDEPENDENT LIVING SERVICES),989.44,SPECIALIST CARE,PAYMENTS TO CLIENTS (DIRECT PAYMENTS),2103671913,1000061886
02.06.2023,ADULT SOCIAL CARE,PEOPLE PLUS GROUP LTD (INDEPENDENT LIVING SERVICES),"1,013.36",SPECIALIST CARE,PAYMENTS TO CLIENTS (DIRECT PAYMENTS),2103671857,1000061886
02.06.2023,ADULT SOCIAL CARE,PEOPLE PLUS GROUP LTD (INDEPENDENT LIVING SERVICES),"1,018.68",SPECIALIST CARE,PAYMENTS TO CLIENTS (DIRECT PAYMENTS),2103671891,1000061886
02.06.2023,ADULT SOCIAL CARE,PEOPLE PLUS GROUP LTD (INDEPENDENT LIVING SERVICES),"1,052.16",SPECIALIST CARE,PAYMENTS TO CLIENTS (DIRECT PAYMENTS),2103672051,1000061886
02.06.2023,ADULT SOCIAL CARE,PEOPLE PLUS GROUP LTD (INDEPENDENT LIVING SERVICES),"1,105.20",SPECIALIST CARE,PAYMENTS TO CLIENTS (DIRECT PAYMENTS),2103672094,1000061886
02.06.2023,ADULT SOCIAL CARE,PEOPLE PLUS GROUP LTD (INDEPENDENT LIVING SERVICES),"1,424.64",SPECIALIST CARE,PAYMENTS TO CLIENTS (DIRECT PAYMENTS),2103671895,1000061886
02.06.2023,ADULT SOCIAL CARE,PEOPLE PLUS GROUP LTD (INDEPENDENT LIVING SERVICES),"1,424.64",SPECIALIST CARE,PAYMENTS TO CLIENTS (DIRECT PAYMENTS),2103671897,1000061886
02.06.2023,ADULT SOCIAL CARE,PEOPLE PLUS GROUP LTD (INDEPENDENT LIVING SERVICES),"1,430.28",SPECIALIST CARE,PAYMENTS TO CLIENTS (DIRECT PAYMENTS),2103672166,1000061886
02.06.2023,ADULT SOCIAL CARE,PEOPLE PLUS GROUP LTD (INDEPENDENT LIVING SERVICES),"1,529.60",SPECIALIST CARE,PAYMENTS TO CLIENTS (DIRECT PAYMENTS),2103672124,1000061886
02.06.2023,ADULT SOCIAL CARE,PEOPLE PLUS GROUP LTD (INDEPENDENT LIVING SERVICES),"1,606.08",SPECIALIST CARE,PAYMENTS TO CLIENTS (DIRECT PAYMENTS),2103672110,1000061886
02.06.2023,ADULT SOCIAL CARE,PEOPLE PLUS GROUP LTD (INDEPENDENT LIVING SERVICES),"1,720.80",SPECIALIST CARE,PAYMENTS TO CLIENTS (DIRECT PAYMENTS),2103672035,1000061886
02.06.2023,ADULT SOCIAL CARE,PEOPLE PLUS GROUP LTD (INDEPENDENT LIVING SERVICES),"1,972.80",SPECIALIST CARE,PAYMENTS TO CLIENTS (DIRECT PAYMENTS),2103672061,1000061886
02.06.2023,ADULT SOCIAL CARE,PEOPLE PLUS GROUP LTD (INDEPENDENT LIVING SERVICES),"1,988.48",SPECIALIST CARE,PAYMENTS TO CLIENTS (DIRECT PAYMENTS),2103671899,1000061886
02.06.2023,ADULT SOCIAL CARE,PEOPLE PLUS GROUP LTD (INDEPENDENT LIVING SERVICES),"2,705.04",SPECIALIST CARE,PAYMENTS TO CLIENTS (DIRECT PAYMENTS),2103671890,1000061886
02.06.2023,ADULT SOCIAL CARE,PEOPLE PLUS GROUP LTD (INDEPENDENT LIVING SERVICES),"3,254.28",SPECIALIST CARE,PAYMENTS TO CLIENTS (DIRECT PAYMENTS),2103671896,1000061886
02.06.2023,ADULT SOCIAL CARE,FRESH IDEAS & SOLUTIONS SERVICES CIC,482.88,SPECIALIST CARE,PAYMENTS TO CLIENTS (DIRECT PAYMENTS),2103671900,1000070832
02.06.2023,ADULT SOCIAL CARE,FRESH IDEAS & SOLUTIONS SERVICES CIC,841.28,SPECIALIST CARE,PAYMENTS TO CLIENTS (DIRECT PAYMENTS),2103672100,1000070832
02.06.2023,ADULT SOCIAL CARE,FRESH IDEAS & SOLUTIONS SERVICES CIC,854.88,SPECIALIST CARE,PAYMENTS TO CLIENTS (DIRECT PAYMENTS),2103672038,1000070832
02.06.2023,ADULT SOCIAL CARE,PEOPLEPLUS GROUP LTD,526.08,SPECIALIST CARE,PAYMENTS TO CLIENTS (DIRECT PAYMENTS),2103671864,1000076642
02.06.2023,ADULT SOCIAL CARE,PEOPLEPLUS GROUP LTD,873.67,SPECIALIST CARE,PAYMENTS TO CLIENTS (DIRECT PAYMENTS),2103672147,1000076642
02.06.2023,ADULT SOCIAL CARE,BARRIE BOOKKEEPING & PAYROLL SOLUTIONS LTD,609.47,SPECIALIST CARE,PAYMENTS TO CLIENTS (DIRECT PAYMENTS),2103672190,1000089211
02.06.2023,ADULT SOCIAL CARE,REDACTED PERSONAL DATA,263.04,SPECIALIST CARE,PAYMENTS TO CLIENTS (DIRECT PAYMENTS),REDACTED,REDACTED
02.06.2023,ADULT SOCIAL CARE,REDACTED PERSONAL DATA,263.04,SPECIALIST CARE,PAYMENTS TO CLIENTS (DIRECT PAYMENTS),REDACTED,REDACTED
02.06.2023,ADULT SOCIAL CARE,REDACTED PERSONAL DATA,263.04,SPECIALIST CARE,PAYMENTS TO CLIENTS (DIRECT PAYMENTS),REDACTED,REDACTED
02.06.2023,ADULT SOCIAL CARE,REDACTED PERSONAL DATA,263.04,SPECIALIST CARE,PAYMENTS TO CLIENTS (DIRECT PAYMENTS),REDACTED,REDACTED
02.06.2023,ADULT SOCIAL CARE,REDACTED PERSONAL DATA,263.04,SPECIALIST CARE,PAYMENTS TO CLIENTS (DIRECT PAYMENTS),REDACTED,REDACTED
02.06.2023,ADULT SOCIAL CARE,REDACTED PERSONAL DATA,263.04,SPECIALIST CARE,PAYMENTS TO CLIENTS (DIRECT PAYMENTS),REDACTED,REDACTED
02.06.2023,ADULT SOCIAL CARE,REDACTED PERSONAL DATA,267.36,SPECIALIST CARE,PAYMENTS TO CLIENTS (DIRECT PAYMENTS),REDACTED,REDACTED
02.06.2023,ADULT SOCIAL CARE,REDACTED PERSONAL DATA,283.04,SPECIALIST CARE,PAYMENTS TO CLIENTS (DIRECT PAYMENTS),REDACTED,REDACTED
02.06.2023,ADULT SOCIAL CARE,REDACTED PERSONAL DATA,283.04,SPECIALIST CARE,PAYMENTS TO CLIENTS (DIRECT PAYMENTS),REDACTED,REDACTED
02.06.2023,ADULT SOCIAL CARE,REDACTED PERSONAL DATA,283.04,SPECIALIST CARE,PAYMENTS TO CLIENTS (DIRECT PAYMENTS),REDACTED,REDACTED
02.06.2023,ADULT SOCIAL CARE,REDACTED PERSONAL DATA,283.04,SPECIALIST CARE,PAYMENTS TO CLIENTS (DIRECT PAYMENTS),REDACTED,REDACTED
02.06.2023,ADULT SOCIAL CARE,REDACTED PERSONAL DATA,283.04,SPECIALIST CARE,PAYMENTS TO CLIENTS (DIRECT PAYMENTS),REDACTED,REDACTED
02.06.2023,ADULT SOCIAL CARE,REDACTED PERSONAL DATA,283.04,SPECIALIST CARE,PAYMENTS TO CLIENTS (DIRECT PAYMENTS),REDACTED,REDACTED
02.06.2023,ADULT SOCIAL CARE,REDACTED PERSONAL DATA,287.04,SPECIALIST CARE,PAYMENTS TO CLIENTS (DIRECT PAYMENTS),REDACTED,REDACTED
02.06.2023,ADULT SOCIAL CARE,REDACTED PERSONAL DATA,287.20,SPECIALIST CARE,PAYMENTS TO CLIENTS (DIRECT PAYMENTS),REDACTED,REDACTED
02.06.2023,ADULT SOCIAL CARE,REDACTED PERSONAL DATA,295.92,SPECIALIST CARE,PAYMENTS TO CLIENTS (DIRECT PAYMENTS),REDACTED,REDACTED
02.06.2023,ADULT SOCIAL CARE,REDACTED PERSONAL DATA,305.92,SPECIALIST CARE,PAYMENTS TO CLIENTS (DIRECT PAYMENTS),REDACTED,REDACTED
02.06.2023,ADULT SOCIAL CARE,REDACTED PERSONAL DATA,361.68,SPECIALIST CARE,PAYMENTS TO CLIENTS (DIRECT PAYMENTS),REDACTED,REDACTED
02.06.2023,ADULT SOCIAL CARE,REDACTED PERSONAL DATA,381.68,SPECIALIST CARE,PAYMENTS TO CLIENTS (DIRECT PAYMENTS),REDACTED,REDACTED
02.06.2023,ADULT SOCIAL CARE,REDACTED PERSONAL DATA,381.68,SPECIALIST CARE,PAYMENTS TO CLIENTS (DIRECT PAYMENTS),REDACTED,REDACTED
02.06.2023,ADULT SOCIAL CARE,REDACTED PERSONAL DATA,394.56,SPECIALIST CARE,PAYMENTS TO CLIENTS (DIRECT PAYMENTS),REDACTED,REDACTED
02.06.2023,ADULT SOCIAL CARE,REDACTED PERSONAL DATA,394.56,SPECIALIST CARE,PAYMENTS TO CLIENTS (DIRECT PAYMENTS),REDACTED,REDACTED
02.06.2023,ADULT SOCIAL CARE,REDACTED PERSONAL DATA,394.56,SPECIALIST CARE,PAYMENTS TO CLIENTS (DIRECT PAYMENTS),REDACTED,REDACTED
02.06.2023,ADULT SOCIAL CARE,REDACTED PERSONAL DATA,414.56,SPECIALIST CARE,PAYMENTS TO CLIENTS (DIRECT PAYMENTS),REDACTED,REDACTED
02.06.2023,ADULT SOCIAL CARE,REDACTED PERSONAL DATA,417.28,SPECIALIST CARE,PAYMENTS TO CLIENTS (DIRECT PAYMENTS),REDACTED,REDACTED
02.06.2023,ADULT SOCIAL CARE,REDACTED PERSONAL DATA,443.88,SPECIALIST CARE,PAYMENTS TO CLIENTS (DIRECT PAYMENTS),REDACTED,REDACTED
02.06.2023,ADULT SOCIAL CARE,REDACTED PERSONAL DATA,458.88,SPECIALIST CARE,PAYMENTS TO CLIENTS (DIRECT PAYMENTS),REDACTED,REDACTED
02.06.2023,ADULT SOCIAL CARE,REDACTED PERSONAL DATA,460.32,SPECIALIST CARE,PAYMENTS TO CLIENTS (DIRECT PAYMENTS),REDACTED,REDACTED
02.06.2023,ADULT SOCIAL CARE,REDACTED PERSONAL DATA,476.76,SPECIALIST CARE,PAYMENTS TO CLIENTS (DIRECT PAYMENTS),REDACTED,REDACTED
02.06.2023,ADULT SOCIAL CARE,REDACTED PERSONAL DATA,478.80,SPECIALIST CARE,PAYMENTS TO CLIENTS (DIRECT PAYMENTS),REDACTED,REDACTED
02.06.2023,ADULT SOCIAL CARE,REDACTED PERSONAL DATA,513.20,SPECIALIST CARE,PAYMENTS TO CLIENTS (DIRECT PAYMENTS),REDACTED,REDACTED
02.06.2023,ADULT SOCIAL CARE,REDACTED PERSONAL DATA,546.08,SPECIALIST CARE,PAYMENTS TO CLIENTS (DIRECT PAYMENTS),REDACTED,REDACTED
02.06.2023,ADULT SOCIAL CARE,REDACTED PERSONAL DATA,555.36,SPECIALIST CARE,PAYMENTS TO CLIENTS (DIRECT PAYMENTS),REDACTED,REDACTED
02.06.2023,ADULT SOCIAL CARE,REDACTED PERSONAL DATA,558.96,SPECIALIST CARE,PAYMENTS TO CLIENTS (DIRECT PAYMENTS),REDACTED,REDACTED
02.06.2023,ADULT SOCIAL CARE,REDACTED PERSONAL DATA,591.84,SPECIALIST CARE,PAYMENTS TO CLIENTS (DIRECT PAYMENTS),REDACTED,REDACTED
02.06.2023,ADULT SOCIAL CARE,REDACTED PERSONAL DATA,591.84,SPECIALIST CARE,PAYMENTS TO CLIENTS (DIRECT PAYMENTS),REDACTED,REDACTED
02.06.2023,ADULT SOCIAL CARE,REDACTED PERSONAL DATA,608.28,SPECIALIST CARE,PAYMENTS TO CLIENTS (DIRECT PAYMENTS),REDACTED,REDACTED
02.06.2023,ADULT SOCIAL CARE,REDACTED PERSONAL DATA,611.84,SPECIALIST CARE,PAYMENTS TO CLIENTS (DIRECT PAYMENTS),REDACTED,REDACTED
02.06.2023,ADULT SOCIAL CARE,REDACTED PERSONAL DATA,612.20,SPECIALIST CARE,PAYMENTS TO CLIENTS (DIRECT PAYMENTS),REDACTED,REDACTED
02.06.2023,ADULT SOCIAL CARE,REDACTED PERSONAL DATA,624.72,SPECIALIST CARE,PAYMENTS TO CLIENTS (DIRECT PAYMENTS),REDACTED,REDACTED
02.06.2023,ADULT SOCIAL CARE,REDACTED PERSONAL DATA,631.84,SPECIALIST CARE,PAYMENTS TO CLIENTS (DIRECT PAYMENTS),REDACTED,REDACTED
02.06.2023,ADULT SOCIAL CARE,REDACTED PERSONAL DATA,644.72,SPECIALIST CARE,PAYMENTS TO CLIENTS (DIRECT PAYMENTS),REDACTED,REDACTED
02.06.2023,ADULT SOCIAL CARE,REDACTED PERSONAL DATA,657.60,SPECIALIST CARE,PAYMENTS TO CLIENTS (DIRECT PAYMENTS),REDACTED,REDACTED
02.06.2023,ADULT SOCIAL CARE,REDACTED PERSONAL DATA,657.60,SPECIALIST CARE,PAYMENTS TO CLIENTS (DIRECT PAYMENTS),REDACTED,REDACTED
02.06.2023,ADULT SOCIAL CARE,REDACTED PERSONAL DATA,657.60,SPECIALIST CARE,PAYMENTS TO CLIENTS (DIRECT PAYMENTS),REDACTED,REDACTED
02.06.2023,ADULT SOCIAL CARE,REDACTED PERSONAL DATA,690.48,SPECIALIST CARE,PAYMENTS TO CLIENTS (DIRECT PAYMENTS),REDACTED,REDACTED
02.06.2023,ADULT SOCIAL CARE,REDACTED PERSONAL DATA,764.80,SPECIALIST CARE,PAYMENTS TO CLIENTS (DIRECT PAYMENTS),REDACTED,REDACTED
02.06.2023,ADULT SOCIAL CARE,REDACTED PERSONAL DATA,783.84,SPECIALIST CARE,PAYMENTS TO CLIENTS (DIRECT PAYMENTS),REDACTED,REDACTED
02.06.2023,ADULT SOCIAL CARE,REDACTED PERSONAL DATA,818.84,SPECIALIST CARE,PAYMENTS TO CLIENTS (DIRECT PAYMENTS),REDACTED,REDACTED
02.06.2023,ADULT SOCIAL CARE,REDACTED PERSONAL DATA,887.76,SPECIALIST CARE,PAYMENTS TO CLIENTS (DIRECT PAYMENTS),REDACTED,REDACTED
02.06.2023,ADULT SOCIAL CARE,REDACTED PERSONAL DATA,940.64,SPECIALIST CARE,PAYMENTS TO CLIENTS (DIRECT PAYMENTS),REDACTED,REDACTED
02.06.2023,ADULT SOCIAL CARE,REDACTED PERSONAL DATA,"1,035.44",SPECIALIST CARE,PAYMENTS TO CLIENTS (DIRECT PAYMENTS),REDACTED,REDACTED
02.06.2023,ADULT SOCIAL CARE,REDACTED PERSONAL DATA,"1,076.80",SPECIALIST CARE,PAYMENTS TO CLIENTS (DIRECT PAYMENTS),REDACTED,REDACTED
02.06.2023,ADULT SOCIAL CARE,REDACTED PERSONAL DATA,"1,167.20",SPECIALIST CARE,PAYMENTS TO CLIENTS (DIRECT PAYMENTS),REDACTED,REDACTED
02.06.2023,ADULT SOCIAL CARE,REDACTED PERSONAL DATA,"1,318.32",SPECIALIST CARE,PAYMENTS TO CLIENTS (DIRECT PAYMENTS),REDACTED,REDACTED
02.06.2023,ADULT SOCIAL CARE,REDACTED PERSONAL DATA,"1,415.76",SPECIALIST CARE,PAYMENTS TO CLIENTS (DIRECT PAYMENTS),REDACTED,REDACTED
02.06.2023,ADULT SOCIAL CARE,REDACTED PERSONAL DATA,"1,529.60",SPECIALIST CARE,PAYMENTS TO CLIENTS (DIRECT PAYMENTS),REDACTED,REDACTED
02.06.2023,ADULT SOCIAL CARE,REDACTED PERSONAL DATA,"1,972.80",SPECIALIST CARE,PAYMENTS TO CLIENTS (DIRECT PAYMENTS),REDACTED,REDACTED
02.06.2023,ADULT SOCIAL CARE,REDACTED PERSONAL DATA,"2,217.92",SPECIALIST CARE,PAYMENTS TO CLIENTS (DIRECT PAYMENTS),REDACTED,REDACTED
02.06.2023,ADULT SOCIAL CARE,REDACTED PERSONAL DATA,"2,415.54",SPECIALIST CARE,PAYMENTS TO CLIENTS (DIRECT PAYMENTS),REDACTED,REDACTED
02.06.2023,ADULT SOCIAL CARE,REDACTED PERSONAL DATA,"3,518.08",SPECIALIST CARE,PAYMENTS TO CLIENTS (DIRECT PAYMENTS),REDACTED,REDACTED
02.06.2023,ADULT SOCIAL CARE,REDACTED PERSONAL DATA,"5,220.64",SPECIALIST CARE,PAYMENTS TO CLIENTS (DIRECT PAYMENTS),REDACTED,REDACTED
02.06.2023,ADULT SOCIAL CARE,CONTACT PROFESSIONALS,250.51,SPECIALIST CARE,SECTION 17 PAYMENTS TO AGENCIES/CARERS,2103670600,1000057263
02.06.2023,ADULT SOCIAL CARE,CONTACT PROFESSIONALS,250.51,SPECIALIST CARE,SECTION 17 PAYMENTS TO AGENCIES/CARERS,2103670657,1000057263
02.06.2023,ADULT SOCIAL CARE,CONTACT PROFESSIONALS,269.78,SPECIALIST CARE,SECTION 17 PAYMENTS TO AGENCIES/CARERS,2103670704,1000057263
02.06.2023,ADULT SOCIAL CARE,CONTACT PROFESSIONALS,385.40,SPECIALIST CARE,SECTION 17 PAYMENTS TO AGENCIES/CARERS,2103670598,1000057263
02.06.2023,ADULT SOCIAL CARE,CONTACT PROFESSIONALS,385.40,SPECIALIST CARE,SECTION 17 PAYMENTS TO AGENCIES/CARERS,2103670673,1000057263
02.06.2023,ADULT SOCIAL CARE,CONTACT PROFESSIONALS,462.48,SPECIALIST CARE,SECTION 17 PAYMENTS TO AGENCIES/CARERS,2103670615,1000057263
02.06.2023,ADULT SOCIAL CARE,CONTACT PROFESSIONALS,462.48,SPECIALIST CARE,SECTION 17 PAYMENTS TO AGENCIES/CARERS,2103670624,1000057263
02.06.2023,ADULT SOCIAL CARE,CONTACT PROFESSIONALS,462.48,SPECIALIST CARE,SECTION 17 PAYMENTS TO AGENCIES/CARERS,2103670629,1000057263
02.06.2023,ADULT SOCIAL CARE,CONTACT PROFESSIONALS,462.48,SPECIALIST CARE,SECTION 17 PAYMENTS TO AGENCIES/CARERS,2103670633,1000057263
02.06.2023,ADULT SOCIAL CARE,CONTACT PROFESSIONALS,520.29,SPECIALIST CARE,SECTION 17 PAYMENTS TO AGENCIES/CARERS,2103670648,1000057263
02.06.2023,ADULT SOCIAL CARE,CONTACT PROFESSIONALS,578.10,SPECIALIST CARE,SECTION 17 PAYMENTS TO AGENCIES/CARERS,2103670608,1000057263
02.06.2023,ADULT SOCIAL CARE,CONTACT PROFESSIONALS,578.10,SPECIALIST CARE,SECTION 17 PAYMENTS TO AGENCIES/CARERS,2103670646,1000057263
02.06.2023,ADULT SOCIAL CARE,CONTACT PROFESSIONALS,597.37,SPECIALIST CARE,SECTION 17 PAYMENTS TO AGENCIES/CARERS,2103670638,1000057263
02.06.2023,ADULT SOCIAL CARE,CONTACT PROFESSIONALS,828.10,SPECIALIST CARE,SECTION 17 PAYMENTS TO AGENCIES/CARERS,2103670609,1000057263
02.06.2023,ADULT SOCIAL CARE,SUPREME CARE SERVICES LTD,288.00,SPECIALIST CARE,SECTION 17 PAYMENTS TO AGENCIES/CARERS,2103670616,1000059416
02.06.2023,ADULT SOCIAL CARE,SUPREME CARE SERVICES LTD,288.00,SPECIALIST CARE,SECTION 17 PAYMENTS TO AGENCIES/CARERS,2103670625,1000059416
02.06.2023,ADULT SOCIAL CARE,SUPREME CARE SERVICES LTD,288.00,SPECIALIST CARE,SECTION 17 PAYMENTS TO AGENCIES/CARERS,2103670645,1000059416
02.06.2023,ADULT SOCIAL CARE,SUPREME CARE SERVICES LTD,288.00,SPECIALIST CARE,SECTION 17 PAYMENTS TO AGENCIES/CARERS,2103670651,1000059416
02.06.2023,ADULT SOCIAL CARE,SUPREME CARE SERVICES LTD,288.00,SPECIALIST CARE,SECTION 17 PAYMENTS TO AGENCIES/CARERS,2103670654,1000059416
02.06.2023,ADULT SOCIAL CARE,SUPREME CARE SERVICES LTD,288.00,SPECIALIST CARE,SECTION 17 PAYMENTS TO AGENCIES/CARERS,2103670655,1000059416
02.06.2023,ADULT SOCIAL CARE,SUPREME CARE SERVICES LTD,288.00,SPECIALIST CARE,SECTION 17 PAYMENTS TO AGENCIES/CARERS,2103670663,1000059416
02.06.2023,ADULT SOCIAL CARE,SUPREME CARE SERVICES LTD,288.00,SPECIALIST CARE,SECTION 17 PAYMENTS TO AGENCIES/CARERS,2103670684,1000059416
02.06.2023,ADULT SOCIAL CARE,SUPREME CARE SERVICES LTD,288.00,SPECIALIST CARE,SECTION 17 PAYMENTS TO AGENCIES/CARERS,2103670694,1000059416
02.06.2023,ADULT SOCIAL CARE,SUPREME CARE SERVICES LTD,288.00,SPECIALIST CARE,SECTION 17 PAYMENTS TO AGENCIES/CARERS,2103670709,1000059416
02.06.2023,ADULT SOCIAL CARE,SUPREME CARE SERVICES LTD,288.00,SPECIALIST CARE,SECTION 17 PAYMENTS TO AGENCIES/CARERS,2103670711,1000059416
02.06.2023,ADULT SOCIAL CARE,SUPREME CARE SERVICES LTD,324.00,SPECIALIST CARE,SECTION 17 PAYMENTS TO AGENCIES/CARERS,2103670650,1000059416
02.06.2023,ADULT SOCIAL CARE,SUPREME CARE SERVICES LTD,324.00,SPECIALIST CARE,SECTION 17 PAYMENTS TO AGENCIES/CARERS,2103670692,1000059416
02.06.2023,ADULT SOCIAL CARE,SUPREME CARE SERVICES LTD,360.00,SPECIALIST CARE,SECTION 17 PAYMENTS TO AGENCIES/CARERS,2103670653,1000059416
02.06.2023,ADULT SOCIAL CARE,SUPREME CARE SERVICES LTD,360.00,SPECIALIST CARE,SECTION 17 PAYMENTS TO AGENCIES/CARERS,2103670685,1000059416
02.06.2023,ADULT SOCIAL CARE,SUPREME CARE SERVICES LTD,432.00,SPECIALIST CARE,SECTION 17 PAYMENTS TO AGENCIES/CARERS,2103670617,1000059416
02.06.2023,ADULT SOCIAL CARE,SUPREME CARE SERVICES LTD,432.00,SPECIALIST CARE,SECTION 17 PAYMENTS TO AGENCIES/CARERS,2103670640,1000059416
02.06.2023,ADULT SOCIAL CARE,SUPREME CARE SERVICES LTD,432.00,SPECIALIST CARE,SECTION 17 PAYMENTS TO AGENCIES/CARERS,2103670693,1000059416
02.06.2023,ADULT SOCIAL CARE,SUPREME CARE SERVICES LTD,432.00,SPECIALIST CARE,SECTION 17 PAYMENTS TO AGENCIES/CARERS,2103670695,1000059416
02.06.2023,ADULT SOCIAL CARE,SUPREME CARE SERVICES LTD,432.00,SPECIALIST CARE,SECTION 17 PAYMENTS TO AGENCIES/CARERS,2103670708,1000059416
02.06.2023,ADULT SOCIAL CARE,SUPREME CARE SERVICES LTD,504.00,SPECIALIST CARE,SECTION 17 PAYMENTS TO AGENCIES/CARERS,2103670652,1000059416
02.06.2023,ADULT SOCIAL CARE,SUPREME CARE SERVICES LTD,648.00,SPECIALIST CARE,SECTION 17 PAYMENTS TO AGENCIES/CARERS,2103670596,1000059416
02.06.2023,ADULT SOCIAL CARE,SUPREME CARE SERVICES LTD,756.00,SPECIALIST CARE,SECTION 17 PAYMENTS TO AGENCIES/CARERS,2103670626,1000059416
02.06.2023,ADULT SOCIAL CARE,SUPREME CARE SERVICES LTD,756.00,SPECIALIST CARE,SECTION 17 PAYMENTS TO AGENCIES/CARERS,2103670661,1000059416
02.06.2023,ADULT SOCIAL CARE,SUPREME CARE SERVICES LTD,864.00,SPECIALIST CARE,SECTION 17 PAYMENTS TO AGENCIES/CARERS,2103670610,1000059416
02.06.2023,ADULT SOCIAL CARE,SUPREME CARE SERVICES LTD,864.00,SPECIALIST CARE,SECTION 17 PAYMENTS TO AGENCIES/CARERS,2103670716,1000059416
02.06.2023,ASSET MANAGEMENT,JUDGE AND PRIESTLEY SOLICITORS,"32,581.70",DISREPAIR,BUILDING R&M,5902582333,1472217
02.06.2023,ASSET MANAGEMENT,PROPERTY FACILITIES GROUP PLC,"1,894.56",DISREPAIR,BUILDING R&M,2103670344,3000001420
02.06.2023,ASSET MANAGEMENT,PROPERTY FACILITIES GROUP PLC,"2,171.57",DISREPAIR,BUILDING R&M,2103670345,3000001420
02.06.2023,ASSET MANAGEMENT,PROPERTY FACILITIES GROUP PLC,"2,242.87",DISREPAIR,BUILDING R&M,2103670535,3000001420
02.06.2023,ASSET MANAGEMENT,SANDERSONS BUILDING SERVICES LTD,"6,989.91",DISREPAIR,BUILDING R&M,2103670347,3000002065
02.06.2023,ASSET MANAGEMENT,SANDERSONS BUILDING SERVICES LTD,"7,996.62",DISREPAIR,BUILDING R&M,2103670346,3000002065
02.06.2023,ASSET MANAGEMENT,ARMINA LTD,322.69,DISREPAIR,BUILDING R&M,2103670291,3000002121
02.06.2023,ASSET MANAGEMENT,ARMINA LTD,"1,268.59",DISREPAIR,BUILDING R&M,2103670481,3000002121
02.06.2023,ASSET MANAGEMENT,ARMINA LTD,"1,868.97",DISREPAIR,BUILDING R&M,2103670480,3000002121
02.06.2023,ASSET MANAGEMENT,LONDON FIRE BRIGADE,364.00,ENG CONTRACTS (NORTH),LIFTS,5902581715,1000083629
02.06.2023,ASSET MANAGEMENT,LONDON FIRE BRIGADE,364.00,ENG CONTRACTS (NORTH),LIFTS,5902581718,1000083629
02.06.2023,ASSET MANAGEMENT,LONDON FIRE BRIGADE,364.00,ENG CONTRACTS (NORTH),LIFTS,5902581853,1000083629
02.06.2023,ASSET MANAGEMENT,METRO DIGITAL TELEVISION LTD,255.00,ENG CONTRACTS (NORTH),TV AERIALS R&M,5902582527,1000070713
02.06.2023,C&A,SKYWAY,440.00,HOLIDAY ACTIVITIES & FOOD,EXTERNAL AGENCIES AND BODIES,5902582043,1000069595
02.06.2023,CENTRAL FUNCTIONS,ELIZABETH SUSAN SINGLETON T/A SINGLELAW,810.00,HOME OWNERSHIP,SUBSCRIPTIONS,5902582388,1000073993
02.06.2023,CHIEF EXECUTIVE,ROOCOU CONSULTING LTD,"8,700.00",CORPORATE & DEPARTMENTAL EXPENDITURE,CONSULTANTS SERVICES,5902582396,1000081284
02.06.2023,CHILDREN AND ADULT,BLOOM PROCUREMENT SERVICES LTD,"4,775.00",CAPITAL PS (EDUCATION),CONSTRUCTION FEES,5902582391,1000082531
02.06.2023,CHILDREN AND ADULT,FAITHFUL & GOULD,"18,236.00",CAPITAL PS (EDUCATION),CONSTRUCTION FEES  - EXTERNAL,5902582415,1000061390
02.06.2023,CHILDREN AND ADULT,FAITHFUL & GOULD,"40,742.69",CAPITAL PS (EDUCATION),CONSTRUCTION FEES - INTERNAL,5902582420,1000061390
02.06.2023,CHILDREN AND ADULT,FAITHFUL & GOULD,"95,192.51",CAPITAL PS (EDUCATION),CONSTRUCTION FEES - INTERNAL,5902582417,1000061390
02.06.2023,CHILDREN AND FAMILIES,REDACTED PERSONAL DATA,380.00,ADOPTION SUPP FUND 2,EXTERNAL AGENCIES AND BODIES,REDACTED,REDACTED
02.06.2023,CHILDREN AND FAMILIES,SANKOFA CARE LTD,"15,600.00",CHILDREN�S RESID,RESIDENTIAL CARE,2103670590,1000030717
02.06.2023,CHILDREN AND FAMILIES,ESLAND NORTH LTD,"24,200.00",CHILDREN�S RESID,RESIDENTIAL CARE,2103670582,1000084018
02.06.2023,CHILDREN AND FAMILIES,MONTAGE SERVICES LTD,"33,974.56",CHILDREN�S RESID,RESIDENTIAL CARE,2103670585,1000089446
02.06.2023,CHILDREN AND FAMILIES,REDACTED PERSONAL DATA,"1,750.00",CHILDREN�S RESID,RESIDENTIAL CARE,REDACTED,REDACTED
02.06.2023,CHILDREN AND FAMILIES,REDACTED PERSONAL DATA,"4,800.00",CHILDREN�S RESID,RESIDENTIAL CARE,REDACTED,REDACTED
02.06.2023,CHILDREN AND FAMILIES,CONTACT PROFESSIONALS,266.00,CONTACT SERVICE,OTHER PAYMENTS FOR CLIENTS,2103670593,1000057263
02.06.2023,CHILDREN AND FAMILIES,CONTACT PROFESSIONALS,512.00,CONTACT SERVICE,OTHER PAYMENTS FOR CLIENTS,2103670594,1000057263
02.06.2023,CHILDREN AND FAMILIES,CONTACT PROFESSIONALS,684.00,CONTACT SERVICE,OTHER PAYMENTS FOR CLIENTS,2103670595,1000057263
02.06.2023,CHILDREN AND FAMILIES,KASPER FOSTERING,"3,513.23",FRIENDS & FAMILY FOSTERING,EXTERNAL AGENCIES AND BODIES,2103670719,1000036628
02.06.2023,CHILDREN AND FAMILIES,KASPER FOSTERING,"4,640.39",FRIENDS & FAMILY FOSTERING,EXTERNAL AGENCIES AND BODIES,2103670717,1000036628
02.06.2023,CHILDREN AND FAMILIES,NATIONAL FOSTERING AGENCY LTD,"2,627.52",FRIENDS & FAMILY FOSTERING,EXTERNAL AGENCIES AND BODIES,2103670578,1000038868
02.06.2023,CHILDREN AND FAMILIES,FOSTERING LONDON LTD,"5,398.34",FRIENDS & FAMILY FOSTERING,EXTERNAL AGENCIES AND BODIES,2103670579,1000077541
02.06.2023,CHILDREN AND FAMILIES,DIVERSITY FOSTER CARE LTD,"4,108.69",FRIENDS & FAMILY FOSTERING,EXTERNAL AGENCIES AND BODIES,2103670718,1000081399
02.06.2023,CHILDREN AND FAMILIES,INTEGRATED FOSTERING SERVICES LTD,"16,739.94",FRIENDS & FAMILY FOSTERING,EXTERNAL AGENCIES AND BODIES,2103670580,1000082605
02.06.2023,CHILDREN AND FAMILIES,AIM HIGH FOSTERING SERVICES LTD,"5,314.33",FRIENDS & FAMILY FOSTERING,EXTERNAL AGENCIES AND BODIES,2103670576,1000082607
02.06.2023,CHILDREN AND FAMILIES,REDACTED PERSONAL DATA,400.00,KINSHIP FOSTERING,ADDITIONAL PAYMENTS TO AGENCIES/CARERS,REDACTED,REDACTED
02.06.2023,CHILDREN AND FAMILIES,REDACTED PERSONAL DATA,400.00,KINSHIP FOSTERING,ADDITIONAL PAYMENTS TO AGENCIES/CARERS,REDACTED,REDACTED
02.06.2023,CHILDREN AND FAMILIES,REDACTED PERSONAL DATA,"1,000.00",LEAVING CARE GRANT,OTHER PAYMENTS FOR CLIENTS,REDACTED,REDACTED
02.06.2023,CHILDREN AND FAMILIES,REDACTED PERSONAL DATA,"1,000.00",LEAVING CARE GRANT,OTHER PAYMENTS FOR CLIENTS,REDACTED,REDACTED
02.06.2023,CHILDREN AND FAMILIES,PURPLE PEBBLES(CHILD CARE) SERVICES,-953.41,SEMI-IND CARELEAVERS,COSTS RECOVERED,2103672218,1000070705
02.06.2023,CHILDREN AND FAMILIES,PURPLE PEBBLES(CHILD CARE) SERVICES,-894.99,SEMI-IND CARELEAVERS,COSTS RECOVERED,2103672219,1000070705
02.06.2023,CHILDREN AND FAMILIES,PURPLE PEBBLES(CHILD CARE) SERVICES,553.57,SEMI-IND CARELEAVERS,EXTERNAL AGENCIES AND BODIES,2103670844,1000070705
02.06.2023,CHILDREN AND FAMILIES,PURPLE PEBBLES(CHILD CARE) SERVICES,"2,214.29",SEMI-IND CARELEAVERS,EXTERNAL AGENCIES AND BODIES,2103670846,1000070705
02.06.2023,CHILDREN AND FAMILIES,PURPLE PEBBLES(CHILD CARE) SERVICES,"2,435.71",SEMI-IND CARELEAVERS,EXTERNAL AGENCIES AND BODIES,2103670861,1000070705
02.06.2023,CHILDREN AND FAMILIES,OASIS AQUILA HOUSING,717.40,SEMI-IND LAC 16-17,EXTERNAL AGENCIES AND BODIES,2103670572,1000002184
02.06.2023,CHILDREN AND FAMILIES,PURPLE PEBBLES(CHILD CARE) SERVICES,"1,195.71",SEMI-IND LAC 16-17,EXTERNAL AGENCIES AND BODIES,2103670822,1000070705
02.06.2023,CHILDREN AND FAMILIES,PURPLE PEBBLES(CHILD CARE) SERVICES,"1,532.14",SEMI-IND LAC 16-17,EXTERNAL AGENCIES AND BODIES,2103670830,1000070705
02.06.2023,CHILDREN AND FAMILIES,PURPLE PEBBLES(CHILD CARE) SERVICES,"4,207.14",SEMI-IND LAC 16-17,EXTERNAL AGENCIES AND BODIES,2103670811,1000070705
02.06.2023,CHILDREN AND FAMILIES,PURPLE PEBBLES(CHILD CARE) SERVICES,"4,207.14",SEMI-IND LAC 16-17,EXTERNAL AGENCIES AND BODIES,2103670821,1000070705
02.06.2023,CHILDREN AND FAMILIES,PURPLE PEBBLES(CHILD CARE) SERVICES,"4,317.86",SEMI-IND LAC 16-17,EXTERNAL AGENCIES AND BODIES,2103670806,1000070705
02.06.2023,CHILDREN AND FAMILIES,LEAF COMMUNITY TRUST,"1,107.14",SEMI-IND LAC 16-17,EXTERNAL AGENCIES AND BODIES,2103670836,1000089529
02.06.2023,CHILDREN AND FAMILIES,LEAF COMMUNITY TRUST,"3,653.57",SEMI-IND LAC 16-17,EXTERNAL AGENCIES AND BODIES,2103670837,1000089529
02.06.2023,CHILDREN AND FAMILIES,REDACTED PERSONAL DATA,618.57,SEMI-IND LAC 16-17,OTHER PAYMENTS FOR CLIENTS,REDACTED,REDACTED
02.06.2023,CHILDREN AND FAMILIES,REDACTED PERSONAL DATA,"2,000.00",SEMI-IND LAC 16-17,OTHER PAYMENTS FOR CLIENTS,REDACTED,REDACTED
02.06.2023,CHILDREN AND FAMILIES,INTEGRATED SERVICES PROGRAMME,"-1,721.40",STAYPUT- FOST CARERS,EXTERNAL AGENCIES AND BODIES,2103670567,1642068
02.06.2023,CHILDREN AND FAMILIES,INTEGRATED SERVICES PROGRAMME,"5,164.20",STAYPUT- FOST CARERS,EXTERNAL AGENCIES AND BODIES,2103670568,1642068
02.06.2023,CHILDREN AND FAMILIES,INTEGRATED SERVICES PROGRAMME,"5,336.34",STAYPUT- FOST CARERS,EXTERNAL AGENCIES AND BODIES,2103670569,1642068
02.06.2023,CHILDREN AND FAMILIES,INTEGRATED SERVICES PROGRAMME,"5,336.34",STAYPUT- FOST CARERS,EXTERNAL AGENCIES AND BODIES,2103670570,1642068
02.06.2023,CHILDREN AND FAMILIES,FLOURISH FOSTERING LTD,"4,570.02",STAYPUT- FOST CARERS,EXTERNAL AGENCIES AND BODIES,2103670845,1000084796
02.06.2023,CHILDREN AND FAMILIES,PURPLE PEBBLES(CHILD CARE) SERVICES,-894.99,UASC CARELEAVERS,COSTS RECOVERED,2103672220,1000070705
02.06.2023,CHILDREN AND FAMILIES,OWNLIFE LTD,"1,905.00",UASC CARELEAVERS,EXTERNAL AGENCIES AND BODIES,2103670860,1000056219
02.06.2023,CHILDREN AND FAMILIES,PURPLE PEBBLES(CHILD CARE) SERVICES,567.86,UASC CARELEAVERS,EXTERNAL AGENCIES AND BODIES,2103670862,1000070705
02.06.2023,CHILDREN AND FAMILIES,PURPLE PEBBLES(CHILD CARE) SERVICES,"1,550.00",UASC CARELEAVERS,EXTERNAL AGENCIES AND BODIES,2103670843,1000070705
02.06.2023,CHILDREN AND FAMILIES,PURPLE PEBBLES(CHILD CARE) SERVICES,"1,571.43",UASC CARELEAVERS,EXTERNAL AGENCIES AND BODIES,2103670868,1000070705
02.06.2023,CHILDREN AND FAMILIES,PURPLE PEBBLES(CHILD CARE) SERVICES,"1,660.71",UASC CARELEAVERS,EXTERNAL AGENCIES AND BODIES,2103670859,1000070705
02.06.2023,CHILDREN AND FAMILIES,PURPLE PEBBLES(CHILD CARE) SERVICES,"1,749.29",UASC CARELEAVERS,EXTERNAL AGENCIES AND BODIES,2103670847,1000070705
02.06.2023,CHILDREN AND FAMILIES,PURPLE PEBBLES(CHILD CARE) SERVICES,"1,771.43",UASC CARELEAVERS,EXTERNAL AGENCIES AND BODIES,2103670858,1000070705
02.06.2023,CHILDREN AND FAMILIES,PURPLE PEBBLES(CHILD CARE) SERVICES,"1,815.71",UASC CARELEAVERS,EXTERNAL AGENCIES AND BODIES,2103670867,1000070705
02.06.2023,CHILDREN AND FAMILIES,PURPLE PEBBLES(CHILD CARE) SERVICES,"1,882.14",UASC CARELEAVERS,EXTERNAL AGENCIES AND BODIES,2103670851,1000070705
02.06.2023,CHILDREN AND FAMILIES,PURPLE PEBBLES(CHILD CARE) SERVICES,"1,882.14",UASC CARELEAVERS,EXTERNAL AGENCIES AND BODIES,2103670864,1000070705
02.06.2023,CHILDREN AND FAMILIES,PURPLE PEBBLES(CHILD CARE) SERVICES,"1,882.14",UASC CARELEAVERS,EXTERNAL AGENCIES AND BODIES,2103670866,1000070705
02.06.2023,CHILDREN AND FAMILIES,PURPLE PEBBLES(CHILD CARE) SERVICES,"1,948.57",UASC CARELEAVERS,EXTERNAL AGENCIES AND BODIES,2103670853,1000070705
02.06.2023,CHILDREN AND FAMILIES,PURPLE PEBBLES(CHILD CARE) SERVICES,"1,948.57",UASC CARELEAVERS,EXTERNAL AGENCIES AND BODIES,2103670856,1000070705
02.06.2023,CHILDREN AND FAMILIES,PURPLE PEBBLES(CHILD CARE) SERVICES,"1,948.57",UASC CARELEAVERS,EXTERNAL AGENCIES AND BODIES,2103670869,1000070705
02.06.2023,CHILDREN AND FAMILIES,PURPLE PEBBLES(CHILD CARE) SERVICES,"1,981.79",UASC CARELEAVERS,EXTERNAL AGENCIES AND BODIES,2103670849,1000070705
02.06.2023,CHILDREN AND FAMILIES,PURPLE PEBBLES(CHILD CARE) SERVICES,"1,992.86",UASC CARELEAVERS,EXTERNAL AGENCIES AND BODIES,2103670842,1000070705
02.06.2023,CHILDREN AND FAMILIES,PURPLE PEBBLES(CHILD CARE) SERVICES,"2,059.29",UASC CARELEAVERS,EXTERNAL AGENCIES AND BODIES,2103670848,1000070705
02.06.2023,CHILDREN AND FAMILIES,PURPLE PEBBLES(CHILD CARE) SERVICES,"2,103.57",UASC CARELEAVERS,EXTERNAL AGENCIES AND BODIES,2103670857,1000070705
02.06.2023,CHILDREN AND FAMILIES,PURPLE PEBBLES(CHILD CARE) SERVICES,"2,214.28",UASC CARELEAVERS,EXTERNAL AGENCIES AND BODIES,2103670863,1000070705
02.06.2023,CHILDREN AND FAMILIES,PURPLE PEBBLES(CHILD CARE) SERVICES,"3,542.86",UASC CARELEAVERS,EXTERNAL AGENCIES AND BODIES,2103670865,1000070705
02.06.2023,CHILDREN AND FAMILIES,PURPLE PEBBLES(CHILD CARE) SERVICES,300.00,UASC CARELEAVERS,OTHER PAYMENTS FOR CLIENTS,2103670852,1000070705
02.06.2023,CHILDREN AND FAMILIES,PURPLE PEBBLES(CHILD CARE) SERVICES,"3,542.86",UASC LAC 16-17,EXTERNAL AGENCIES AND BODIES,2103670819,1000070705
02.06.2023,CHILDREN AND FAMILIES,PURPLE PEBBLES(CHILD CARE) SERVICES,"3,764.29",UASC LAC 16-17,EXTERNAL AGENCIES AND BODIES,2103670808,1000070705
02.06.2023,CHILDREN AND FAMILIES,PURPLE PEBBLES(CHILD CARE) SERVICES,"3,764.29",UASC LAC 16-17,EXTERNAL AGENCIES AND BODIES,2103670812,1000070705
02.06.2023,CHILDREN AND FAMILIES,PURPLE PEBBLES(CHILD CARE) SERVICES,"3,764.29",UASC LAC 16-17,EXTERNAL AGENCIES AND BODIES,2103670813,1000070705
02.06.2023,CHILDREN AND FAMILIES,PURPLE PEBBLES(CHILD CARE) SERVICES,"3,875.00",UASC LAC 16-17,EXTERNAL AGENCIES AND BODIES,2103670809,1000070705
02.06.2023,CHILDREN AND FAMILIES,PURPLE PEBBLES(CHILD CARE) SERVICES,"3,875.00",UASC LAC 16-17,EXTERNAL AGENCIES AND BODIES,2103670826,1000070705
02.06.2023,CHILDREN AND FAMILIES,PURPLE PEBBLES(CHILD CARE) SERVICES,"3,985.71",UASC LAC 16-17,EXTERNAL AGENCIES AND BODIES,2103670810,1000070705
02.06.2023,CHILDREN AND FAMILIES,SUPPORTIVE LINK LIMITED,"2,239.53",UASC LAC 16-17,EXTERNAL AGENCIES AND BODIES,2103670828,1000089705
02.06.2023,CHILDREN AND FAMILIES,SUPPORTIVE LINK LIMITED,"2,946.75",UASC LAC 16-17,EXTERNAL AGENCIES AND BODIES,2103670829,1000089705
02.06.2023,CHILDREN AND FAMILIES,SUPPORTIVE LINK LIMITED,"3,653.97",UASC LAC 16-17,EXTERNAL AGENCIES AND BODIES,2103670827,1000089705
02.06.2023,CHILDREN AND FAMILIES,PURPLE PEBBLES(CHILD CARE) SERVICES,300.00,UASC LAC 16-17,OTHER PAYMENTS FOR CLIENTS,2103670804,1000070705
02.06.2023,CHILDREN AND FAMILIES,PURPLE PEBBLES(CHILD CARE) SERVICES,300.00,UASC LAC 16-17,OTHER PAYMENTS FOR CLIENTS,2103670805,1000070705
02.06.2023,CHILDREN AND FAMILIES,PURPLE PEBBLES(CHILD CARE) SERVICES,300.00,UASC LAC 16-17,OTHER PAYMENTS FOR CLIENTS,2103670820,1000070705
02.06.2023,CHILDREN AND FAMILIES,PURPLE PEBBLES(CHILD CARE) SERVICES,300.00,UASC LAC 16-17,OTHER PAYMENTS FOR CLIENTS,2103670832,1000070705
02.06.2023,CHILDREN AND FAMILIES,PURPLE PEBBLES(CHILD CARE) SERVICES,300.00,UASC LAC 16-17,OTHER PAYMENTS FOR CLIENTS,2103670834,1000070705
02.06.2023,CHILDREN AND FAMILIES,PURPLE PEBBLES(CHILD CARE) SERVICES,300.00,UASC LAC 16-17,OTHER PAYMENTS FOR CLIENTS,2103670839,1000070705
02.06.2023,CHILDREN AND FAMILIES,APPROPRIATE ADULTS UK,257.50,UASC LAC 16-17,OTHER PAYMENTS FOR CLIENTS,2103670815,1000088293
02.06.2023,CHILDREN AND FAMILIES,APPROPRIATE ADULTS UK,257.50,UASC LAC 16-17,OTHER PAYMENTS FOR CLIENTS,2103670816,1000088293
02.06.2023,CHILDREN AND FAMILIES,APPROPRIATE ADULTS UK,257.50,UASC LAC 16-17,OTHER PAYMENTS FOR CLIENTS,2103670817,1000088293
02.06.2023,COMMUNITIES,WAYNE CAMPBELL,"1,800.00","EQUALITY, DIVERSITY & INCLUSION",PROFESSIONAL FEES,5902582423,1000089745
02.06.2023,COMMUNITIES,METROPOLITAN HOUSING TRUST LTD,286.90,NO RECOURSE TO PUBLIC FUNDS,ACCOMMODATION CHARGES,5902582428,1000047547
02.06.2023,COMMUNITIES,METROPOLITAN HOUSING TRUST LTD,286.91,NO RECOURSE TO PUBLIC FUNDS,ACCOMMODATION CHARGES,5902582424,1000047547
02.06.2023,COMMUNITIES,METRO HOMECARE LTD,412.50,NO RECOURSE TO PUBLIC FUNDS,HOMECARE - C&V,2103670873,1000070695
02.06.2023,COMMUNITIES,METRO HOMECARE LTD,412.50,NO RECOURSE TO PUBLIC FUNDS,HOMECARE - C&V,2103670874,1000070695
02.06.2023,COMMUNITIES,SUBLIME CARE UK LTD,822.48,NO RECOURSE TO PUBLIC FUNDS,HOMECARE - SPOT,2103670802,1000089291
02.06.2023,COMMUNITIES,CANADA ESTATE T&RA,"1,000.00",NORTH EAST,GRANTS,5902582507,1372721
02.06.2023,COMMUNITIES,FRAMEWORK HOUSING ASSOCIATION,"7,750.00",TIER 4 SERVICES,OTHER CONTRACTORS,5902582393,1000086098
02.06.2023,COMMUNITIES,REDACTED PERSONAL DATA,350.00,UKRAINIAN PROGRAMME,GRANTS,REDACTED,REDACTED
02.06.2023,COMMUNITIES,REDACTED PERSONAL DATA,350.00,UKRAINIAN PROGRAMME,GRANTS,REDACTED,REDACTED
02.06.2023,COMMUNITIES,REDACTED PERSONAL DATA,350.00,UKRAINIAN PROGRAMME,GRANTS,REDACTED,REDACTED
02.06.2023,COMMUNITIES,REDACTED PERSONAL DATA,350.00,UKRAINIAN PROGRAMME,GRANTS,REDACTED,REDACTED
02.06.2023,COMMUNITIES,REDACTED PERSONAL DATA,350.00,UKRAINIAN PROGRAMME,GRANTS,REDACTED,REDACTED
02.06.2023,COMMUNITIES,REDACTED PERSONAL DATA,350.00,UKRAINIAN PROGRAMME,GRANTS,REDACTED,REDACTED
02.06.2023,COMMUNITIES,REDACTED PERSONAL DATA,500.00,UKRAINIAN PROGRAMME,GRANTS,REDACTED,REDACTED
02.06.2023,CORPORATE FACILITIES MANAGEMENT,IOSH SERVICES LIMITED (COURSE FEES),-350.00,CFM OPERATIONAL BUDGET,PROFESSIONAL FEES,5902545797,1000050667
02.06.2023,CORPORATE FACILITIES MANAGEMENT,IOSH SERVICES LIMITED (COURSE FEES),375.00,CFM OPERATIONAL BUDGET,PROFESSIONAL FEES,5902560968,1000050667
02.06.2023,CORPORATE FACILITIES MANAGEMENT,IOSH SERVICES LIMITED (COURSE FEES),368.00,CFM OPERATIONAL BUDGET,TRAINING,5902582401,1000050667
02.06.2023,CORPORATE FACILITIES MANAGEMENT,GREENHAM TRADING LTD,"4,734.46",FM SERVICES BY INTERSERVE,INTEGRATED FACILITIES MANAGEMENT CONTRACT,5902582019,1000006610
02.06.2023,CORPORATE FACILITIES MANAGEMENT,RELIANCE HIGH-TECH LTD,"5,388.68",REPAIR AND MAINTENANCE SERVICES,MEDICAL / HEALTH & SAFETY SERVICES,5902581729,1000079374
02.06.2023,CUSTOMER AND EXCHEQUER,NEC SOFTWARE SOLUTIONS UK LTD,"79,580.23",ADMINISTRATIVE SUPPORT,SOFTWARE,5902582549,1000087043
02.06.2023,CUSTOMER AND EXCHEQUER,NEC SOFTWARE SOLUTIONS UK LTD,"429,644.26",ADMINISTRATIVE SUPPORT,SOFTWARE,5902582551,1000087043
02.06.2023,CUSTOMER AND EXCHEQUER,NEC SOFTWARE SOLUTIONS UK LTD,"1,502.26",ADMINISTRATIVE SUPPORT,SPECIFIC GOV'T ADMIN GRANT,5902582412,1000087043
02.06.2023,CUSTOMER AND EXCHEQUER,NEC SOFTWARE SOLUTIONS UK LTD,"10,093.76",ADMINISTRATIVE SUPPORT,SPECIFIC GOV'T ADMIN GRANT,5902582411,1000087043
02.06.2023,CUSTOMER AND EXCHEQUER,CITY OF LONDON CORPORATION,"15,280.83",CORONER'S,LEGAL FEES & COURT COSTS,5902582435,1000052061
02.06.2023,CUSTOMER AND EXCHEQUER,SG PATH LTD,415.80,CORONER'S,PROFESSIONAL FEES,5902582445,1000077883
02.06.2023,CUSTOMER AND EXCHEQUER,SG PATH LTD,595.90,CORONER'S,PROFESSIONAL FEES,5902582441,1000077883
02.06.2023,CUSTOMER AND EXCHEQUER,IMPERIAL COLLEGE PROJECTS LTD,260.00,CORONER'S,PROFESSIONAL FEES,5902582467,1000080106
02.06.2023,CUSTOMER AND EXCHEQUER,IMPERIAL COLLEGE PROJECTS LTD,285.00,CORONER'S,PROFESSIONAL FEES,5902582469,1000080106
02.06.2023,CUSTOMER AND EXCHEQUER,IMPERIAL COLLEGE PROJECTS LTD,310.00,CORONER'S,PROFESSIONAL FEES,5902582458,1000080106
02.06.2023,CUSTOMER AND EXCHEQUER,IMPERIAL COLLEGE PROJECTS LTD,357.00,CORONER'S,PROFESSIONAL FEES,5902582452,1000080106
02.06.2023,CUSTOMER AND EXCHEQUER,IMPERIAL COLLEGE PROJECTS LTD,357.00,CORONER'S,PROFESSIONAL FEES,5902582453,1000080106
02.06.2023,CUSTOMER AND EXCHEQUER,IMPERIAL COLLEGE PROJECTS LTD,357.00,CORONER'S,PROFESSIONAL FEES,5902582459,1000080106
02.06.2023,CUSTOMER AND EXCHEQUER,IMPERIAL COLLEGE PROJECTS LTD,378.00,CORONER'S,PROFESSIONAL FEES,5902582465,1000080106
02.06.2023,CUSTOMER AND EXCHEQUER,IMPERIAL COLLEGE PROJECTS LTD,429.00,CORONER'S,PROFESSIONAL FEES,5902582466,1000080106
02.06.2023,CUSTOMER AND EXCHEQUER,IMPERIAL COLLEGE PROJECTS LTD,433.00,CORONER'S,PROFESSIONAL FEES,5902582449,1000080106
02.06.2023,CUSTOMER AND EXCHEQUER,IMPERIAL COLLEGE PROJECTS LTD,433.00,CORONER'S,PROFESSIONAL FEES,5902582460,1000080106
02.06.2023,CUSTOMER AND EXCHEQUER,IMPERIAL COLLEGE PROJECTS LTD,633.00,CORONER'S,PROFESSIONAL FEES,5902582463,1000080106
02.06.2023,CUSTOMER AND EXCHEQUER,IMPERIAL COLLEGE PROJECTS LTD,701.00,CORONER'S,PROFESSIONAL FEES,5902582462,1000080106
02.06.2023,CUSTOMER AND EXCHEQUER,FORENSIC PATHOLOGY SERVICES,345.30,CORONER'S,PROFESSIONAL FEES,5902582599,1000086871
02.06.2023,CUSTOMER AND EXCHEQUER,FORENSIC PATHOLOGY SERVICES,561.90,CORONER'S,PROFESSIONAL FEES,5902582596,1000086871
02.06.2023,CUSTOMER AND EXCHEQUER,ETC VENUES LTD,"1,060.00",COUNCIL TAX,HIRE OF ROOMS/HALLS,5902582456,1000045226
02.06.2023,DIGITAL AND TECHNOLOGY,SAP (UK) LTD,409.48,SAP OPERATING COSTS,SOFTWARE,5902582488,1000002550
02.06.2023,DIGITAL AND TECHNOLOGY,SAP (UK) LTD,409.48,SAP OPERATING COSTS,SOFTWARE,5902582490,1000002550
02.06.2023,DIGITAL AND TECHNOLOGY,SAP (UK) LTD,"6,141.00",SAP OPERATING COSTS,SOFTWARE,5902582485,1000002550
02.06.2023,DIGITAL AND TECHNOLOGY,SAP (UK) LTD,"6,141.00",SAP OPERATING COSTS,SOFTWARE,5902582488,1000002550
02.06.2023,DSG,DOG KENNEL HILL PRIMARY SCHOOL,"131,495.00",DOG KENNEL HILL PRIMARY SCHOOL,SCHOOLS CAPITATION,2103670539,5001000025
02.06.2023,DSG,OCTAVIA HOUSE SCHOOLS LTD,"13,615.43",NMSS/ INDEP SPECIAL,STATEMENTED FEES,2103670475,1000073579
02.06.2023,DSG,OCTAVIA HOUSE SCHOOLS LTD,"15,000.00",NMSS/ INDEP SPECIAL,STATEMENTED FEES,2103670458,1000073579
02.06.2023,DSG,OCTAVIA HOUSE SCHOOLS LTD,"15,000.00",NMSS/ INDEP SPECIAL,STATEMENTED FEES,2103670459,1000073579
02.06.2023,DSG,OCTAVIA HOUSE SCHOOLS LTD,"15,000.00",NMSS/ INDEP SPECIAL,STATEMENTED FEES,2103670460,1000073579
02.06.2023,DSG,OCTAVIA HOUSE SCHOOLS LTD,"15,000.00",NMSS/ INDEP SPECIAL,STATEMENTED FEES,2103670461,1000073579
02.06.2023,DSG,OCTAVIA HOUSE SCHOOLS LTD,"15,000.00",NMSS/ INDEP SPECIAL,STATEMENTED FEES,2103670462,1000073579
02.06.2023,DSG,OCTAVIA HOUSE SCHOOLS LTD,"15,000.00",NMSS/ INDEP SPECIAL,STATEMENTED FEES,2103670463,1000073579
02.06.2023,DSG,OCTAVIA HOUSE SCHOOLS LTD,"15,000.00",NMSS/ INDEP SPECIAL,STATEMENTED FEES,2103670464,1000073579
02.06.2023,DSG,OCTAVIA HOUSE SCHOOLS LTD,"15,000.00",NMSS/ INDEP SPECIAL,STATEMENTED FEES,2103670465,1000073579
02.06.2023,DSG,OCTAVIA HOUSE SCHOOLS LTD,"15,000.00",NMSS/ INDEP SPECIAL,STATEMENTED FEES,2103670466,1000073579
02.06.2023,DSG,OCTAVIA HOUSE SCHOOLS LTD,"15,000.00",NMSS/ INDEP SPECIAL,STATEMENTED FEES,2103670467,1000073579
02.06.2023,DSG,OCTAVIA HOUSE SCHOOLS LTD,"15,000.00",NMSS/ INDEP SPECIAL,STATEMENTED FEES,2103670468,1000073579
02.06.2023,DSG,OCTAVIA HOUSE SCHOOLS LTD,"15,000.00",NMSS/ INDEP SPECIAL,STATEMENTED FEES,2103670469,1000073579
02.06.2023,DSG,OCTAVIA HOUSE SCHOOLS LTD,"15,000.00",NMSS/ INDEP SPECIAL,STATEMENTED FEES,2103670470,1000073579
02.06.2023,DSG,OCTAVIA HOUSE SCHOOLS LTD,"15,000.00",NMSS/ INDEP SPECIAL,STATEMENTED FEES,2103670471,1000073579
02.06.2023,DSG,OCTAVIA HOUSE SCHOOLS LTD,"15,000.00",NMSS/ INDEP SPECIAL,STATEMENTED FEES,2103670472,1000073579
02.06.2023,DSG,OCTAVIA HOUSE SCHOOLS LTD,"15,000.00",NMSS/ INDEP SPECIAL,STATEMENTED FEES,2103670473,1000073579
02.06.2023,DSG,OCTAVIA HOUSE SCHOOLS LTD,"15,000.00",NMSS/ INDEP SPECIAL,STATEMENTED FEES,2103670474,1000073579
02.06.2023,DSG,ROTHERHITHE PRIMARY SCHOOL,"161,701.00",ROTHERHITHE PRIMARY SCHOOL,SCHOOLS CAPITATION,2103670540,5001000058
02.06.2023,DSG,WELFARE CALL (LAC) LTD,500.00,VIRTUAL SCHOOL PP,DATA COMMUNICATIONS,5902582429,1000057872
02.06.2023,DSG,FLEET TUTORS,"1,078.50",VIRTUAL SCHOOL PP,EXTERNAL AGENCIES AND BODIES,5902582476,1000044820
02.06.2023,EDUCATION,JOHN GUEST SAFEGUARDING LIMITED,325.00,GOVERNOR SUPPORT,CONSULTANTS SERVICES,5902581564,1000065465
02.06.2023,EDUCATION,THE PARK COLLEGE,437.00,IMHARS,REFRESHMENTS FOR MEETINGS,5902582369,1000088955
02.06.2023,EL,THE ACADEMY @ PECKHAM,"2,500.00",FHSM INNOVATION,"EXAM FEES, SCHOOLS ONLY",2103670544,1000041433
02.06.2023,EL,WALWORTH ACADEMY,"2,500.00",FHSM INNOVATION,"EXAM FEES, SCHOOLS ONLY",2103670546,1000062868
02.06.2023,EL,SPA EDUCATION TRUST,"2,500.00",FHSM INNOVATION,"EXAM FEES, SCHOOLS ONLY",2103670547,1000081600
02.06.2023,EL,ALBION PRIMARY SCHOOL,"2,500.00",FHSM INNOVATION,"EXAM FEES, SCHOOLS ONLY",2103670543,5001000000
02.06.2023,EL,CAMELOT PRIMARY SCHOOL,"2,500.00",FHSM INNOVATION,"EXAM FEES, SCHOOLS ONLY",2103670542,5001000014
02.06.2023,EL,ST ANTHONYS RC SCHOOL,"2,500.00",FHSM INNOVATION,"EXAM FEES, SCHOOLS ONLY",2103670545,5001000064
02.06.2023,ENVIRONMENT AND LEISURE,ADVANCED TRANSPORT RESEARCH LTD,"1,170.00",CAPITAL PS (LEISURE),CONSTRUCTION,5902581618,1000070527
02.06.2023,ENVIRONMENT AND LEISURE,ACOEM UK LTD,480.00,CAPITAL PS (LEISURE),CONSTRUCTION FEES  - EXTERNAL,5902582387,1000054414
02.06.2023,ENVIRONMENT AND LEISURE,SELECTA MARK SECURITY SYSTEM PLC,472.00,CAPITAL PS (LEISURE),FURNITURE & FITTINGS ACQUISITION,5902582491,11249024
02.06.2023,ENVIRONMENT AND LEISURE,SELECTA MARK SECURITY SYSTEM PLC,"1,088.00",CAPITAL PS (LEISURE),FURNITURE & FITTINGS ACQUISITION,5902582491,11249024
02.06.2023,ENVIRONMENT AND LEISURE,QUICKSILVA LTD,"5,400.00",DIGITAL HEALTH,EXTERNAL AGENCIES AND BODIES,5902582390,1000081467
02.06.2023,ENVIRONMENT AND LEISURE,COHESION CONSULTING LTD,"8,167.00",PUBLIC HEALTH FHSM,EXTERNAL AGENCIES AND BODIES,5902581538,1000089725
02.06.2023,ENVIRONMENT AND LEISURE,COHESION CONSULTING LTD,"8,168.00",PUBLIC HEALTH FHSM,EXTERNAL AGENCIES AND BODIES,5902581540,1000089725
02.06.2023,ENVIRONMENT AND LEISURE,COMMUNITY MATTERS MEDIA LIMITED,300.00,STREET WORKS OVERHEADS,MARKETING & PUBLICITY SERVICES,5902582557,1556957
02.06.2023,ENVIRONMENT AND LEISURE,COMMUNITY MATTERS MEDIA LIMITED,504.00,STREET WORKS OVERHEADS,MARKETING & PUBLICITY SERVICES,5902582556,1556957
02.06.2023,ENVIRONMENT AND LEISURE,COMMUNITY MATTERS MEDIA LIMITED,636.00,STREET WORKS OVERHEADS,MARKETING & PUBLICITY SERVICES,5902582558,1556957
02.06.2023,ENVIRONMENT AND LEISURE,COMMUNITY MATTERS MEDIA LIMITED,660.00,STREET WORKS OVERHEADS,MARKETING & PUBLICITY SERVICES,5902582575,1556957
02.06.2023,ENVIRONMENT AND LEISURE,COMMUNITY MATTERS MEDIA LIMITED,696.00,STREET WORKS OVERHEADS,MARKETING & PUBLICITY SERVICES,5902582554,1556957
02.06.2023,ENVIRONMENT AND LEISURE,COMMUNITY MATTERS MEDIA LIMITED,780.00,STREET WORKS OVERHEADS,MARKETING & PUBLICITY SERVICES,5902582571,1556957
02.06.2023,ENVIRONMENT AND LEISURE,COMMUNITY MATTERS MEDIA LIMITED,816.00,STREET WORKS OVERHEADS,MARKETING & PUBLICITY SERVICES,5902582573,1556957
02.06.2023,ENVIRONMENT AND LEISURE,COMMUNITY MATTERS MEDIA LIMITED,984.00,STREET WORKS OVERHEADS,MARKETING & PUBLICITY SERVICES,5902582555,1556957
02.06.2023,ENVIRONMENT DIRECTORATE,GREENHAM TRADING LTD,"4,023.65",ESTATE CLEANING-GENERAL,MATERIALS,5902581840,1000006610
02.06.2023,ENVIRONMENT DIRECTORATE,PERFORMANCE CHEMICALS LTD,"2,710.68",ESTATE CLEANING-GENERAL,MATERIALS,5902582427,1000037129
02.06.2023,ENVIRONMENT DIRECTORATE,JAMES M ANDERSON LTD,"1,209.10",PUBLIC LIGHTING,MATERIALS,5902582540,1000089698
02.06.2023,ENVIRONMENT DIRECTORATE,JAMES M ANDERSON LTD,"10,352.90",PUBLIC LIGHTING,MATERIALS,5902582541,1000089698
02.06.2023,ENVIRONMENT DIRECTORATE,JAMES M ANDERSON LTD,"10,424.00",PUBLIC LIGHTING,MATERIALS,5902582538,1000089698
02.06.2023,ENVIRONMENT DIRECTORATE,METIS CONSULTANTS LIMITED,"2,559.00",PUBLIC LIGHTING,SOUTHWARK DIRECT CHARGES,5902582471,1000086330
02.06.2023,ENVIRONMENT DIRECTORATE,SPANDEX LTD,302.40,SIGN SHOP,GROUNDS MAINTENANCE,5902582533,1015608
02.06.2023,ENVIRONMENT DIRECTORATE,CROMWELL POLYTHENE LTD,"2,293.50",STREET CLEANING-GENERAL,MATERIALS,5902582410,1000021159
02.06.2023,HOUSING,OCO LIMITED,"161,372.83",PAYMENTS CONTROL ACCOUNT - OCO,I-WORLD CONTRACTORS HOLDING ACCOUNT,5902582601,1006066
02.06.2023,HOUSING,SMITH & BYFORD LTD,"140,141.00",SMITH AND BYFORD,I-WORLD CONTRACTORS HOLDING ACCOUNT,5902582603,11212119
02.06.2023,HOUSING GENERAL FUND,LONDON BOROUGH OF BRENT,"138,045.00",CAPITAL PS (HOUSING GF),ICT ACQUISITION,5902582472,1000064734
02.06.2023,HOUSING HRA,LINN CONSULTING LIMITED,"1,828.13",CAPITAL PS (HRA),CONSTRUCTION,5902582614,1000087380
02.06.2023,HOUSING HRA,LINN CONSULTING LIMITED,"4,125.00",CAPITAL PS (HRA),CONSTRUCTION,5902582598,1000087380
02.06.2023,HOUSING HRA,CALFORD SEADEN (HEALTH & SAFETY) LTD,810.00,CAPITAL PS (HRA),CONSTRUCTION FEES  - EXTERNAL,5902582385,1097125
02.06.2023,HOUSING HRA,HTA DESIGN LLP,"5,500.00",CAPITAL PS (HRA),CONSTRUCTION FEES  - EXTERNAL,5902582492,1000074662
02.06.2023,HOUSING HRA,BEACON PARTNERSHIP LLP,375.00,CAPITAL PS (HRA),CONSTRUCTION FEES  - EXTERNAL,5902582559,1000082300
02.06.2023,HOUSING HRA,SHERGROUP LTD,"3,410.00",CAPITAL PS (HRA),CONSTRUCTION FEES  - EXTERNAL,5902582383,1000087977
02.06.2023,HOUSING HRA,SHERGROUP LTD,"3,890.00",CAPITAL PS (HRA),CONSTRUCTION FEES  - EXTERNAL,5902582379,1000087977
02.06.2023,HOUSING HRA,SHERGROUP LTD,"3,890.00",CAPITAL PS (HRA),CONSTRUCTION FEES  - EXTERNAL,5902582382,1000087977
02.06.2023,HOUSING HRA,SCOPE CBS LIMITED,900.00,CAPITAL PS (HRA),CONSTRUCTION FEES  - EXTERNAL,5902581717,1000089715
02.06.2023,HOUSING HRA,MARTIN ARNOLD LTD,"4,165.00",CAPITAL PS (HRA),CONSTRUCTION FEES - EMPLOYERS AGENT,5902582479,1000076993
02.06.2023,HOUSING HRA,SHARPE PRITCHARD LLP,696.30,CAPITAL PS (HRA),CONSTRUCTION FEES - LEGAL,5902582402,1790085
02.06.2023,HOUSING HRA,BUILDING ASSOCIATES LTD,"70,070.45",CAPITAL PS (HRA),CONSTRUCTION MAIN CONTRACT,2103669971,3000002218
02.06.2023,HOUSING HRA,EQUANS REGENERATION (APOLLO) LTD,"54,533.76",CAPITAL PS (HRA),CONSTRUCTION MAIN CONTRACT -CERTIFICATED,2103669020,4000449
02.06.2023,HOUSING HRA,EQUANS REGENERATION LTD,"206,116.99",CAPITAL PS (HRA),CONSTRUCTION MAIN CONTRACT -CERTIFICATED,2103670222,3000002035
02.06.2023,HOUSING HRA,ADASTON LIMITED,950.00,CAPITAL PS (REGEN),CONSTRUCTION FEES  - EXTERNAL,5902581753,1000088859
02.06.2023,HUMAN RESOURCES,DARREN NEWMAN EMPLOYMENT LAW LTD,"2,200.00",HR PAYROLL COSTS,CONSULTANTS SERVICES,5902582394,1000082194
02.06.2023,LEISURE DIRECTORATE,THE BOLD & SAUCY THEATRE COMPANY,"1,546.00",ARTS GRANTS,GRANTS,5902582487,1000047579
02.06.2023,LEISURE DIRECTORATE,KENT COUNTY COUNCIL - LASER,"13,490.82",CANADA WATER LIBRARY,ELECTRICITY,5902581643,1000012926
02.06.2023,LEISURE DIRECTORATE,LEE VALLEY REGIONAL PARK AUTHORITY,"46,226.62",LEE VALLEY LEVY,LEVIES,5902582602,11020407
02.06.2023,LEISURE DIRECTORATE,RH WROUGHT IRON,"1,250.00",SOUTHWARK AREA TEAM,OTHER R&M,2103670219,3000000680
02.06.2023,LEISURE DIRECTORATE,RH WROUGHT IRON,"2,950.00",SOUTHWARK AREA TEAM,OTHER R&M,2103670220,3000000680
02.06.2023,PLANNING & GROWTH,LONDON DISTRICT SURVEYORS ASSOCIATION,895.00,CHARGEABLE BUILDING CONTROL,PROFESSIONAL FEES,5902582446,1000054841
02.06.2023,PLANNING & GROWTH,BRESLIN CONSTRUCTION LTD,650.00,CPHA  MANAGED PROPERTIES,BUILDING R&M,5902581539,1000078031
02.06.2023,RESIDENT SERVICES,EQUANS REGENERATION (APOLLO) LTD,"4,660.49",GREAT ESTATES,OTHER R&M,2103670479,4000449
02.06.2023,RESIDENT SERVICES,BRITISH GAS TRADING LTD,-316.81,OPERATIONS/OFFICES ACCOMMODATION,ELECTRICITY,5902582419,1000055977
02.06.2023,RESIDENT SERVICES,BRITISH GAS TRADING LTD,743.20,OPERATIONS/OFFICES ACCOMMODATION,ELECTRICITY,5902582422,1000055977
02.06.2023,RESIDENT SERVICES,LUCY BROWN SOCIAL CLUB,600.00,RESIDENTS PARTICIPATION FUND,GRANTS,5902581746,1000076727
02.06.2023,RESIDENT SERVICES,LONDON TOOLS LIMITED,"1,136.40",SUPPORTED HOSTELS,MATERIALS,5902582219,1000003017
02.06.2023,RESIDENT SERVICES,LONDON TOOLS LIMITED,"2,380.00",SUPPORTED HOSTELS,MATERIALS,5902582219,1000003017
02.06.2023,RESIDENT SERVICES,ANTONY HODARI  SOLICITORS,"2,000.00",TA ESTATE VOIDS,PAYMENTS FOR LEGAL SERVICES,2103670554,1000031040
02.06.2023,RESIDENT SERVICES,CLARKE & CO LIMITED,"3,500.00",TA ESTATE VOIDS,PAYMENTS FOR LEGAL SERVICES,2103670551,1000088371
02.06.2023,RESIDENT SERVICES,CLARKE & CO LIMITED,"9,500.00",TA ESTATE VOIDS,PAYMENTS FOR LEGAL SERVICES,2103670552,1000088371
02.06.2023,RESIDENT SERVICES,CLARKE & CO LIMITED,"10,000.00",TA ESTATE VOIDS,PAYMENTS FOR LEGAL SERVICES,2103670553,1000088371
02.06.2023,RESIDENT SERVICES,HOMELY HOUSING LETS LTD,"3,351.00",TA PLACEMENTS,EXTERNAL AGENCIES AND BODIES,5902582590,1000050013
02.06.2023,RESIDENT SERVICES,SHUTTLEWORTH (UK) LTD,"4,080.00",TA PLACEMENTS,EXTERNAL AGENCIES AND BODIES,5902582400,1000056468
02.06.2023,RESIDENT SERVICES,DENHAN INTERNATIONAL LIMITED,"1,710.00",TA PLACEMENTS,EXTERNAL AGENCIES AND BODIES,5902582503,1000075567
02.06.2023,RESIDENT SERVICES,NATIONWIDE ACCOMMODATION,"19,920.00",TA PLACEMENTS,EXTERNAL AGENCIES AND BODIES,5902582514,1000076112
02.06.2023,RESIDENT SERVICES HGF,GAS-ELEC BUREAU (UK) LTD,285.00,HOMELESS PROJECTS,EXTERNAL AGENCIES AND BODIES,5902582592,1000071972
02.06.2023,RESIDENT SERVICES HGF,FRESHVIEW ESTATES,"2,381.94",HOMELESS PROJECTS,GRANTS,5902582516,1000086397
02.06.2023,RESIDENT SERVICES HGF,FRESHVIEW ESTATES,"2,659.41",HOMELESS PROJECTS,GRANTS,5902582515,1000086397
02.06.2023,RESIDENT SERVICES HGF,SHELTER TRAINING LTD,414.00,HOUSING OPTIONS,TRAINING,5902582474,1000033177
02.06.2023,RESIDENT SERVICES HGF,SHELTER TRAINING LTD,832.50,HOUSING OPTIONS,TRAINING,5902582474,1000033177
02.06.2023,RESIDENT SERVICES HGF,CITYGLEN LTD,"7,707.00",NIGHTLY TA (NSC),EXTERNAL AGENCIES AND BODIES,5902582473,1000026239
02.06.2023,RESIDENT SERVICES HGF,K3 PROPERTY MANAGEMENT LTD,"1,260.00",NIGHTLY TA (NSC),EXTERNAL AGENCIES AND BODIES,5902582404,1000068219
02.06.2023,RESIDENT SERVICES HGF,NORBURY PROPERTY SERVICES (LONDON) LTD,"25,086.00",NIGHTLY TA (NSC),EXTERNAL AGENCIES AND BODIES,5902582521,1000075566
02.06.2023,RESIDENT SERVICES HGF,JENORM LTD,"1,500.00",NIGHTLY TA (NSC),EXTERNAL AGENCIES AND BODIES,5902582457,1000088128
02.06.2023,RESIDENT SERVICES HGF,JENORM LTD,"1,725.00",NIGHTLY TA (NSC),EXTERNAL AGENCIES AND BODIES,5902582461,1000088128
02.06.2023,RESIDENT SERVICES HGF,WENTWORTH HOUSING LTD,"60,145.28",PSL PLACEMENTS,EXTERNAL AGENCIES AND BODIES,5902582497,1000083640
02.06.2023,RESIDENT SERVICES HGF,WENTWORTH HOUSING LTD,"65,369.54",PSL PLACEMENTS,EXTERNAL AGENCIES AND BODIES,5902582501,1000083640
02.06.2023,RESIDENT SERVICES HGF,GUYS & ST THOMAS NHS FOUNDATION TRUST,"51,000.00",RAPID REHOUSING,PROFESSIONAL FEES,5902582477,1765536
02.06.2023,RESIDENT SERVICES HGF,HELP2SUPPORT LIMITED,512.40,RAPID REHOUSING,REMOVAL EXPENSES,5902581311,1000084604
02.06.2023,SBS OPERATIONS,EDWARDES BROS (DULWICH) LTD,540.63,ELECTRICAL TEAM,MATERIALS,5902582567,1004945
02.06.2023,SBS OPERATIONS,EDWARDES BROS (DULWICH) LTD,"1,250.00",ELECTRICAL TEAM,MATERIALS,5902582584,1004945
02.06.2023,SBS OPERATIONS,EDWARDES BROS (DULWICH) LTD,"2,500.00",ELECTRICIANS - DAY TO DAY,MATERIALS,5902582583,1004945
02.06.2023,SBS OPERATIONS,EDWARDES BROS (DULWICH) LTD,"3,750.00",ELECTRICIANS - DAY TO DAY,MATERIALS,5902582581,1004945
02.06.2023,SOUTHWARK BUILDING SERVICES,EDWARDES BROS (DULWICH) LTD,264.00,STORES/LOGISTICS,CREDITORS -GR/IR CLEARING ACCOUNT,5902582574,1004945
02.06.2023,SOUTHWARK BUILDING SERVICES,EDWARDES BROS (DULWICH) LTD,300.00,STORES/LOGISTICS,CREDITORS -GR/IR CLEARING ACCOUNT,5902582574,1004945
02.06.2023,SOUTHWARK BUILDING SERVICES,EDWARDES BROS (DULWICH) LTD,348.00,STORES/LOGISTICS,CREDITORS -GR/IR CLEARING ACCOUNT,5902582574,1004945
02.06.2023,SOUTHWARK BUILDING SERVICES,EDWARDES BROS (DULWICH) LTD,348.00,STORES/LOGISTICS,CREDITORS -GR/IR CLEARING ACCOUNT,5902582574,1004945
02.06.2023,SOUTHWARK BUILDING SERVICES,EDWARDES BROS (DULWICH) LTD,360.00,STORES/LOGISTICS,CREDITORS -GR/IR CLEARING ACCOUNT,5902582574,1004945
02.06.2023,SOUTHWARK BUILDING SERVICES,EDWARDES BROS (DULWICH) LTD,534.00,STORES/LOGISTICS,CREDITORS -GR/IR CLEARING ACCOUNT,5902582574,1004945
02.06.2023,SOUTHWARK BUILDING SERVICES,EDWARDES BROS (DULWICH) LTD,578.80,STORES/LOGISTICS,CREDITORS -GR/IR CLEARING ACCOUNT,5902582572,1004945
02.06.2023,SOUTHWARK BUILDING SERVICES,EDWARDES BROS (DULWICH) LTD,880.00,STORES/LOGISTICS,CREDITORS -GR/IR CLEARING ACCOUNT,5902582574,1004945
02.06.2023,SOUTHWARK BUILDING SERVICES,EDWARDES BROS (DULWICH) LTD,905.00,STORES/LOGISTICS,CREDITORS -GR/IR CLEARING ACCOUNT,5902582572,1004945
02.06.2023,SOUTHWARK BUILDING SERVICES,PILKINGTON UK LTD,"4,614.90",STORES/LOGISTICS,CREDITORS -GR/IR CLEARING ACCOUNT,5902582440,11224519
02.06.2023,SOUTHWARK BUILDING SERVICES,LONDON TOOLS LIMITED,309.05,STORES/LOGISTICS,CREDITORS -GR/IR CLEARING ACCOUNT,5902582475,1000003017
02.06.2023,SOUTHWARK BUILDING SERVICES,LONDON TOOLS LIMITED,558.00,STORES/LOGISTICS,CREDITORS -GR/IR CLEARING ACCOUNT,5902582478,1000003017
02.06.2023,SOUTHWARK BUILDING SERVICES,LONDON TOOLS LIMITED,675.00,STORES/LOGISTICS,CREDITORS -GR/IR CLEARING ACCOUNT,5902582493,1000003017
02.06.2023,SOUTHWARK BUILDING SERVICES,LONDON TOOLS LIMITED,"1,095.00",STORES/LOGISTICS,CREDITORS -GR/IR CLEARING ACCOUNT,5902582498,1000003017
02.06.2023,STRATEGIC FINANCE,THE BANK OF NEW YORK MELLON,804.60,CASH MANAGERS' COSTS,PROFESSIONAL FEES,5902582483,1000072540
03.06.2023,ASSET MANAGEMENT,LONDON FIRE BRIGADE,364.00,ENG CONTRACTS (NORTH),LIFTS,5902581851,1000083629
03.06.2023,CHILDREN AND FAMILIES,FAMILY FUTURES CIC,500.00,ADOPTION SUPP FUND 3,EXTERNAL AGENCIES AND BODIES,5902582021,1000027893
03.06.2023,COMMUNITIES,ART IN THE PARK,"4,400.00",WEST CENTRAL,GRANTS,5902582510,1000004690
03.06.2023,CUSTOMER AND EXCHEQUER,DSI BILLING SERVICES LTD,"10,278.45",ADMINISTRATIVE SUPPORT,POSTAGES,5902582329,1000058640
03.06.2023,EDUCATION,MARGARETS MUSIC LTD,610.00,LEA MUSIC SERVICE(310) - 5018566,CONSULTANTS SERVICES,5902582437,1000073116
03.06.2023,ENVIRONMENT AND LEISURE,KINGS COLLEGE LONDON,"1,435.00",HEALTH IMPROVEMENT,EXTERNAL AGENCIES AND BODIES,5902582307,1000021115
03.06.2023,ENVIRONMENT AND LEISURE,PEXMAS LTD,"2,760.00",HEALTHY WEIGHT,EXTERNAL AGENCIES AND BODIES,5902582408,1000074107
03.06.2023,ENVIRONMENT AND LEISURE,BIONICAL SOLUTIONS LIMITED,"5,821.13",STOP SMOKING,EXTERNAL AGENCIES AND BODIES,5902581751,1000084774
03.06.2023,ENVIRONMENT DIRECTORATE,SPECIALIST COATINGS INTERNATIONAL LTD,"2,195.00",STREET CLEANING-GENERAL,MATERIALS,5902582202,1000085816
03.06.2023,HOUSING GENERAL FUND,ALPINE WORKS LTD,"10,391.25",CAPITAL PS (REGEN),CONSTRUCTION MAIN CONTRACT,5902581921,1000088387
03.06.2023,HOUSING GENERAL FUND,ALPINE WORKS LTD,"24,110.96",CAPITAL PS (REGEN),CONSTRUCTION MAIN CONTRACT,5902581921,1000088387
03.06.2023,HOUSING HRA,PULSE ASSOCIATES LTD (T/A PULSE CONSULT),"14,225.00",CAPITAL PS (HRA),CONSTRUCTION FEES,5902581844,1000087233
03.06.2023,HOUSING HRA,CALFORD SEADEN LLP,259.70,CAPITAL PS (HRA),CONSTRUCTION FEES  - EXTERNAL,5902581803,1061592
03.06.2023,HOUSING HRA,CALFORD SEADEN LLP,"6,584.30",CAPITAL PS (HRA),CONSTRUCTION FEES  - EXTERNAL,5902581803,1061592
03.06.2023,HOUSING HRA,SHERGROUP LTD,"3,410.00",CAPITAL PS (HRA),CONSTRUCTION FEES  - EXTERNAL,5902582384,1000087977
03.06.2023,HOUSING HRA,A & E ELKINS LTD,"112,712.80",CAPITAL PS (HRA),CONSTRUCTION MAIN CONTRACT -CERTIFICATED,2103670348,4012501
03.06.2023,HOUSING HRA,BY DEVELOPMENT LTD,"3,035,013.04",CAPITAL PS (HRA),CONSTRUCTION MAIN CONTRACT -CERTIFICATED,2103670536,3000002255
03.06.2023,LEISURE DIRECTORATE,ESE DIRECT LTD,674.00,SDM BUDGET,MATERIALS,5902581889,1000055085
03.06.2023,PLANNING & GROWTH,LIVE-IN CARETAKERS LTD,"2,408.00",22 SHAND STREET,SECURITY SERVICES,5902581730,1000088236
03.06.2023,PLANNING & GROWTH,LNRS DATA SERVICES LIMITED,499.00,PROPERTY SERVICES,SUBSCRIPTIONS,5902581795,1000005640
03.06.2023,RESIDENT SERVICES HGF,FRESHVIEW ESTATES,"2,381.94",HOMELESS PROJECTS,GRANTS,5902582076,1000086397
04.06.2023,ASSET MANAGEMENT,ARMINA LTD,"1,452.43",DISREPAIR,BUILDING R&M,2103670226,3000002121
04.06.2023,ASSET MANAGEMENT,LONDON FIRE BRIGADE,364.00,ENG CONTRACTS (NORTH),LIFTS,5902582331,1000083629
04.06.2023,CHILDREN AND FAMILIES,FAMILY FUTURES CIC,"2,098.00",ADOPTION SUPP FUND 2,EXTERNAL AGENCIES AND BODIES,5902582321,1000027893
04.06.2023,CHILDREN AND FAMILIES,REDACTED PERSONAL DATA,420.00,ADOPTION SUPP FUND 2,EXTERNAL AGENCIES AND BODIES,REDACTED,REDACTED
04.06.2023,CHILDREN AND FAMILIES,THE APPROPRIATE ADULT SERVICE LTD,760.00,YJS MGMT & SUPPORT,EXTERNAL AGENCIES AND BODIES,5902581810,1000047682
04.06.2023,CORPORATE FACILITIES MANAGEMENT,GREENHAM TRADING LTD,265.31,FM SERVICES BY INTERSERVE,INTEGRATED FACILITIES MANAGEMENT CONTRACT,5902582585,1000006610
04.06.2023,CORPORATE FACILITIES MANAGEMENT,GREENHAM TRADING LTD,428.10,FM SERVICES BY INTERSERVE,INTEGRATED FACILITIES MANAGEMENT CONTRACT,5902582587,1000006610
04.06.2023,EDUCATION,STUART HAYTER,280.00,GOVERNOR SUPPORT,CONSULTANTS SERVICES,5902581998,1000082057
04.06.2023,ENVIRONMENT AND LEISURE,T LOUGHMAN AND CO LIMITED,"3,931.38",CAPITAL PS (LEISURE),CONSTRUCTION FEES  - EXTERNAL,2103670350,4013329
04.06.2023,ENVIRONMENT AND LEISURE,T LOUGHMAN AND CO LIMITED,"3,182.68",CAPITAL PS (LEISURE),CONSTRUCTION MAIN CONTRACT,2103670290,4013329
04.06.2023,ENVIRONMENT AND LEISURE,T LOUGHMAN AND CO LIMITED,"25,234.27",CAPITAL PS (LEISURE),CONSTRUCTION MAIN CONTRACT,2103670290,4013329
04.06.2023,ENVIRONMENT AND LEISURE,BUXTON BUILDING CONTRACTORS LTD,"654,391.00",CAPITAL PS (LEISURE),CONSTRUCTION MAIN CONTRACT -CERTIFICATED,2103670534,3000000830
04.06.2023,ENVIRONMENT AND LEISURE,COMMUNITY MATTERS MEDIA LIMITED,"1,860.00",STREET WORKS OVERHEADS,MARKETING & PUBLICITY SERVICES,5902582569,1556957
04.06.2023,HOUSING HRA,BAILY  GARNER LLP,"4,224.00",CAPITAL PS (HRA),CONSTRUCTION FEES  - EXTERNAL,5902582320,1000663
04.06.2023,HOUSING HRA,HUNTER & PARTNERS LTD,900.00,CAPITAL PS (HRA),CONSTRUCTION FEES  - EXTERNAL,5902582481,1000055088
04.06.2023,HOUSING HRA,HCUK GROUP LIMITED,"3,980.50",CAPITAL PS (HRA),CONSTRUCTION FEES  - EXTERNAL,5902582317,1000086607
04.06.2023,HOUSING HRA,SILVER DCC LTD,"1,225.90",CAPITAL PS (HRA),CONSTRUCTION FEES  - EXTERNAL,5902582231,1000087546
04.06.2023,HOUSING HRA,SILVER DCC LTD,"1,281.77",CAPITAL PS (HRA),CONSTRUCTION FEES  - EXTERNAL,5902582332,1000087546
04.06.2023,HOUSING HRA,SILVER DCC LTD,"1,315.18",CAPITAL PS (HRA),CONSTRUCTION FEES  - EXTERNAL,5902582227,1000087546
04.06.2023,HOUSING HRA,SILVER DCC LTD,"1,342.65",CAPITAL PS (HRA),CONSTRUCTION FEES  - EXTERNAL,5902582398,1000087546
04.06.2023,HOUSING HRA,SILVER DCC LTD,"2,445.94",CAPITAL PS (HRA),CONSTRUCTION FEES  - EXTERNAL,5902582195,1000087546
04.06.2023,LEISURE DIRECTORATE,QUADRON SERVICES LIMITED,259.52,DULWICH AREA TEAM,OTHER R&M,5902581908,1000066528
04.06.2023,LEISURE DIRECTORATE,PRODUCTIVITY @ WORK LIMITED,"2,778.13",LEISURE INSOURCING MOBILISATION COST,CONSULTANTS SERVICES,5902581584,1000089724
04.06.2023,LEISURE DIRECTORATE,SOFTCAT PLC,"11,917.43",LEISURE INSOURCING MOBILISATION COST,HARDWARE,5902582600,1000088809
04.06.2023,LEISURE DIRECTORATE,NIELSEN BOOK SERVICES LTD,"3,520.00",LIBRARIES DEVELOPMENT,SUBSCRIPTIONS,5902582386,1000047403
05.06.2023,ADULT SOCIAL CARE,ALLPAY LTD,488.37,APPOINTEESHIPS,EXTERNAL AGENCIES AND BODIES,5902582797,1000043001
05.06.2023,ADULT SOCIAL CARE,REALITY FAMILY SUPPORT SERVICES LTD,"1,249.50",PHY LTS 18-64,OTHER PAYMENTS FOR CLIENTS,5902581809,1000087878
05.06.2023,ADULT SOCIAL CARE,SOUTH LONDON & MAUDSLEY HOSPITAL,"316,346.00",SLAM SPOT MH RES,EXTERNAL AGENCIES AND BODIES,5902582890,1000013096
05.06.2023,ADULT SOCIAL CARE,LONDON & QUADRANT HOUSING TRUST,-677.25,SOUTHWARK RESOURCE CENTRE,SERVICE CHARGES,5902504750,1000014718
05.06.2023,ADULT SOCIAL CARE,LONDON & QUADRANT HOUSING TRUST,"4,824.38",SOUTHWARK RESOURCE CENTRE,SERVICE CHARGES,5902582683,1000014718
05.06.2023,ADULT SOCIAL CARE,LONDON & QUADRANT HOUSING TRUST,"6,000.00",SOUTHWARK RESOURCE CENTRE,SERVICE CHARGES,5902582683,1000014718
05.06.2023,ASSET MANAGEMENT,DSI BILLING SERVICES LTD,"1,401.53",DESIGN & DELIVERY,PRINTING,5902582757,1000058640
05.06.2023,ASSET MANAGEMENT,ARMINA LTD,581.32,DISREPAIR,BUILDING R&M,2103670482,3000002121
05.06.2023,ASSET MANAGEMENT,KNK BUILDING SERVICES LTD,"5,690.15",DISREPAIR,PAYMENTS FOR LEGAL SERVICES,2103672276,3000001728
05.06.2023,CHIEF EXECUTIVE,RORETTI LIMITED,"29,850.00",CORPORATE & DEPARTMENTAL EXPENDITURE,CONSULTANTS SERVICES,5902582806,1000088927
05.06.2023,CHIEF EXECUTIVE,GEORGINA  WOUDSTRA LTD,"4,800.00",CORPORATE & DEPARTMENTAL EXPENDITURE,MISCELLANEOUS RECEIPTS,5902582773,1000088891
05.06.2023,CHILDREN AND ADULT,SOUTH PARK HEATING SERVICES LTD,"19,657.95",CAPITAL PS (EDUCATION),CONSTRUCTION,5902582703,1000087443
05.06.2023,CHILDREN AND ADULT,SHARPE PRITCHARD LLP,570.30,CAPITAL PS (EDUCATION),CONSTRUCTION FEES - LEGAL,5902582844,1790085
05.06.2023,CHILDREN AND ADULT,SHARPE PRITCHARD LLP,"2,592.80",CAPITAL PS (EDUCATION),CONSTRUCTION FEES - LEGAL,5902582673,1790085
05.06.2023,CHILDREN AND ADULT,SHARPE PRITCHARD LLP,"3,064.00",CAPITAL PS (EDUCATION),CONSTRUCTION FEES - LEGAL,5902582682,1790085
05.06.2023,CHILDREN AND FAMILIES,REDACTED PERSONAL DATA,375.54,ADOPTION ALLOWANCES,PAYMENTS TO CARERS,REDACTED,REDACTED
05.06.2023,CHILDREN AND FAMILIES,THE SENSORY SMART CHILD LTD,375.00,ADOPTION SUPP FUND 2,EXTERNAL AGENCIES AND BODIES,5902582848,1000085374
05.06.2023,CHILDREN AND FAMILIES,THE SENSORY SMART CHILD LTD,"1,000.00",ADOPTION SUPP FUND 2,EXTERNAL AGENCIES AND BODIES,5902582719,1000085374
05.06.2023,CHILDREN AND FAMILIES,REDACTED PERSONAL DATA,990.00,ADOPTION SUPP FUND 2,EXTERNAL AGENCIES AND BODIES,REDACTED,REDACTED
05.06.2023,CHILDREN AND FAMILIES,REDACTED PERSONAL DATA,380.00,ADOPTION SUPP FUND 3,EXTERNAL AGENCIES AND BODIES,REDACTED,REDACTED
05.06.2023,CHILDREN AND FAMILIES,REDACTED PERSONAL DATA,400.00,ADOPTION SUPP FUND 3,EXTERNAL AGENCIES AND BODIES,REDACTED,REDACTED
05.06.2023,CHILDREN AND FAMILIES,REDACTED PERSONAL DATA,410.00,ADOPTION SUPP FUND 3,EXTERNAL AGENCIES AND BODIES,REDACTED,REDACTED
05.06.2023,CHILDREN AND FAMILIES,REDACTED PERSONAL DATA,550.00,ADOPTION SUPP FUND 3,EXTERNAL AGENCIES AND BODIES,REDACTED,REDACTED
05.06.2023,CHILDREN AND FAMILIES,REDACTED PERSONAL DATA,625.00,ADOPTION SUPP FUND 3,EXTERNAL AGENCIES AND BODIES,REDACTED,REDACTED
05.06.2023,CHILDREN AND FAMILIES,REDACTED PERSONAL DATA,625.00,ADOPTION SUPP FUND 3,EXTERNAL AGENCIES AND BODIES,REDACTED,REDACTED
05.06.2023,CHILDREN AND FAMILIES,REALITY FAMILY SUPPORT SERVICES LTD,535.50,EDGE OF CARE DECIS�S,OTHER PAYMENTS FOR CLIENTS,5902581809,1000087878
05.06.2023,CHILDREN AND FAMILIES,REDACTED PERSONAL DATA,255.67,FAMILY GROUP CONF�S,PROFESSIONAL FEES,REDACTED,REDACTED
05.06.2023,CHILDREN AND FAMILIES,REDACTED PERSONAL DATA,299.00,FAMILY GROUP CONF�S,PROFESSIONAL FEES,REDACTED,REDACTED
05.06.2023,CHILDREN AND FAMILIES,ST JOHN AMBULANCE,350.00,FOSTERING TEAM,EXTERNAL AGENCIES AND BODIES,5902582822,1032324
05.06.2023,CHILDREN AND FAMILIES,SUMI RATNAM & CO LTD,405.00,SFS MGMT & SUPPORT,LEGAL FEES & COURT COSTS,2103672252,1000065191
05.06.2023,CHILDREN AND FAMILIES,SARAH HUNWICK,750.00,SFS MGMT & SUPPORT,LEGAL FEES & COURT COSTS,2103672244,1000073789
05.06.2023,CHILDREN AND FAMILIES,AMY SLINGO,600.00,SFS MGMT & SUPPORT,LEGAL FEES & COURT COSTS,2103672235,1000080875
05.06.2023,CHILDREN AND FAMILIES,POLLY ALLISON,450.00,SFS MGMT & SUPPORT,LEGAL FEES & COURT COSTS,2103672241,1000084697
05.06.2023,CHILDREN AND FAMILIES,DIAMOND PROPERTY MANAGEMENT LTD,"1,560.00",TEMP ACCOM FOR IH,EXTERNAL AGENCIES AND BODIES,5902582689,1000088789
05.06.2023,CHILDREN AND FAMILIES,CONNEXIONS CUISINE LTD T/A MASONS CATERING,610.50,YJS MGMT & SUPPORT,REFRESHMENTS FOR MEETINGS,5902582903,11317153
05.06.2023,COMMUNITIES,ZFA ACCOMMODATION LTD,"14,221.00",NO RECOURSE TO PUBLIC FUNDS,ACCOMMODATION CHARGES,5902582826,1000082620
05.06.2023,COMMUNITIES,SKYLINE SUPPORTED LIVING,"4,800.00",NO RECOURSE TO PUBLIC FUNDS,ACCOMMODATION CHARGES,5902582828,1000088729
05.06.2023,COMMUNITIES,REDACTED PERSONAL DATA,350.00,UKRAINIAN PROGRAMME,GRANTS,REDACTED,REDACTED
05.06.2023,COMMUNITIES,REDACTED PERSONAL DATA,350.00,UKRAINIAN PROGRAMME,GRANTS,REDACTED,REDACTED
05.06.2023,COMMUNITIES,ZFA ACCOMMODATION LTD,"9,300.00",UKRAINIAN REFUGEES,ACCOMMODATION CHARGES,5902582827,1000082620
05.06.2023,COMMUNITIES,SOUTH LONDON GALLERY,"3,500.00",WEST CENTRAL,GRANTS,5902582798,11011694
05.06.2023,COMMUNITIES,FRIENDS OF PASLEY PARK,"4,500.00",WEST CENTRAL,GRANTS,5902582815,1000074848
05.06.2023,COMMUNITIES,FLASHY WINGS MINISTRY,"1,750.00",WEST CENTRAL,GRANTS,5902582795,1000084265
05.06.2023,CUSTOMER AND EXCHEQUER,FRAMA (UK) LTD,"2,000.00",CORONER'S,POSTAGES,5902582900,1000046489
05.06.2023,CUSTOMER AND EXCHEQUER,IMPERIAL COLLEGE PROJECTS LTD,310.00,CORONER'S,PROFESSIONAL FEES,5902582634,1000080106
05.06.2023,CUSTOMER AND EXCHEQUER,IMPERIAL COLLEGE PROJECTS LTD,331.00,CORONER'S,PROFESSIONAL FEES,5902582635,1000080106
05.06.2023,CUSTOMER AND EXCHEQUER,IMPERIAL COLLEGE PROJECTS LTD,357.00,CORONER'S,PROFESSIONAL FEES,5902582624,1000080106
05.06.2023,CUSTOMER AND EXCHEQUER,IMPERIAL COLLEGE PROJECTS LTD,357.00,CORONER'S,PROFESSIONAL FEES,5902582775,1000080106
05.06.2023,CUSTOMER AND EXCHEQUER,IMPERIAL COLLEGE PROJECTS LTD,378.00,CORONER'S,PROFESSIONAL FEES,5902582774,1000080106
05.06.2023,CUSTOMER AND EXCHEQUER,IMPERIAL COLLEGE PROJECTS LTD,399.00,CORONER'S,PROFESSIONAL FEES,5902582633,1000080106
05.06.2023,CUSTOMER AND EXCHEQUER,IMPERIAL COLLEGE PROJECTS LTD,433.00,CORONER'S,PROFESSIONAL FEES,5902582779,1000080106
05.06.2023,CUSTOMER AND EXCHEQUER,IMPERIAL COLLEGE PROJECTS LTD,445.00,CORONER'S,PROFESSIONAL FEES,5902582625,1000080106
05.06.2023,CUSTOMER AND EXCHEQUER,IMPERIAL COLLEGE PROJECTS LTD,514.00,CORONER'S,PROFESSIONAL FEES,5902582626,1000080106
05.06.2023,CUSTOMER AND EXCHEQUER,IMPERIAL COLLEGE PROJECTS LTD,540.00,CORONER'S,PROFESSIONAL FEES,5902582770,1000080106
05.06.2023,CUSTOMER AND EXCHEQUER,IMPERIAL COLLEGE PROJECTS LTD,548.00,CORONER'S,PROFESSIONAL FEES,5902582636,1000080106
05.06.2023,CUSTOMER AND EXCHEQUER,IMPERIAL COLLEGE PROJECTS LTD,574.00,CORONER'S,PROFESSIONAL FEES,5902582631,1000080106
05.06.2023,CUSTOMER AND EXCHEQUER,IMPERIAL COLLEGE PROJECTS LTD,629.00,CORONER'S,PROFESSIONAL FEES,5902582782,1000080106
05.06.2023,DIGITAL AND TECHNOLOGY,VENN GROUP LTD,"6,930.00",IT MANAGEMENT,AGENCY STAFF,5902582676,1000033315
05.06.2023,DIGITAL AND TECHNOLOGY,KEYSTREAM GROUP LIMITED,"1,980.00",IT MANAGEMENT,AGENCY STAFF,5902582665,1000089467
05.06.2023,DIGITAL AND TECHNOLOGY,KEYSTREAM GROUP LIMITED,"2,778.75",IT MANAGEMENT,CONSULTANTS SERVICES,5902582669,1000089467
05.06.2023,DIGITAL AND TECHNOLOGY,KEYSTREAM GROUP LIMITED,"3,850.00",IT MANAGEMENT,CONSULTANTS SERVICES,5902582653,1000089467
05.06.2023,DIGITAL AND TECHNOLOGY,CAPITA BUSINESS SERVICES LTD,"4,144.13",SAP OPERATING COSTS,PROFESSIONAL FEES,5902582509,1000006291
05.06.2023,DIGITAL AND TECHNOLOGY,LONDON BOROUGH OF BRENT,"41,383.00",SHARED SERVICES,COMMS & COMPUTING CONTRACT CHARGES,5902582679,1000064734
05.06.2023,DIGITAL AND TECHNOLOGY,LONDON BOROUGH OF BRENT,"138,528.00",SHARED SERVICES,COMMS & COMPUTING CONTRACT CHARGES,5902582679,1000064734
05.06.2023,DIGITAL AND TECHNOLOGY,LONDON BOROUGH OF BRENT,"486,725.00",SHARED SERVICES,COMMS & COMPUTING CONTRACT CHARGES,5902582679,1000064734
05.06.2023,EDUCATION,MARTINS UPHOLSTERY SUPPLIES LTD,444.10,ALC  DIRECT DELIVERY,MATERIALS,5902582821,1000049444
05.06.2023,ENVIRONMENT AND LEISURE,F M CONWAY LTD,825.96,CAPITAL PS (LEISURE),CONSTRUCTION,2103672267,4001384
05.06.2023,ENVIRONMENT AND LEISURE,F M CONWAY LTD,"9,770.86",CAPITAL PS (LEISURE),CONSTRUCTION,2103672271,4001384
05.06.2023,ENVIRONMENT AND LEISURE,F M CONWAY LTD,"20,121.16",CAPITAL PS (LEISURE),CONSTRUCTION,2103672269,4001384
05.06.2023,ENVIRONMENT AND LEISURE,F M CONWAY LTD,"28,559.56",CAPITAL PS (LEISURE),CONSTRUCTION,2103672265,4001384
05.06.2023,ENVIRONMENT AND LEISURE,F M CONWAY LTD,"37,997.21",CAPITAL PS (LEISURE),CONSTRUCTION,2103672268,4001384
05.06.2023,ENVIRONMENT AND LEISURE,F M CONWAY LTD,"73,639.27",CAPITAL PS (LEISURE),CONSTRUCTION,2103672266,4001384
05.06.2023,ENVIRONMENT AND LEISURE,F M CONWAY LTD,"107,642.95",CAPITAL PS (LEISURE),CONSTRUCTION,2103672270,4001384
05.06.2023,ENVIRONMENT AND LEISURE,GROUP FOR EDUCATION IN MUSEUMS,319.00,CAPITAL PS (LEISURE),CONSTRUCTION FEES,5902582851,1000062637
05.06.2023,ENVIRONMENT AND LEISURE,OSBORNE THOMAS LTD,"2,930.00",SERVICE DEVELOPMENT TEAM,OTHER EMPLOYEE EXPENSES,5902582763,1000079094
05.06.2023,ENVIRONMENT DIRECTORATE,GREENHAM TRADING LTD,854.93,ESTATE CLEANING-GENERAL,MATERIALS,5902582655,1000006610
05.06.2023,ENVIRONMENT DIRECTORATE,LANDSCAPE SUPPLY COMPANY,652.50,GROUNDS MAINTENANCE - GENERAL,EQUIPMENT PURCHASE & REPAIR,5902582327,1000051937
05.06.2023,ENVIRONMENT DIRECTORATE,SPALDINGS (UK) LTD,263.95,GROUNDS MAINTENANCE - GENERAL,MATERIALS,5902582749,1907384
05.06.2023,ENVIRONMENT DIRECTORATE,SPALDINGS (UK) LTD,315.00,GROUNDS MAINTENANCE - GENERAL,MATERIALS,5902582690,1907384
05.06.2023,ENVIRONMENT DIRECTORATE,SPALDINGS (UK) LTD,349.00,GROUNDS MAINTENANCE - GENERAL,MATERIALS,5902582688,1907384
05.06.2023,ENVIRONMENT DIRECTORATE,TRANSOFT SOLUTIONS (UK) LTD,500.00,HIGHWAY MAINTENANCE OVERHEADS,TRAINING,5902582892,1000025779
05.06.2023,ENVIRONMENT DIRECTORATE,1ENV SOLUTIONS LTD,"1,534.55",PEST CONTROL-CDN A/C,MATERIALS,5902582407,1000075410
05.06.2023,ENVIRONMENT DIRECTORATE,OSBORNE THOMAS LTD,"2,930.00",SASBU,OTHER EMPLOYEE EXPENSES,5902582765,1000079094
05.06.2023,ENVIRONMENT DIRECTORATE,CROMWELL POLYTHENE LTD,"2,085.00",STREET CLEANING-GENERAL,MATERIALS,5902582772,1000021159
05.06.2023,HOUSING GENERAL FUND,LONDON BOROUGH OF BRENT,"176,810.00",CAPITAL PS (STRAT SERV),ICT ACQUISITION,5902582679,1000064734
05.06.2023,HOUSING GENERAL FUND,KEYSTREAM GROUP LIMITED,"2,675.00",CAPITAL PS (STRAT SERV),ICT ACQUISITION,5902582658,1000089467
05.06.2023,HOUSING GENERAL FUND,KEYSTREAM GROUP LIMITED,"3,000.00",CAPITAL PS (STRAT SERV),ICT ACQUISITION,5902582661,1000089467
05.06.2023,HOUSING HRA,CALFORD SEADEN LLP,"1,677.00",CAPITAL PS (HRA),CONSTRUCTION FEES  - EXTERNAL,5902582520,1061592
05.06.2023,HOUSING HRA,HCUK GROUP LIMITED,"1,203.97",CAPITAL PS (HRA),CONSTRUCTION FEES  - EXTERNAL,5902582884,1000086607
05.06.2023,HOUSING HRA,HCUK GROUP LIMITED,"4,400.16",CAPITAL PS (HRA),CONSTRUCTION FEES  - EXTERNAL,5902582884,1000086607
05.06.2023,HOUSING HRA,HCUK GROUP LIMITED,"8,558.08",CAPITAL PS (HRA),CONSTRUCTION FEES  - EXTERNAL,5902582886,1000086607
05.06.2023,HOUSING HRA,SILVER DCC LTD,"1,181.19",CAPITAL PS (HRA),CONSTRUCTION FEES  - EXTERNAL,5902582644,1000087546
05.06.2023,HOUSING HRA,SILVER DCC LTD,"1,190.91",CAPITAL PS (HRA),CONSTRUCTION FEES  - EXTERNAL,5902582484,1000087546
05.06.2023,HOUSING HRA,SILVER DCC LTD,"1,245.13",CAPITAL PS (HRA),CONSTRUCTION FEES  - EXTERNAL,5902582698,1000087546
05.06.2023,HOUSING HRA,PRP ARCHITECTS LLP,"4,664.00",CAPITAL PS (HRA),CONSTRUCTION FEES  - EXTERNAL,5902582464,1000089671
05.06.2023,HOUSING HRA,ARJ CONSTRUCTION LTD,"9,636.90",CAPITAL PS (HRA),CONSTRUCTION MAIN CONTRACT,2103670483,3000002232
05.06.2023,HOUSING HRA,ARJ CONSTRUCTION LTD,"484,562.91",CAPITAL PS (HRA),CONSTRUCTION MAIN CONTRACT,2103670483,3000002232
05.06.2023,HOUSING HRA,COLEMAN & COMPANY LTD,"137,998.38",CAPITAL PS (HRA),CONSTRUCTION SITE COSTS,2103670349,3000002278
05.06.2023,HOUSING HRA,MORRIS + COMPANY LTD,"8,016.00",CAPITAL PS (REGEN),CONSTRUCTION FEES - ARCHITECT,5902582898,1000084228
05.06.2023,HOUSING HRA,TROWERS & HAMLINS LLP,"1,372.50",CAPITAL PS (REGEN),CONSTRUCTION FEES - LEGAL,5902582699,1000016239
05.06.2023,HOUSING HRA,TROWERS & HAMLINS LLP,"5,967.70",CAPITAL PS (REGEN),CONSTRUCTION FEES - LEGAL,5902582700,1000016239
05.06.2023,HOUSING HRA,TROWERS & HAMLINS LLP,"12,468.00",CAPITAL PS (REGEN),CONSTRUCTION FEES - LEGAL,5902582701,1000016239
05.06.2023,HUMAN RESOURCES,TMP (UK) LIMITED,385.00,ADVERTISING,OTHER EMPLOYEE EXPENSES,5902582748,1000041810
05.06.2023,HUMAN RESOURCES,TMP (UK) LIMITED,385.00,ADVERTISING,OTHER EMPLOYEE EXPENSES,5902582794,1000041810
05.06.2023,HUMAN RESOURCES,TMP (UK) LIMITED,385.00,ADVERTISING,OTHER EMPLOYEE EXPENSES,5902582883,1000041810
05.06.2023,HUMAN RESOURCES,TMP (UK) LIMITED,401.60,ADVERTISING,OTHER EMPLOYEE EXPENSES,5902582754,1000041810
05.06.2023,HUMAN RESOURCES,TMP (UK) LIMITED,546.75,ADVERTISING,OTHER EMPLOYEE EXPENSES,5902582728,1000041810
05.06.2023,HUMAN RESOURCES,TMP (UK) LIMITED,546.75,ADVERTISING,OTHER EMPLOYEE EXPENSES,5902582731,1000041810
05.06.2023,HUMAN RESOURCES,TMP (UK) LIMITED,546.75,ADVERTISING,OTHER EMPLOYEE EXPENSES,5902582791,1000041810
05.06.2023,HUMAN RESOURCES,TMP (UK) LIMITED,569.00,ADVERTISING,OTHER EMPLOYEE EXPENSES,5902582732,1000041810
05.06.2023,HUMAN RESOURCES,TMP (UK) LIMITED,569.00,ADVERTISING,OTHER EMPLOYEE EXPENSES,5902582736,1000041810
05.06.2023,HUMAN RESOURCES,TMP (UK) LIMITED,569.00,ADVERTISING,OTHER EMPLOYEE EXPENSES,5902582738,1000041810
05.06.2023,HUMAN RESOURCES,TMP (UK) LIMITED,569.00,ADVERTISING,OTHER EMPLOYEE EXPENSES,5902582739,1000041810
05.06.2023,HUMAN RESOURCES,TMP (UK) LIMITED,569.00,ADVERTISING,OTHER EMPLOYEE EXPENSES,5902582756,1000041810
05.06.2023,HUMAN RESOURCES,TMP (UK) LIMITED,569.00,ADVERTISING,OTHER EMPLOYEE EXPENSES,5902582788,1000041810
05.06.2023,HUMAN RESOURCES,TMP (UK) LIMITED,569.00,ADVERTISING,OTHER EMPLOYEE EXPENSES,5902582832,1000041810
05.06.2023,HUMAN RESOURCES,TMP (UK) LIMITED,569.00,ADVERTISING,OTHER EMPLOYEE EXPENSES,5902582838,1000041810
05.06.2023,HUMAN RESOURCES,TMP (UK) LIMITED,569.00,ADVERTISING,OTHER EMPLOYEE EXPENSES,5902582885,1000041810
05.06.2023,HUMAN RESOURCES,TMP (UK) LIMITED,569.00,ADVERTISING,OTHER EMPLOYEE EXPENSES,5902582889,1000041810
05.06.2023,HUMAN RESOURCES,TMP (UK) LIMITED,655.00,ADVERTISING,OTHER EMPLOYEE EXPENSES,5902582792,1000041810
05.06.2023,HUMAN RESOURCES,TMP (UK) LIMITED,701.61,ADVERTISING,OTHER EMPLOYEE EXPENSES,5902582887,1000041810
05.06.2023,HUMAN RESOURCES,TMP (UK) LIMITED,931.75,ADVERTISING,OTHER EMPLOYEE EXPENSES,5902582752,1000041810
05.06.2023,HUMAN RESOURCES,TMP (UK) LIMITED,954.00,ADVERTISING,OTHER EMPLOYEE EXPENSES,5902582727,1000041810
05.06.2023,HUMAN RESOURCES,TMP (UK) LIMITED,954.00,ADVERTISING,OTHER EMPLOYEE EXPENSES,5902582730,1000041810
05.06.2023,HUMAN RESOURCES,TMP (UK) LIMITED,954.00,ADVERTISING,OTHER EMPLOYEE EXPENSES,5902582746,1000041810
05.06.2023,HUMAN RESOURCES,TMP (UK) LIMITED,954.00,ADVERTISING,OTHER EMPLOYEE EXPENSES,5902582758,1000041810
05.06.2023,HUMAN RESOURCES,TMP (UK) LIMITED,954.00,ADVERTISING,OTHER EMPLOYEE EXPENSES,5902582888,1000041810
05.06.2023,HUMAN RESOURCES,TMP (UK) LIMITED,"1,069.30",ADVERTISING,OTHER EMPLOYEE EXPENSES,5902582734,1000041810
05.06.2023,HUMAN RESOURCES,TMP (UK) LIMITED,"1,115.75",ADVERTISING,OTHER EMPLOYEE EXPENSES,5902582744,1000041810
05.06.2023,HUMAN RESOURCES,TMP (UK) LIMITED,"1,138.00",ADVERTISING,OTHER EMPLOYEE EXPENSES,5902582835,1000041810
05.06.2023,HUMAN RESOURCES,TMP (UK) LIMITED,"1,500.75",ADVERTISING,OTHER EMPLOYEE EXPENSES,5902582751,1000041810
05.06.2023,HUMAN RESOURCES,TMP (UK) LIMITED,"1,546.10",ADVERTISING,OTHER EMPLOYEE EXPENSES,5902582737,1000041810
05.06.2023,HUMAN RESOURCES,TMP (UK) LIMITED,"1,728.48",ADVERTISING,OTHER EMPLOYEE EXPENSES,5902582741,1000041810
05.06.2023,HUMAN RESOURCES,TMP (UK) LIMITED,"1,858.50",ADVERTISING,OTHER EMPLOYEE EXPENSES,5902582831,1000041810
05.06.2023,HUMAN RESOURCES,TMP (UK) LIMITED,"1,922.10",ADVERTISING,OTHER EMPLOYEE EXPENSES,5902582842,1000041810
05.06.2023,HUMAN RESOURCES,TMP (UK) LIMITED,"2,205.00",ADVERTISING,OTHER EMPLOYEE EXPENSES,5902582789,1000041810
05.06.2023,HUMAN RESOURCES,TMP (UK) LIMITED,556.17,ADVERTISING,RECRUITMENT ADVERTISING,5902582733,1000041810
05.06.2023,HUMAN RESOURCES,TMP (UK) LIMITED,568.00,ADVERTISING,RECRUITMENT ADVERTISING,5902582729,1000041810
05.06.2023,HUMAN RESOURCES,TMP (UK) LIMITED,569.00,ADVERTISING,RECRUITMENT ADVERTISING,5902582753,1000041810
05.06.2023,HUMAN RESOURCES,TMP (UK) LIMITED,569.00,ADVERTISING,RECRUITMENT ADVERTISING,5902582759,1000041810
05.06.2023,HUMAN RESOURCES,TMP (UK) LIMITED,569.00,ADVERTISING,RECRUITMENT ADVERTISING,5902582762,1000041810
05.06.2023,HUMAN RESOURCES,TMP (UK) LIMITED,787.00,ADVERTISING,RECRUITMENT ADVERTISING,5902582740,1000041810
05.06.2023,HUMAN RESOURCES,TMP (UK) LIMITED,"1,351.30",ADVERTISING,RECRUITMENT ADVERTISING,5902582745,1000041810
05.06.2023,HUMAN RESOURCES,TMP (UK) LIMITED,"1,529.60",ADVERTISING,RECRUITMENT ADVERTISING,5902582750,1000041810
05.06.2023,HUMAN RESOURCES,PENNA PLC,"4,966.66",HR PAYROLL COSTS,OTHER EMPLOYEE EXPENSES,5902582771,1000050664
05.06.2023,HUMAN RESOURCES,PENNA PLC,"8,466.66",HR PAYROLL COSTS,OTHER EMPLOYEE EXPENSES,5902582768,1000050664
05.06.2023,HUMAN RESOURCES,OSBORNE THOMAS LTD,"2,606.00",HR PAYROLL COSTS,OTHER EMPLOYEE EXPENSES,5902582801,1000079094
05.06.2023,HUMAN RESOURCES,INDEED IRELAND OPERATIONS LTD,"108,000.00",NON RECHARGEABLE COSTS,OTHER EMPLOYEE EXPENSES,5902582755,1000085834
05.06.2023,HUMAN RESOURCES,ROSEMARY POTTS,"1,582.50",OCCUPATIONAL ASSESSMENT,PROFESSIONAL FEES,5902582829,1738708
05.06.2023,HUMAN RESOURCES,PSI TALENT MEASUREMENT (UK) LTD,332.40,OCCUPATIONAL ASSESSMENT,PROFESSIONAL FEES,5902582803,1000008858
05.06.2023,HUMAN RESOURCES,PSI TALENT MEASUREMENT (UK) LTD,332.40,OCCUPATIONAL ASSESSMENT,PROFESSIONAL FEES,5902582805,1000008858
05.06.2023,HUMAN RESOURCES,PSI TALENT MEASUREMENT (UK) LTD,554.00,OCCUPATIONAL ASSESSMENT,PROFESSIONAL FEES,5902582811,1000008858
05.06.2023,HUMAN RESOURCES,PSI TALENT MEASUREMENT (UK) LTD,831.00,OCCUPATIONAL ASSESSMENT,PROFESSIONAL FEES,5902582802,1000008858
05.06.2023,LAW AND GOVERNANCE,INFORMATION COMMISSIONERS OFFICE,"2,900.00",LEGAL SVCES MANAGEMENT,SUBSCRIPTIONS,5902582793,1000000794
05.06.2023,LEISURE DIRECTORATE,REGENT OFFICE CARE LTD,"5,185.62",SDM BUDGET,PREMISES CLEANING,5902582859,1000063340
05.06.2023,LEISURE DIRECTORATE,JAPANESE KNOTWEED ERADICATION LTD,500.00,SOUTHWARK AREA TEAM,GROUNDS MAINTENANCE,5902582897,1000059297
05.06.2023,LEISURE DIRECTORATE,ULVERSCROFT LARGE PRINT BOOKS,858.24,STOCK SERVICES,SUBSCRIPTIONS,5902582629,1012466
05.06.2023,LEISURE DIRECTORATE,ULVERSCROFT LARGE PRINT BOOKS,"5,518.38",STOCK SERVICES,SUBSCRIPTIONS,5902582630,1012466
05.06.2023,LEISURE DIRECTORATE,SMART PLATFORM RENTAL LTD,625.00,TREES � IN-HOUSE TEAM,HIRED VEHICLES,5902582780,1000082961
05.06.2023,PLANNING & GROWTH,SHERGROUP LTD,"1,100.00",5/5A WESTMINSTER BRIDGE ROAD.,LEGAL FEES & COURT COSTS,2103672247,1000087977
05.06.2023,PLANNING & GROWTH,SHERGROUP LTD,"1,100.00",5/5A WESTMINSTER BRIDGE ROAD.,LEGAL FEES & COURT COSTS,2103672250,1000087977
05.06.2023,PLANNING & GROWTH,SHERGROUP LTD,"1,100.00",5/5A WESTMINSTER BRIDGE ROAD.,LEGAL FEES & COURT COSTS,2103672251,1000087977
05.06.2023,PLANNING & GROWTH,SHERGROUP LTD,"1,257.15",5/5A WESTMINSTER BRIDGE ROAD.,LEGAL FEES & COURT COSTS,2103672246,1000087977
05.06.2023,PLANNING & GROWTH,SHERGROUP LTD,"1,257.15",5/5A WESTMINSTER BRIDGE ROAD.,LEGAL FEES & COURT COSTS,2103672248,1000087977
05.06.2023,PLANNING & GROWTH,SHERGROUP LTD,"1,257.15",5/5A WESTMINSTER BRIDGE ROAD.,LEGAL FEES & COURT COSTS,2103672249,1000087977
05.06.2023,PLANNING & GROWTH,PENNA PLC,"3,100.00",PLANNING POLICY TEAM,TRAINING,5902582764,1000050664
05.06.2023,PLANNING & GROWTH,PENNA PLC,"3,968.00",PLANNING POLICY TEAM,TRAINING,5902582766,1000050664
05.06.2023,RESIDENT SERVICES,BRITISH GAS,"3,348.07",EXTRA CARE,ELECTRICITY,5902582637,1000054825
05.06.2023,RESIDENT SERVICES,JOSEPH MAHON,475.00,OPERATIONS/OFFICES ACCOMMODATION,LEGAL FEES & COURT COSTS,2103672238,1000089185
05.06.2023,RESIDENT SERVICES,JOSEPH MAHON,475.00,OPERATIONS/OFFICES ACCOMMODATION,LEGAL FEES & COURT COSTS,2103672239,1000089185
05.06.2023,RESIDENT SERVICES,PITNEY BOWES FINANCE LTD,282.80,RESIDENTS PARTICIPATION FUND,OP LEASE/HIRE CHARGES:PLANT/EQUIP/FURNIT,5902582781,1091099
05.06.2023,RESIDENT SERVICES,KENT COUNTY COUNCIL - LASER,675.23,SUPPORTED HOSTELS,GAS,5902582705,1000012926
05.06.2023,RESIDENT SERVICES,KENT COUNTY COUNCIL - LASER,"1,039.13",SUPPORTED HOSTELS,GAS,5902582617,1000012926
05.06.2023,RESIDENT SERVICES,KENT COUNTY COUNCIL - LASER,"1,445.49",SUPPORTED HOSTELS,GAS,5902582620,1000012926
05.06.2023,RESIDENT SERVICES,KENT COUNTY COUNCIL - LASER,"2,225.79",SUPPORTED HOSTELS,GAS,5902582704,1000012926
05.06.2023,RESIDENT SERVICES HGF,LEASE FOR LIFE HOUSING GROUP LTD,"3,846.28",HOMELESS PROJECTS,GRANTS,5902582823,1000086523
05.06.2023,RESIDENT SERVICES HGF,WILLOW ESTATE AGENTS (LONDON) LTD,"1,155.00",NIGHTLY TA (NSC),EXTERNAL AGENCIES AND BODIES,5902582760,1000060607
05.06.2023,RESIDENT SERVICES HGF,THEORI HOUSING MANAGEMENT SERVICES,"168,668.22",PSL PLACEMENTS,EXTERNAL AGENCIES AND BODIES,5902582664,1000079264
06.06.2023,ADULT SOCIAL CARE,SHARPE PRITCHARD LLP,"1,083.30",DIR OF ASC,CATERING MATERIALS & SUPPLIES,5902582924,1790085
06.06.2023,ADULT SOCIAL CARE,THE DRIVE CARE HOMES LTD,"14,872.87",DISABILITIES LAC,EXTERNAL AGENCIES AND BODIES,2103672462,1000003889
06.06.2023,ADULT SOCIAL CARE,NATIONAL FOSTERING AGENCY LTD,"5,965.02",DISABILITIES LAC,EXTERNAL AGENCIES AND BODIES,2103674007,1000038868
06.06.2023,ADULT SOCIAL CARE,BLANDFORD HOUSE UK LTD,"22,319.55",DISABILITIES LAC,EXTERNAL AGENCIES AND BODIES,2103672461,1000088662
06.06.2023,ADULT SOCIAL CARE,THE DRIVE CARE HOMES LTD,"2,160.00",DISABILITIES LAC,OTHER PAYMENTS FOR CLIENTS,2103672472,1000003889
06.06.2023,ADULT SOCIAL CARE,THE DRIVE CARE HOMES LTD,"15,741.40",DISABILITIES LAC,RESIDENTIAL CARE,2103672471,1000003889
06.06.2023,ADULT SOCIAL CARE,CREATING CARE CHOICES LTD,"21,921.43",DISABILITIES LAC,RESIDENTIAL CARE,2103672470,1000076738
06.06.2023,ADULT SOCIAL CARE,BLANDFORD HOUSE UK LTD,"3,510.09",DISABILITIES LAC,RESIDENTIAL CARE,2103672460,1000088662
06.06.2023,ADULT SOCIAL CARE,THE REGARD PARTNERSHIP,-474.64,DISCHARGE TO ACCESS,"MAND STATUTORY CHARGES, RESIDENTIAL",2103673220,1823223
06.06.2023,ADULT SOCIAL CARE,PENERLEY LODGE LTD,-550.68,DISCHARGE TO ACCESS,"MAND STATUTORY CHARGES, RESIDENTIAL",2103672786,1958913
06.06.2023,ADULT SOCIAL CARE,PARKVIEW NURSING HOME,"4,150.40",DISCHARGE TO ACCESS,NURSING PLACEMENTS FEES,2103673085,1776618
06.06.2023,ADULT SOCIAL CARE,PARKVIEW NURSING HOME,"9,060.70",DISCHARGE TO ACCESS,NURSING PLACEMENTS FEES,2103673373,1776618
06.06.2023,ADULT SOCIAL CARE,GIBSON'S LODGE NURSING HOME,"4,736.76",DISCHARGE TO ACCESS,NURSING PLACEMENTS FEES,2103673558,11038095
06.06.2023,ADULT SOCIAL CARE,FOUR SEASONS (UPLANDS CARE HOME),"4,800.00",DISCHARGE TO ACCESS,NURSING PLACEMENTS FEES,2103672918,11290299
06.06.2023,ADULT SOCIAL CARE,ELMWOOD R C H (MISSION CARE),"5,440.00",DISCHARGE TO ACCESS,NURSING PLACEMENTS FEES,2103672971,1000022813
06.06.2023,ADULT SOCIAL CARE,"WILMINGTON MANOR NURSING HOME, BUPA",-685.71,DISCHARGE TO ACCESS,NURSING PLACEMENTS FEES,2103672902,1000064678
06.06.2023,ADULT SOCIAL CARE,HC-ONE LTD (TOWER BRIDGE CARE HOME),"-3,760.71",DISCHARGE TO ACCESS,NURSING PLACEMENTS FEES,2103672934,1000067670
06.06.2023,ADULT SOCIAL CARE,HC-ONE LTD (TOWER BRIDGE CARE HOME),"3,900.00",DISCHARGE TO ACCESS,NURSING PLACEMENTS FEES,2103673342,1000067670
06.06.2023,ADULT SOCIAL CARE,HC-ONE LTD (TOWER BRIDGE CARE HOME),"3,900.00",DISCHARGE TO ACCESS,NURSING PLACEMENTS FEES,2103673350,1000067670
06.06.2023,ADULT SOCIAL CARE,HC-ONE LTD (TOWER BRIDGE CARE HOME),"3,900.00",DISCHARGE TO ACCESS,NURSING PLACEMENTS FEES,2103673835,1000067670
06.06.2023,ADULT SOCIAL CARE,HC-ONE LTD (TOWER BRIDGE CARE HOME),"4,071.43",DISCHARGE TO ACCESS,NURSING PLACEMENTS FEES,2103672766,1000067670
06.06.2023,ADULT SOCIAL CARE,HC-ONE LTD (TOWER BRIDGE CARE HOME),"6,911.66",DISCHARGE TO ACCESS,NURSING PLACEMENTS FEES,2103673807,1000067670
06.06.2023,ADULT SOCIAL CARE,HC-ONE LTD (ALEXANDER CARE CENTRE),"3,924.66",DISCHARGE TO ACCESS,NURSING PLACEMENTS FEES,2103673862,1000068551
06.06.2023,ADULT SOCIAL CARE,COUNTRY COURT CARE HOMES 2 LTD,"1,940.29",DISCHARGE TO ACCESS,NURSING PLACEMENTS FEES,2103672948,1000080172
06.06.2023,ADULT SOCIAL CARE,COUNTRY COURT CARE HOMES 2 LTD,"3,704.13",DISCHARGE TO ACCESS,NURSING PLACEMENTS FEES,2103673231,1000080172
06.06.2023,ADULT SOCIAL CARE,COUNTRY COURT CARE HOMES 2 LTD,"4,762.45",DISCHARGE TO ACCESS,NURSING PLACEMENTS FEES,2103672966,1000080172
06.06.2023,ADULT SOCIAL CARE,COUNTRY COURT CARE HOMES 2 LTD,"4,938.84",DISCHARGE TO ACCESS,NURSING PLACEMENTS FEES,2103672815,1000080172
06.06.2023,ADULT SOCIAL CARE,COUNTRY COURT CARE HOMES 2 LTD,"4,938.84",DISCHARGE TO ACCESS,NURSING PLACEMENTS FEES,2103673126,1000080172
06.06.2023,ADULT SOCIAL CARE,COUNTRY COURT CARE HOMES 2 LTD,"4,938.84",DISCHARGE TO ACCESS,NURSING PLACEMENTS FEES,2103673544,1000080172
06.06.2023,ADULT SOCIAL CARE,COUNTRY COURT CARE HOMES 2 LTD,"4,938.84",DISCHARGE TO ACCESS,NURSING PLACEMENTS FEES,2103673672,1000080172
06.06.2023,ADULT SOCIAL CARE,COUNTRY COURT CARE HOMES 2 LTD,"4,988.44",DISCHARGE TO ACCESS,NURSING PLACEMENTS FEES,2103673299,1000080172
06.06.2023,ADULT SOCIAL CARE,SURREY DOCKS FARM PROVIDENT SOCIETY,480.00,LD LTS 18-64,DAYCARE,2103672508,1000000958
06.06.2023,ADULT SOCIAL CARE,SURREY DOCKS FARM PROVIDENT SOCIETY,500.00,LD LTS 18-64,DAYCARE,2103672506,1000000958
06.06.2023,ADULT SOCIAL CARE,MULTI-ACTIVITY CENTER,"1,371.60",LD LTS 18-64,DAYCARE,2103673861,1000087749
06.06.2023,ADULT SOCIAL CARE,MULTI-ACTIVITY CENTER,"1,371.60",LD LTS 18-64,DAYCARE,2103673863,1000087749
06.06.2023,ADULT SOCIAL CARE,KENT HARRIER PROPERTY MANAGEMENT,"1,386.00",LD LTS 18-64,EXTERNAL AGENCIES AND BODIES,2103673856,1000078130
06.06.2023,ADULT SOCIAL CARE,KENT HARRIER PROPERTY MANAGEMENT,"1,386.00",LD LTS 18-64,EXTERNAL AGENCIES AND BODIES,2103673858,1000078130
06.06.2023,ADULT SOCIAL CARE,KENT HARRIER PROPERTY MANAGEMENT,"1,470.00",LD LTS 18-64,EXTERNAL AGENCIES AND BODIES,2103673855,1000078130
06.06.2023,ADULT SOCIAL CARE,KENT HARRIER PROPERTY MANAGEMENT,"1,470.00",LD LTS 18-64,EXTERNAL AGENCIES AND BODIES,2103673857,1000078130
06.06.2023,ADULT SOCIAL CARE,MEDACS HOMECARE,"1,031.73",LD LTS 18-64,HOMECARE - C&V,2103672612,11287415
06.06.2023,ADULT SOCIAL CARE,SWK DISABLEMENT ASSN,"2,194.80",LD LTS 18-64,HOMECARE - C&V,2103672681,1000011698
06.06.2023,ADULT SOCIAL CARE,CAPITAL HOMECARE (UK) LTD,344.16,LD LTS 18-64,HOMECARE - SPOT,2103672457,1000042589
06.06.2023,ADULT SOCIAL CARE,CRAEGMOOR HEALTHCARE,-436.88,LD LTS 18-64,"MAND STATUTORY CHARGES, RESIDENTIAL",2103673779,1323845
06.06.2023,ADULT SOCIAL CARE,CHOICE CARE GROUP,-483.08,LD LTS 18-64,"MAND STATUTORY CHARGES, RESIDENTIAL",2103672851,1572506
06.06.2023,ADULT SOCIAL CARE,CHOICE CARE GROUP,-437.00,LD LTS 18-64,"MAND STATUTORY CHARGES, RESIDENTIAL",2103672785,1572506
06.06.2023,ADULT SOCIAL CARE,CHOICE CARE GROUP,-405.00,LD LTS 18-64,"MAND STATUTORY CHARGES, RESIDENTIAL",2103673458,1572506
06.06.2023,ADULT SOCIAL CARE,THE REGARD PARTNERSHIP,-445.60,LD LTS 18-64,"MAND STATUTORY CHARGES, RESIDENTIAL",2103673185,1823223
06.06.2023,ADULT SOCIAL CARE,THE REGARD PARTNERSHIP,"1,389.09",LD LTS 18-64,"MAND STATUTORY CHARGES, RESIDENTIAL",2103673086,1823223
06.06.2023,ADULT SOCIAL CARE,INSIGHT,-452.32,LD LTS 18-64,"MAND STATUTORY CHARGES, RESIDENTIAL",2103673640,1825618
06.06.2023,ADULT SOCIAL CARE,INSIGHT,"1,531.64",LD LTS 18-64,"MAND STATUTORY CHARGES, RESIDENTIAL",2103673192,1825618
06.06.2023,ADULT SOCIAL CARE,OGILVIE COURT,-483.08,LD LTS 18-64,"MAND STATUTORY CHARGES, RESIDENTIAL",2103673112,1910302
06.06.2023,ADULT SOCIAL CARE,THE AVENUES TRUST,-483.08,LD LTS 18-64,"MAND STATUTORY CHARGES, RESIDENTIAL",2103673854,1981708
06.06.2023,ADULT SOCIAL CARE,THE PADDOCK (THE SWALLOW GROUP),-691.20,LD LTS 18-64,"MAND STATUTORY CHARGES, RESIDENTIAL",2103673725,11153854
06.06.2023,ADULT SOCIAL CARE,ACHIEVE TOGETHER LTD,"-4,025.65",LD LTS 18-64,"MAND STATUTORY CHARGES, RESIDENTIAL",2103673832,11307451
06.06.2023,ADULT SOCIAL CARE,ACHIEVE TOGETHER LTD,"-1,273.67",LD LTS 18-64,"MAND STATUTORY CHARGES, RESIDENTIAL",2103673523,11307451
06.06.2023,ADULT SOCIAL CARE,THE DRIVE CARE HOMES LTD,-405.00,LD LTS 18-64,"MAND STATUTORY CHARGES, RESIDENTIAL",2103673711,1000003889
06.06.2023,ADULT SOCIAL CARE,THE FRANCES TAYLOR FOUNDATION,-468.36,LD LTS 18-64,"MAND STATUTORY CHARGES, RESIDENTIAL",2103673052,1000007274
06.06.2023,ADULT SOCIAL CARE,ASHINGHAM HOUSE LIMITED,-414.56,LD LTS 18-64,"MAND STATUTORY CHARGES, RESIDENTIAL",2103673121,1000016504
06.06.2023,ADULT SOCIAL CARE,NATIONAL AUTISTIC SOCIETY CARE PACK,-481.80,LD LTS 18-64,"MAND STATUTORY CHARGES, RESIDENTIAL",2103673100,1000020538
06.06.2023,ADULT SOCIAL CARE,ASHDENE HOUSE LIMITED,-483.00,LD LTS 18-64,"MAND STATUTORY CHARGES, RESIDENTIAL",2103673333,1000021007
06.06.2023,ADULT SOCIAL CARE,PLUS SERVICES,461.30,LD LTS 18-64,"MAND STATUTORY CHARGES, RESIDENTIAL",2103673441,1000021241
06.06.2023,ADULT SOCIAL CARE,SAFFRONLAND HOMES (HESTIA),-483.08,LD LTS 18-64,"MAND STATUTORY CHARGES, RESIDENTIAL",2103673078,1000021616
06.06.2023,ADULT SOCIAL CARE,SAFFRONLAND HOMES (HESTIA),-483.08,LD LTS 18-64,"MAND STATUTORY CHARGES, RESIDENTIAL",2103673200,1000021616
06.06.2023,ADULT SOCIAL CARE,SAFFRONLAND HOMES (HESTIA),-483.08,LD LTS 18-64,"MAND STATUTORY CHARGES, RESIDENTIAL",2103673398,1000021616
06.06.2023,ADULT SOCIAL CARE,SAFFRONLAND HOMES (HESTIA),-483.08,LD LTS 18-64,"MAND STATUTORY CHARGES, RESIDENTIAL",2103673586,1000021616
06.06.2023,ADULT SOCIAL CARE,SAFFRONLAND HOMES (HESTIA),-405.00,LD LTS 18-64,"MAND STATUTORY CHARGES, RESIDENTIAL",2103672932,1000021616
06.06.2023,ADULT SOCIAL CARE,STEPPING STONES RESETTLEMENT UNIT,-483.08,LD LTS 18-64,"MAND STATUTORY CHARGES, RESIDENTIAL",2103673460,1000032806
06.06.2023,ADULT SOCIAL CARE,ASD UNIQUE SERVICES LTD,-483.08,LD LTS 18-64,"MAND STATUTORY CHARGES, RESIDENTIAL",2103673222,1000038819
06.06.2023,ADULT SOCIAL CARE,VOYAGE LTD (EVESLEIGH KENT),-483.20,LD LTS 18-64,"MAND STATUTORY CHARGES, RESIDENTIAL",2103673216,1000041320
06.06.2023,ADULT SOCIAL CARE,VOYAGE LTD (EVESLEIGH KENT),-483.00,LD LTS 18-64,"MAND STATUTORY CHARGES, RESIDENTIAL",2103673338,1000041320
06.06.2023,ADULT SOCIAL CARE,VOYAGE LTD (EVESLEIGH KENT),-416.92,LD LTS 18-64,"MAND STATUTORY CHARGES, RESIDENTIAL",2103672827,1000041320
06.06.2023,ADULT SOCIAL CARE,FERRY CARE LTD,-483.08,LD LTS 18-64,"MAND STATUTORY CHARGES, RESIDENTIAL",2103673114,1000041775
06.06.2023,ADULT SOCIAL CARE,LEONARD CHESHIRE (GARDEN HOUSE),-400.32,LD LTS 18-64,"MAND STATUTORY CHARGES, RESIDENTIAL",2103673774,1000049748
06.06.2023,ADULT SOCIAL CARE,GLEN CARE GROUP,-476.32,LD LTS 18-64,"MAND STATUTORY CHARGES, RESIDENTIAL",2103673708,1000050223
06.06.2023,ADULT SOCIAL CARE,FIR TREE LODGE (SEE ABILITY),-405.80,LD LTS 18-64,"MAND STATUTORY CHARGES, RESIDENTIAL",2103673654,1000052257
06.06.2023,ADULT SOCIAL CARE,GROVE CARE PARTNERSHIP LIMITED,-413.60,LD LTS 18-64,"MAND STATUTORY CHARGES, RESIDENTIAL",2103673229,1000052893
06.06.2023,ADULT SOCIAL CARE,THE MEATH,-419.96,LD LTS 18-64,"MAND STATUTORY CHARGES, RESIDENTIAL",2103673852,1000056796
06.06.2023,ADULT SOCIAL CARE,GLENPAT HOMES,-405.00,LD LTS 18-64,"MAND STATUTORY CHARGES, RESIDENTIAL",2103672856,1000059312
06.06.2023,ADULT SOCIAL CARE,FRANCES TAYLOR FOUNDATION,-468.36,LD LTS 18-64,"MAND STATUTORY CHARGES, RESIDENTIAL",2103673312,1000063870
06.06.2023,ADULT SOCIAL CARE,CRAEGMOOR WHEELHOUSE PRIORY,-471.96,LD LTS 18-64,"MAND STATUTORY CHARGES, RESIDENTIAL",2103672813,1000068452
06.06.2023,ADULT SOCIAL CARE,CARLTON NURSING HOMES LTD,-404.88,LD LTS 18-64,"MAND STATUTORY CHARGES, RESIDENTIAL",2103673456,1000070431
06.06.2023,ADULT SOCIAL CARE,SAFFRONLAND HOMES (MINEHEAD),-455.68,LD LTS 18-64,"MAND STATUTORY CHARGES, RESIDENTIAL",2103673402,1000072152
06.06.2023,ADULT SOCIAL CARE,SAFFRONLAND HOMES (MINEHEAD),-428.32,LD LTS 18-64,"MAND STATUTORY CHARGES, RESIDENTIAL",2103673122,1000072152
06.06.2023,ADULT SOCIAL CARE,SAFFRONLAND HOMES (MUNDANIA),-475.76,LD LTS 18-64,"MAND STATUTORY CHARGES, RESIDENTIAL",2103673520,1000072153
06.06.2023,ADULT SOCIAL CARE,CRAEGMOOR WILLOWS HYTHE PRIORY,-447.84,LD LTS 18-64,"MAND STATUTORY CHARGES, RESIDENTIAL",2103673055,1000072287
06.06.2023,ADULT SOCIAL CARE,CRAEGMOOR (WINDSOR HOUSE),-483.00,LD LTS 18-64,"MAND STATUTORY CHARGES, RESIDENTIAL",2103673772,1000072462
06.06.2023,ADULT SOCIAL CARE,DIAGRAMA HEALTH CARE,-483.08,LD LTS 18-64,"MAND STATUTORY CHARGES, RESIDENTIAL",2103673093,1000075492
06.06.2023,ADULT SOCIAL CARE,DIAGRAMA HEALTH CARE,-483.08,LD LTS 18-64,"MAND STATUTORY CHARGES, RESIDENTIAL",2103673207,1000075492
06.06.2023,ADULT SOCIAL CARE,DIAGRAMA HEALTH CARE,-419.96,LD LTS 18-64,"MAND STATUTORY CHARGES, RESIDENTIAL",2103672803,1000075492
06.06.2023,ADULT SOCIAL CARE,DIAGRAMA HEALTH CARE,-405.00,LD LTS 18-64,"MAND STATUTORY CHARGES, RESIDENTIAL",2103673209,1000075492
06.06.2023,ADULT SOCIAL CARE,VOYAGE CARE (MOUNTEARL),-483.00,LD LTS 18-64,"MAND STATUTORY CHARGES, RESIDENTIAL",2103672818,1000078173
06.06.2023,ADULT SOCIAL CARE,ZERO THREE CARE LIMITED,-321.80,LD LTS 18-64,"MAND STATUTORY CHARGES, RESIDENTIAL",2103673571,1000085367
06.06.2023,ADULT SOCIAL CARE,BEAUMONT COURT CARE HOMES LTD,-483.08,LD LTS 18-64,"MAND STATUTORY CHARGES, RESIDENTIAL",2103673182,1000086413
06.06.2023,ADULT SOCIAL CARE,NATIONAL AUTISTIC SOCIETY CARE PACK,"2,698.92",LD LTS 18-64,OTHER PAYMENTS FOR CLIENTS,2103673179,1000020538
06.06.2023,ADULT SOCIAL CARE,CRAEGMOOR WHEELHOUSE PRIORY,896.08,LD LTS 18-64,OTHER PAYMENTS FOR CLIENTS,2103673267,1000068452
06.06.2023,ADULT SOCIAL CARE,CHOICE SUPPORT,"7,110.88",LD LTS 18-64,RESIDENTIAL CARE,2103673205,1104183
06.06.2023,ADULT SOCIAL CARE,CRAEGMOOR HEALTHCARE,"6,776.84",LD LTS 18-64,RESIDENTIAL CARE,2103673778,1323845
06.06.2023,ADULT SOCIAL CARE,CHOICE CARE GROUP,"7,472.44",LD LTS 18-64,RESIDENTIAL CARE,2103672784,1572506
06.06.2023,ADULT SOCIAL CARE,CHOICE CARE GROUP,"8,365.48",LD LTS 18-64,RESIDENTIAL CARE,2103673457,1572506
